Department,Entity,Transaction Date,Expense Type,Expense Area,Supplier,Transaction No.,Amount
"Department for Business, Energy and Industrial Strategy",The Coal Authority,28/02/2017,Fares - Public Transport,Application Management,Ace Of Mansfield Ltd,11703,74.7
"Department for Business, Energy and Industrial Strategy",The Coal Authority,28/02/2017,Hotel & Accommodation,Application Management,Redfern Travel Ltd,11854,1236.5
"Department for Business, Energy and Industrial Strategy",The Coal Authority,29/03/2017,Professional Subscriptions,Board,Public Chairs Forum,11849,1250
"Department for Business, Energy and Industrial Strategy",The Coal Authority,17/03/2017,Applications Consultancy,BOSS Programme,Midland Software Ltd,11478,38
"Department for Business, Energy and Industrial Strategy",The Coal Authority,30/03/2017,Applications Consultancy,BOSS Programme,Midland Software Ltd,11937,1019
"Department for Business, Energy and Industrial Strategy",The Coal Authority,30/03/2017,Applications Consultancy,BOSS Programme,Midland Software Ltd,11938,32.27
"Department for Business, Energy and Industrial Strategy",The Coal Authority,09/03/2017,Business Meetings,BOSS Programme,Oxford Innovation Ltd,11342,212
"Department for Business, Energy and Industrial Strategy",The Coal Authority,10/03/2017,CY - Intangible IT - Additions,BOSS Programme,Sapphire Systems Plc,11304,2195
"Department for Business, Energy and Industrial Strategy",The Coal Authority,17/03/2017,CY - Intangible IT - Additions,BOSS Programme,Sapphire Systems Plc,11475,1110
"Department for Business, Energy and Industrial Strategy",The Coal Authority,31/12/2016,CY - Intangible IT - Additions,BOSS Programme,Sapphire Systems Plc,11630,-2040.69
"Department for Business, Energy and Industrial Strategy",The Coal Authority,28/02/2017,Fares - Rail,BOSS Programme,Redfern Travel Ltd,11854,172
"Department for Business, Energy and Industrial Strategy",The Coal Authority,22/02/2017,Temporary Contractors,BOSS Programme,Hays,10897,1950
"Department for Business, Energy and Industrial Strategy",The Coal Authority,01/03/2017,Temporary Contractors,BOSS Programme,Hays,11105,1950
"Department for Business, Energy and Industrial Strategy",The Coal Authority,15/03/2017,Temporary Contractors,BOSS Programme,Hays,11596,1755
"Department for Business, Energy and Industrial Strategy",The Coal Authority,22/03/2017,Temporary Contractors,BOSS Programme,Hays,11819,1950
"Department for Business, Energy and Industrial Strategy",The Coal Authority,24/03/2017,Temporary Contractors,BOSS Programme,Hays,11864,1950
"Department for Business, Energy and Industrial Strategy",The Coal Authority,22/02/2017,Temporary Contractors,BOSS Programme,S F Recruitment Limited,10838,1000
"Department for Business, Energy and Industrial Strategy",The Coal Authority,01/03/2017,Temporary Contractors,BOSS Programme,S F Recruitment Limited,11066,850
"Department for Business, Energy and Industrial Strategy",The Coal Authority,08/03/2017,Temporary Contractors,BOSS Programme,S F Recruitment Limited,11185,1000
"Department for Business, Energy and Industrial Strategy",The Coal Authority,20/03/2017,Temporary Contractors,BOSS Programme,S F Recruitment Limited,11437,1000
"Department for Business, Energy and Industrial Strategy",The Coal Authority,22/03/2017,Temporary Contractors,BOSS Programme,S F Recruitment Limited,11664,1000
"Department for Business, Energy and Industrial Strategy",The Coal Authority,29/03/2017,Temporary Contractors,BOSS Programme,S F Recruitment Limited,11888,1000
"Department for Business, Energy and Industrial Strategy",The Coal Authority,17/03/2017,Infrastructure Consultancy,Business Analysis,Scisys Uk Ltd,11615,12935.33
"Department for Business, Energy and Industrial Strategy",The Coal Authority,28/02/2017,Fares - Air,Business Development,Redfern Travel Ltd,11854,195.8
"Department for Business, Energy and Industrial Strategy",The Coal Authority,28/02/2017,Fares - Rail,Business Development,Redfern Travel Ltd,11854,472
"Department for Business, Energy and Industrial Strategy",The Coal Authority,28/02/2017,Hotel & Accommodation,Business Development,Redfern Travel Ltd,11854,916.6
"Department for Business, Energy and Industrial Strategy",The Coal Authority,16/12/2016,Insurance Premiums,Business Development,10098GP16 - Willis,11798,-18425
"Department for Business, Energy and Industrial Strategy",The Coal Authority,16/12/2016,Insurance Premiums,Business Development,Willis Limited,11650,18425
"Department for Business, Energy and Industrial Strategy",The Coal Authority,28/02/2017,Short Term Vehicle Hire,Business Development,Enterprise Rent A Car,10898,63.5
"Department for Business, Energy and Industrial Strategy",The Coal Authority,28/02/2017,Short Term Vehicle Hire,Business Development,Enterprise Rent A Car,10911,25.56
"Department for Business, Energy and Industrial Strategy",The Coal Authority,28/02/2017,Short Term Vehicle Hire,Business Development,Enterprise Rent A Car,10915,62.87
"Department for Business, Energy and Industrial Strategy",The Coal Authority,31/03/2016,Short Term Vehicle Hire,Business Development,Enterprise Rent A Car,11143,35.99
"Department for Business, Energy and Industrial Strategy",The Coal Authority,28/02/2017,Fares - Rail,Communications & Brand,Redfern Travel Ltd,11854,344.3
"Department for Business, Energy and Industrial Strategy",The Coal Authority,28/02/2017,Hotel & Accommodation,Communications & Brand,Redfern Travel Ltd,11854,319.98
"Department for Business, Energy and Industrial Strategy",The Coal Authority,28/02/2017,Public Relations,Communications & Brand,Gorkana Group Ltd,11076,262.98
"Department for Business, Energy and Industrial Strategy",The Coal Authority,28/02/2017,Public Relations,Communications & Brand,Gorkana Group Ltd,11077,140.31
"Department for Business, Energy and Industrial Strategy",The Coal Authority,28/02/2017,Public Relations,Communications & Brand,Sharpe Pritchard,11329,425
"Department for Business, Energy and Industrial Strategy",The Coal Authority,23/02/2017,Postage & Couriers,Customer Services,Royal Mail Group Plc,11354,500
"Department for Business, Energy and Industrial Strategy",The Coal Authority,17/02/2017,Postage & Couriers,Customer Services,Tnt Uk Limited,10830,15.92
"Department for Business, Energy and Industrial Strategy",The Coal Authority,03/03/2017,Postage & Couriers,Customer Services,Tnt Uk Limited,11175,21.25
"Department for Business, Energy and Industrial Strategy",The Coal Authority,28/02/2017,Stationery,Customer Services,Banner Business Solutions,11366,169.35
"Department for Business, Energy and Industrial Strategy",The Coal Authority,14/02/2017,Applications Consultancy,Data Solutions,Scisys Uk Ltd,11460,1218.02
"Department for Business, Energy and Industrial Strategy",The Coal Authority,14/02/2017,Applications Consultancy,Data Solutions,Scisys Uk Ltd,11460,1165.91
"Department for Business, Energy and Industrial Strategy",The Coal Authority,14/02/2017,CY - Intangible IT - Additions,Data Solutions,Scisys Uk Ltd,11460,16604.45
"Department for Business, Energy and Industrial Strategy",The Coal Authority,01/03/2017,eCommerce Commission Charges,Data Solutions,Worldpay,11353,22.49
"Department for Business, Energy and Industrial Strategy",The Coal Authority,28/02/2017,Fares - Rail,Data Solutions,Redfern Travel Ltd,11854,231.3
"Department for Business, Energy and Industrial Strategy",The Coal Authority,13/03/2017,Legal - General,Data Solutions,Dla Piper Uk Llp,11300,14524.38
"Department for Business, Energy and Industrial Strategy",The Coal Authority,07/03/2017,Software Support & Maintenance - On Premise,Data Solutions,Oracle,11807,18849.93
"Department for Business, Energy and Industrial Strategy",The Coal Authority,14/02/2017,Software Support & Maintenance - On Premise,Data Solutions,Scisys Uk Ltd,11460,8140.92
"Department for Business, Energy and Industrial Strategy",The Coal Authority,02/03/2017,Training & Education,Development - Development Management,Professional Conferences,11111,952
"Department for Business, Energy and Industrial Strategy",The Coal Authority,28/02/2017,Consultancy - Property Management,Development - Historic Property Liabilities,Jmc Engineering Uk Ltd,11801,74
"Department for Business, Energy and Industrial Strategy",The Coal Authority,28/02/2017,Hotel & Accommodation,Development - Historic Property Liabilities,Redfern Travel Ltd,11854,273.5
"Department for Business, Energy and Industrial Strategy",The Coal Authority,01/03/2017,Legal - Property Title Search,Development - Historic Property Liabilities,Land Registry,11308,42
"Department for Business, Energy and Industrial Strategy",The Coal Authority,03/03/2017,Legal - Property Title Search,Development - Historic Property Liabilities,Land Registry,11309,48
"Department for Business, Energy and Industrial Strategy",The Coal Authority,09/03/2017,Legal - Property Title Search,Development - Historic Property Liabilities,Land Registry,11707,48
"Department for Business, Energy and Industrial Strategy",The Coal Authority,10/03/2017,Legal - Property Title Search,Development - Historic Property Liabilities,Land Registry,11708,12
"Department for Business, Energy and Industrial Strategy",The Coal Authority,17/03/2017,Legal - Property Title Search,Development - Historic Property Liabilities,Land Registry,11710,48
"Department for Business, Energy and Industrial Strategy",The Coal Authority,20/03/2017,Legal - Property Title Search,Development - Historic Property Liabilities,Land Registry,11711,3
"Department for Business, Energy and Industrial Strategy",The Coal Authority,24/03/2017,Legal - Property Title Search,Development - Historic Property Liabilities,Land Registry,11749,21
"Department for Business, Energy and Industrial Strategy",The Coal Authority,28/02/2017,Other Contractor Costs,Development - Historic Property Liabilities,MTS Cleansing Services LTD,10924,540
"Department for Business, Energy and Industrial Strategy",The Coal Authority,28/02/2017,Other Contractor Costs,Development - Historic Property Liabilities,MTS Cleansing Services LTD,11208,478.5
"Department for Business, Energy and Industrial Strategy",The Coal Authority,14/03/2017,Other Contractor Costs,Development - Historic Property Liabilities,MTS Cleansing Services LTD,11808,381.69
"Department for Business, Energy and Industrial Strategy",The Coal Authority,28/02/2017,Other Contractor Costs,Development - Historic Property Liabilities,Ovenden Plant Hire Limited,11060,30.86
"Department for Business, Energy and Industrial Strategy",The Coal Authority,08/03/2017,Property Rates Payable,Development - Historic Property Liabilities,British Gas Business,11334,36.83
"Department for Business, Energy and Industrial Strategy",The Coal Authority,13/03/2017,Property Rates Payable,Development - Historic Property Liabilities,British Gas Business,11852,190.21
"Department for Business, Energy and Industrial Strategy",The Coal Authority,13/03/2017,Property Rates Payable,Development - Historic Property Liabilities,British Gas Business,11852,91.98
"Department for Business, Energy and Industrial Strategy",The Coal Authority,28/03/2017,Property Rents Payable,Development - Historic Property Liabilities,The Plumtree Childrens Trust,11721,52022.48
"Department for Business, Energy and Industrial Strategy",The Coal Authority,28/02/2017,Short Term Vehicle Hire,Development - Historic Property Liabilities,Enterprise Rent A Car,10885,41.75
"Department for Business, Energy and Industrial Strategy",The Coal Authority,28/02/2017,Short Term Vehicle Hire,Development - Historic Property Liabilities,Enterprise Rent A Car,10910,36.75
"Department for Business, Energy and Industrial Strategy",The Coal Authority,28/02/2017,Fares - Rail,Development - Legal,Redfern Travel Ltd,11854,172
"Department for Business, Energy and Industrial Strategy",The Coal Authority,16/12/2016,Insurance Premiums,Development - Legal,10098GP16 - Willis,11798,18425
"Department for Business, Energy and Industrial Strategy",The Coal Authority,16/12/2016,Insurance Premiums,Development - Legal,Willis Limited,11649,275
"Department for Business, Energy and Industrial Strategy",The Coal Authority,16/12/2016,Insurance Premiums,Development - Legal,Willis Limited,11651,1875
"Department for Business, Energy and Industrial Strategy",The Coal Authority,19/12/2016,Insurance Premiums,Development - Legal,Willis Limited,11652,616.49
"Department for Business, Energy and Industrial Strategy",The Coal Authority,19/12/2016,Insurance Premiums,Development - Legal,Willis Limited,11654,8090.27
"Department for Business, Energy and Industrial Strategy",The Coal Authority,10/04/2017,Legal - General,Development - Legal,6494 Land Registry,12424,9
"Department for Business, Energy and Industrial Strategy",The Coal Authority,21/02/2017,Legal - Property Title Search,Development - Legal,Land Registry,10820,9
"Department for Business, Energy and Industrial Strategy",The Coal Authority,17/02/2017,Legal - Property Title Search,Development - Legal,Land Registry,10823,3
"Department for Business, Energy and Industrial Strategy",The Coal Authority,01/03/2017,eCommerce Commission Charges,Development - Licensing,Worldpay,11353,13.47
"Department for Business, Energy and Industrial Strategy",The Coal Authority,03/03/2017,Temporary Contractors,Development - Licensing,Key Personnel Solutions Ltd,11307,1339.88
"Department for Business, Energy and Industrial Strategy",The Coal Authority,24/02/2017,Temporary Contractors,Development - Licensing,Key Personnel Solutions Ltd,11792,1377.68
"Department for Business, Energy and Industrial Strategy",The Coal Authority,15/03/2017,Training & Education,Development - Licensing,Midland Inst Of Mining Eng No2,11726,40
"Department for Business, Energy and Industrial Strategy",The Coal Authority,31/03/2017,Business Entertainment / Hospitality,Development � Permissions,11089-Irrecoverable client VAT,12180,2.95
"Department for Business, Energy and Industrial Strategy",The Coal Authority,01/03/2017,eCommerce Commission Charges,Development � Permissions,Worldpay,11353,669.14
"Department for Business, Energy and Industrial Strategy",The Coal Authority,02/03/2017,eCommerce Commission Charges,Development � Permissions,Worldpay Limited,11011,42.19
"Department for Business, Energy and Industrial Strategy",The Coal Authority,28/02/2017,Fares - Rail,Development � Permissions,Redfern Travel Ltd,11854,318
"Department for Business, Energy and Industrial Strategy",The Coal Authority,28/02/2017,Hotel & Accommodation,Development � Permissions,Redfern Travel Ltd,11854,541
"Department for Business, Energy and Industrial Strategy",The Coal Authority,14/02/2017,Applications Consultancy,Development - Planning & Local Authority Liaison,Scisys Uk Ltd,11460,304.5
"Department for Business, Energy and Industrial Strategy",The Coal Authority,14/02/2017,Applications Consultancy,Development - Planning & Local Authority Liaison,Scisys Uk Ltd,11460,291.48
"Department for Business, Energy and Industrial Strategy",The Coal Authority,14/02/2017,CY - Intangible IT - Additions,Development - Planning & Local Authority Liaison,Scisys Uk Ltd,11460,4151.11
"Department for Business, Energy and Industrial Strategy",The Coal Authority,28/02/2017,Fares - Air,Development - Planning & Local Authority Liaison,Redfern Travel Ltd,11854,124.35
"Department for Business, Energy and Industrial Strategy",The Coal Authority,28/02/2017,Fares - Rail,Development - Planning & Local Authority Liaison,Redfern Travel Ltd,11854,165.9
"Department for Business, Energy and Industrial Strategy",The Coal Authority,28/02/2017,Hotel & Accommodation,Development - Planning & Local Authority Liaison,Redfern Travel Ltd,11854,161
"Department for Business, Energy and Industrial Strategy",The Coal Authority,28/02/2017,Short Term Vehicle Hire,Development - Planning & Local Authority Liaison,Enterprise Rent A Car,10890,31.75
"Department for Business, Energy and Industrial Strategy",The Coal Authority,28/02/2017,Short Term Vehicle Hire,Development - Planning & Local Authority Liaison,Enterprise Rent A Car,10902,48.5
"Department for Business, Energy and Industrial Strategy",The Coal Authority,07/03/2017,Software Support & Maintenance - On Premise,Development - Planning & Local Authority Liaison,Oracle,11807,4712.48
"Department for Business, Energy and Industrial Strategy",The Coal Authority,14/02/2017,Software Support & Maintenance - On Premise,Development - Planning & Local Authority Liaison,Scisys Uk Ltd,11460,2035.23
"Department for Business, Energy and Industrial Strategy",The Coal Authority,31/12/2016,Training & Education,Development - Planning & Local Authority Liaison,Rtpi Conferences,11056,1425
"Department for Business, Energy and Industrial Strategy",The Coal Authority,14/02/2017,Applications Consultancy,Development - Property Management,Scisys Uk Ltd,11460,291.48
"Department for Business, Energy and Industrial Strategy",The Coal Authority,14/02/2017,Applications Consultancy,Development - Property Management,Scisys Uk Ltd,11460,304.5
"Department for Business, Energy and Industrial Strategy",The Coal Authority,28/02/2017,Closed Colliery Site Restoration,Development - Property Management,Crimefighter Alarms Ltd,11889,1434.42
"Department for Business, Energy and Industrial Strategy",The Coal Authority,30/03/2017,Closed Colliery Site Restoration,Development - Property Management,Crimefighter Alarms Ltd,11891,919.5
"Department for Business, Energy and Industrial Strategy",The Coal Authority,21/03/2017,Consultancy - Property Management,Development - Property Management,J Guy Rusling Limited,11663,4235
"Department for Business, Energy and Industrial Strategy",The Coal Authority,30/03/2017,Consultancy - Property Management,Development - Property Management,Valuation Office Agency,11963,7764.84
"Department for Business, Energy and Industrial Strategy",The Coal Authority,14/02/2017,CY - Intangible IT - Additions,Development - Property Management,Scisys Uk Ltd,11460,4151.11
"Department for Business, Energy and Industrial Strategy",The Coal Authority,01/03/2017,Legal - General,Development - Property Management,Anderson Strathern,11311,63
"Department for Business, Energy and Industrial Strategy",The Coal Authority,28/02/2017,Legal - General,Development - Property Management,Walker Morris,11367,168
"Department for Business, Energy and Industrial Strategy",The Coal Authority,27/02/2017,Legal - Property Title Search,Development - Property Management,10821-Duplicate invoice 10313,11291,-36
"Department for Business, Energy and Industrial Strategy",The Coal Authority,24/02/2017,Legal - Property Title Search,Development - Property Management,Land Registry,10816,33
"Department for Business, Energy and Industrial Strategy",The Coal Authority,21/02/2017,Legal - Property Title Search,Development - Property Management,Land Registry,10820,12
"Department for Business, Energy and Industrial Strategy",The Coal Authority,14/02/2017,Legal - Property Title Search,Development - Property Management,Land Registry,10821,36
"Department for Business, Energy and Industrial Strategy",The Coal Authority,17/02/2017,Legal - Property Title Search,Development - Property Management,Land Registry,10823,9
"Department for Business, Energy and Industrial Strategy",The Coal Authority,28/02/2017,Other Contractor Costs,Development - Property Management,Jmc Engineering Uk Ltd,11082,1592.85
"Department for Business, Energy and Industrial Strategy",The Coal Authority,22/02/2017,Other Contractor Costs,Development - Property Management,Ovenden Plant Hire Limited,10837,49.05
"Department for Business, Energy and Industrial Strategy",The Coal Authority,07/03/2017,Software Support & Maintenance - On Premise,Development - Property Management,Oracle,11807,4712.48
"Department for Business, Energy and Industrial Strategy",The Coal Authority,14/02/2017,Software Support & Maintenance - On Premise,Development - Property Management,Scisys Uk Ltd,11460,2035.23
"Department for Business, Energy and Industrial Strategy",The Coal Authority,08/02/2017,Consultancy - Commercialisation Costs,Environment - Commercial,Hydro Logic Services Llp,10906,1728.66
"Department for Business, Energy and Industrial Strategy",The Coal Authority,15/03/2017,Consultancy - Commercialisation Costs,Environment - Commercial,Hydro Logic Services Llp,11489,513.66
"Department for Business, Energy and Industrial Strategy",The Coal Authority,23/03/2017,Minewater Sampling - 'Non-operational' Sites,Environment - Commercial,Environmental Scientifics Grp,11830,84.1
"Department for Business, Energy and Industrial Strategy",The Coal Authority,03/04/2017,CY - Minewater Scheme - Additions,Environment - Contract Management,11744 Severn Trent Serv Ops Uk Ltd,12014,67.11
"Department for Business, Energy and Industrial Strategy",The Coal Authority,03/04/2017,CY - Minewater Scheme - Additions,Environment - Contract Management,11744 Severn Trent Serv Ops Uk Ltd,12014,196.1
"Department for Business, Energy and Industrial Strategy",The Coal Authority,03/04/2017,CY - Minewater Scheme - Additions,Environment - Contract Management,11744 Severn Trent Serv Ops Uk Ltd,12014,19.16
"Department for Business, Energy and Industrial Strategy",The Coal Authority,03/04/2017,CY - Minewater Scheme - Additions,Environment - Contract Management,11744 Severn Trent Serv Ops Uk Ltd,12014,100.68
"Department for Business, Energy and Industrial Strategy",The Coal Authority,03/04/2017,CY - Minewater Scheme - Additions,Environment - Contract Management,11744 Severn Trent Serv Ops Uk Ltd,12014,5047.66
"Department for Business, Energy and Industrial Strategy",The Coal Authority,03/04/2017,CY - Minewater Scheme - Additions,Environment - Contract Management,11744 Severn Trent Serv Ops Uk Ltd,12014,13649.92
"Department for Business, Energy and Industrial Strategy",The Coal Authority,03/04/2017,CY - Minewater Scheme - Additions,Environment - Contract Management,11744 Severn Trent Serv Ops Uk Ltd,12014,9610.13
"Department for Business, Energy and Industrial Strategy",The Coal Authority,03/04/2017,CY - Minewater Scheme - Additions,Environment - Contract Management,11744 Severn Trent Serv Ops Uk Ltd,12014,5627.65
"Department for Business, Energy and Industrial Strategy",The Coal Authority,03/04/2017,CY - Minewater Scheme - Additions,Environment - Contract Management,11744 Severn Trent Serv Ops Uk Ltd,12014,9022.96
"Department for Business, Energy and Industrial Strategy",The Coal Authority,03/04/2017,CY - Minewater Scheme - Additions,Environment - Contract Management,11744 Severn Trent Serv Ops Uk Ltd,12014,516.83
"Department for Business, Energy and Industrial Strategy",The Coal Authority,06/04/2017,CY - Minewater Scheme - Additions,Environment - Contract Management,12014 11744 STS Costs - February Actual,12262,-516.83
"Department for Business, Energy and Industrial Strategy",The Coal Authority,15/03/2017,CY - Subsidence Pumping - Additions,Environment - Contract Management,2534 Cornerstone  Projects Ltd,11347,534.9
"Department for Business, Energy and Industrial Strategy",The Coal Authority,10/04/2017,CY - Subsidence Pumping - Additions,Environment - Contract Management,3019 Danvm Drainage Commissioners,12416,17627.71
"Department for Business, Energy and Industrial Strategy",The Coal Authority,10/04/2017,CY - Subsidence Pumping - Additions,Environment - Contract Management,3105 Jeremy Benn Associates Ltd,12401,1860
"Department for Business, Energy and Industrial Strategy",The Coal Authority,15/03/2017,CY - Subsidence Pumping - Additions,Environment - Contract Management,3152 Danvm Drainage Commissioners,11347,2743.2
"Department for Business, Energy and Industrial Strategy",The Coal Authority,15/03/2017,CY - Subsidence Pumping - Additions,Environment - Contract Management,3153 Danvm Drainage Commissioners,11347,4365
"Department for Business, Energy and Industrial Strategy",The Coal Authority,15/03/2017,CY - Subsidence Pumping - Additions,Environment - Contract Management,3747 Danvm Drainage Commissioners,11347,-50531.9
"Department for Business, Energy and Industrial Strategy",The Coal Authority,10/04/2017,CY - Subsidence Pumping - Additions,Environment - Contract Management,3846 Jeremy Benn Associates Ltd,12416,2437.2
"Department for Business, Energy and Industrial Strategy",The Coal Authority,10/04/2017,CY - Subsidence Pumping - Additions,Environment - Contract Management,4365 Danvm Drainage Commissioners,12416,6748.8
"Department for Business, Energy and Industrial Strategy",The Coal Authority,10/04/2017,CY - Subsidence Pumping - Additions,Environment - Contract Management,5890 Jeremy Benn Associates Ltd,12416,1092.5
"Department for Business, Energy and Industrial Strategy",The Coal Authority,15/03/2017,CY - Subsidence Pumping - Additions,Environment - Contract Management,679 C Goldthorpe & Sons,11347,8214
"Department for Business, Energy and Industrial Strategy",The Coal Authority,15/03/2017,CY - Subsidence Pumping - Additions,Environment - Contract Management,7083 C Goldthorpe & Sons,11347,3780
"Department for Business, Energy and Industrial Strategy",The Coal Authority,10/04/2017,CY - Subsidence Pumping - Additions,Environment - Contract Management,7399 Jeremy Benn Associates Ltd,12416,389.3
"Department for Business, Energy and Industrial Strategy",The Coal Authority,10/04/2017,CY - Subsidence Pumping - Additions,Environment - Contract Management,9459 Briggs Land Drainage & Excavations Ltd,12401,2543.61
"Department for Business, Energy and Industrial Strategy",The Coal Authority,31/03/2017,CY - Subsidence Pumping - Additions,Environment - Contract Management,C Goldthorpe & Sons,11954,2160
"Department for Business, Energy and Industrial Strategy",The Coal Authority,14/03/2017,CY - Subsidence Pumping - Additions,Environment - Contract Management,Danvm Drainage Commissioners,11362,108799.72
"Department for Business, Energy and Industrial Strategy",The Coal Authority,17/03/2017,CY - Subsidence Pumping - Additions,Environment - Contract Management,Jeremy Benn Associates Ltd,11411,3917.5
"Department for Business, Energy and Industrial Strategy",The Coal Authority,16/03/2017,CY - Subsidence Pumping - Additions,Environment - Contract Management,Jim Davies Civil Engineering,11471,69887.97
"Department for Business, Energy and Industrial Strategy",The Coal Authority,17/03/2017,CY - Subsidence Pumping - Additions,Environment - Contract Management,Steve Vine Land Drainage Sltns,11361,2736
"Department for Business, Energy and Industrial Strategy",The Coal Authority,28/02/2017,Fares - Rail,Environment - Contract Management,Redfern Travel Ltd,11854,246
"Department for Business, Energy and Industrial Strategy",The Coal Authority,01/03/2017,Fuel (Vehicle),Environment - Contract Management,Allstar Business Solutions Ltd,11390,63.23
"Department for Business, Energy and Industrial Strategy",The Coal Authority,01/03/2017,Fuel (Vehicle),Environment - Contract Management,Allstar Business Solutions Ltd,11390,1.9
"Department for Business, Energy and Industrial Strategy",The Coal Authority,08/03/2017,Fuel (Vehicle),Environment - Contract Management,Allstar Business Solutions Ltd,11391,65.85
"Department for Business, Energy and Industrial Strategy",The Coal Authority,08/03/2017,Fuel (Vehicle),Environment - Contract Management,Allstar Business Solutions Ltd,11391,1.9
"Department for Business, Energy and Industrial Strategy",The Coal Authority,15/03/2017,Fuel (Vehicle),Environment - Contract Management,Allstar Business Solutions Ltd,11867,126.19
"Department for Business, Energy and Industrial Strategy",The Coal Authority,22/03/2017,Fuel (Vehicle),Environment - Contract Management,Allstar Business Solutions Ltd,11876,101.33
"Department for Business, Energy and Industrial Strategy",The Coal Authority,22/03/2017,Fuel (Vehicle),Environment - Contract Management,Allstar Business Solutions Ltd,11876,1.9
"Department for Business, Energy and Industrial Strategy",The Coal Authority,29/03/2017,Fuel (Vehicle),Environment - Contract Management,Allstar Business Solutions Ltd,11879,55.02
"Department for Business, Energy and Industrial Strategy",The Coal Authority,29/03/2017,Fuel (Vehicle),Environment - Contract Management,Allstar Business Solutions Ltd,11879,1.9
"Department for Business, Energy and Industrial Strategy",The Coal Authority,01/03/2017,Legal - General,Environment - Contract Management,Anderson Strathern,11311,18
"Department for Business, Energy and Industrial Strategy",The Coal Authority,03/04/2017,Minewater Consultancy - Operational Sites,Environment - Contract Management,11744 Severn Trent Serv Ops Uk Ltd,12014,4961.52
"Department for Business, Energy and Industrial Strategy",The Coal Authority,03/04/2017,Minewater Contractor Add. Task Order - Ops Site,Environment - Contract Management,11744 Severn Trent Serv Ops Uk Ltd,12014,134.23
"Department for Business, Energy and Industrial Strategy",The Coal Authority,03/04/2017,Minewater Contractor Add. Task Order - Ops Site,Environment - Contract Management,11744 Severn Trent Serv Ops Uk Ltd,12014,248.41
"Department for Business, Energy and Industrial Strategy",The Coal Authority,03/04/2017,Minewater Contractor Add. Task Order - Ops Site,Environment - Contract Management,11744 Severn Trent Serv Ops Uk Ltd,12014,100.68
"Department for Business, Energy and Industrial Strategy",The Coal Authority,03/04/2017,Minewater Contractor Add. Task Order - Ops Site,Environment - Contract Management,11744 Severn Trent Serv Ops Uk Ltd,12014,243.34
"Department for Business, Energy and Industrial Strategy",The Coal Authority,03/04/2017,Minewater Contractor Add. Task Order - Ops Site,Environment - Contract Management,11744 Severn Trent Serv Ops Uk Ltd,12014,306.33
"Department for Business, Energy and Industrial Strategy",The Coal Authority,03/04/2017,Minewater Contractor Add. Task Order - Ops Site,Environment - Contract Management,11744 Severn Trent Serv Ops Uk Ltd,12014,167.79
"Department for Business, Energy and Industrial Strategy",The Coal Authority,03/04/2017,Minewater Contractor Add. Task Order - Ops Site,Environment - Contract Management,11744 Severn Trent Serv Ops Uk Ltd,12014,233.5
"Department for Business, Energy and Industrial Strategy",The Coal Authority,03/04/2017,Minewater Contractor Add. Task Order - Ops Site,Environment - Contract Management,11744 Severn Trent Serv Ops Uk Ltd,12014,100.01
"Department for Business, Energy and Industrial Strategy",The Coal Authority,03/04/2017,Minewater Contractor Add. Task Order - Ops Site,Environment - Contract Management,11744 Severn Trent Serv Ops Uk Ltd,12014,208.37
"Department for Business, Energy and Industrial Strategy",The Coal Authority,03/04/2017,Minewater Contractor Add. Task Order - Ops Site,Environment - Contract Management,11744 Severn Trent Serv Ops Uk Ltd,12014,256.37
"Department for Business, Energy and Industrial Strategy",The Coal Authority,03/04/2017,Minewater Contractor Add. Task Order - Ops Site,Environment - Contract Management,11744 Severn Trent Serv Ops Uk Ltd,12014,45.67
"Department for Business, Energy and Industrial Strategy",The Coal Authority,03/04/2017,Minewater Contractor Add. Task Order - Ops Site,Environment - Contract Management,11744 Severn Trent Serv Ops Uk Ltd,12014,187.58
"Department for Business, Energy and Industrial Strategy",The Coal Authority,03/04/2017,Minewater Contractor Add. Task Order - Ops Site,Environment - Contract Management,11744 Severn Trent Serv Ops Uk Ltd,12014,44.08
"Department for Business, Energy and Industrial Strategy",The Coal Authority,03/04/2017,Minewater Contractor Add. Task Order - Ops Site,Environment - Contract Management,11744 Severn Trent Serv Ops Uk Ltd,12014,924.54
"Department for Business, Energy and Industrial Strategy",The Coal Authority,03/04/2017,Minewater Contractor Add. Task Order - Ops Site,Environment - Contract Management,11744 Severn Trent Serv Ops Uk Ltd,12014,8.21
"Department for Business, Energy and Industrial Strategy",The Coal Authority,03/04/2017,Minewater Contractor Add. Task Order - Ops Site,Environment - Contract Management,11744 Severn Trent Serv Ops Uk Ltd,12014,96.47
"Department for Business, Energy and Industrial Strategy",The Coal Authority,03/04/2017,Minewater Contractor Add. Task Order - Ops Site,Environment - Contract Management,11744 Severn Trent Serv Ops Uk Ltd,12014,-11.29
"Department for Business, Energy and Industrial Strategy",The Coal Authority,03/04/2017,Minewater Contractor Add. Task Order - Ops Site,Environment - Contract Management,11744 Severn Trent Serv Ops Uk Ltd,12014,-33.4
"Department for Business, Energy and Industrial Strategy",The Coal Authority,03/04/2017,Minewater Contractor Add. Task Order - Ops Site,Environment - Contract Management,11744 Severn Trent Serv Ops Uk Ltd,12014,-15.55
"Department for Business, Energy and Industrial Strategy",The Coal Authority,03/04/2017,Minewater Contractor Add. Task Order - Ops Site,Environment - Contract Management,11744 Severn Trent Serv Ops Uk Ltd,12014,776.96
"Department for Business, Energy and Industrial Strategy",The Coal Authority,03/04/2017,Minewater Contractor Add. Task Order - Ops Site,Environment - Contract Management,11744 Severn Trent Serv Ops Uk Ltd,12014,2851.24
"Department for Business, Energy and Industrial Strategy",The Coal Authority,03/04/2017,Minewater Contractor Add. Task Order - Ops Site,Environment - Contract Management,11744 Severn Trent Serv Ops Uk Ltd,12014,1599.68
"Department for Business, Energy and Industrial Strategy",The Coal Authority,03/04/2017,Minewater Contractor Add. Task Order - Ops Site,Environment - Contract Management,11744 Severn Trent Serv Ops Uk Ltd,12014,51.19
"Department for Business, Energy and Industrial Strategy",The Coal Authority,03/04/2017,Minewater Contractor Add. Task Order - Ops Site,Environment - Contract Management,11744 Severn Trent Serv Ops Uk Ltd,12014,38.28
"Department for Business, Energy and Industrial Strategy",The Coal Authority,03/04/2017,Minewater Contractor Add. Task Order - Ops Site,Environment - Contract Management,11744 Severn Trent Serv Ops Uk Ltd,12014,-12.14
"Department for Business, Energy and Industrial Strategy",The Coal Authority,03/04/2017,Minewater Contractor Add. Task Order - Ops Site,Environment - Contract Management,11744 Severn Trent Serv Ops Uk Ltd,12014,1254.16
"Department for Business, Energy and Industrial Strategy",The Coal Authority,03/04/2017,Minewater Contractor Add. Task Order - Ops Site,Environment - Contract Management,11744 Severn Trent Serv Ops Uk Ltd,12014,574.25
"Department for Business, Energy and Industrial Strategy",The Coal Authority,03/04/2017,Minewater Contractor Add. Task Order - Ops Site,Environment - Contract Management,11744 Severn Trent Serv Ops Uk Ltd,12014,2961.98
"Department for Business, Energy and Industrial Strategy",The Coal Authority,03/04/2017,Minewater Contractor Add. Task Order - Ops Site,Environment - Contract Management,11744 Severn Trent Serv Ops Uk Ltd,12014,-14.84
"Department for Business, Energy and Industrial Strategy",The Coal Authority,03/04/2017,Minewater Contractor Add. Task Order - Ops Site,Environment - Contract Management,11744 Severn Trent Serv Ops Uk Ltd,12014,-11.37
"Department for Business, Energy and Industrial Strategy",The Coal Authority,03/04/2017,Minewater Contractor Add. Task Order - Ops Site,Environment - Contract Management,11744 Severn Trent Serv Ops Uk Ltd,12014,13.44
"Department for Business, Energy and Industrial Strategy",The Coal Authority,03/04/2017,Minewater Contractor Add. Task Order - Ops Site,Environment - Contract Management,11744 Severn Trent Serv Ops Uk Ltd,12014,97.6
"Department for Business, Energy and Industrial Strategy",The Coal Authority,03/04/2017,Minewater Contractor Add. Task Order - Ops Site,Environment - Contract Management,11744 Severn Trent Serv Ops Uk Ltd,12014,78.44
"Department for Business, Energy and Industrial Strategy",The Coal Authority,03/04/2017,Minewater Contractor Add. Task Order - Ops Site,Environment - Contract Management,11744 Severn Trent Serv Ops Uk Ltd,12014,228.7
"Department for Business, Energy and Industrial Strategy",The Coal Authority,03/04/2017,Minewater Contractor Add. Task Order - Ops Site,Environment - Contract Management,11744 Severn Trent Serv Ops Uk Ltd,12014,57.48
"Department for Business, Energy and Industrial Strategy",The Coal Authority,03/04/2017,Minewater Contractor Add. Task Order - Ops Site,Environment - Contract Management,11744 Severn Trent Serv Ops Uk Ltd,12014,78.44
"Department for Business, Energy and Industrial Strategy",The Coal Authority,03/04/2017,Minewater Contractor Add. Task Order - Ops Site,Environment - Contract Management,11744 Severn Trent Serv Ops Uk Ltd,12014,202.29
"Department for Business, Energy and Industrial Strategy",The Coal Authority,03/04/2017,Minewater Contractor Add. Task Order - Ops Site,Environment - Contract Management,11744 Severn Trent Serv Ops Uk Ltd,12014,19.16
"Department for Business, Energy and Industrial Strategy",The Coal Authority,03/04/2017,Minewater Contractor Add. Task Order - Ops Site,Environment - Contract Management,11744 Severn Trent Serv Ops Uk Ltd,12014,441.27
"Department for Business, Energy and Industrial Strategy",The Coal Authority,03/04/2017,Minewater Contractor Add. Task Order - Ops Site,Environment - Contract Management,11744 Severn Trent Serv Ops Uk Ltd,12014,112.84
"Department for Business, Energy and Industrial Strategy",The Coal Authority,03/04/2017,Minewater Contractor Add. Task Order - Ops Site,Environment - Contract Management,11744 Severn Trent Serv Ops Uk Ltd,12014,7120.7
"Department for Business, Energy and Industrial Strategy",The Coal Authority,03/04/2017,Minewater Contractor Add. Task Order - Ops Site,Environment - Contract Management,11744 Severn Trent Serv Ops Uk Ltd,12014,1060.07
"Department for Business, Energy and Industrial Strategy",The Coal Authority,03/04/2017,Minewater Contractor Add. Task Order - Ops Site,Environment - Contract Management,11744 Severn Trent Serv Ops Uk Ltd,12014,68.9
"Department for Business, Energy and Industrial Strategy",The Coal Authority,03/04/2017,Minewater Contractor Add. Task Order - Ops Site,Environment - Contract Management,11744 Severn Trent Serv Ops Uk Ltd,12014,25794.9
"Department for Business, Energy and Industrial Strategy",The Coal Authority,03/04/2017,Minewater Contractor Add. Task Order - Ops Site,Environment - Contract Management,11744 Severn Trent Serv Ops Uk Ltd,12014,17270.57
"Department for Business, Energy and Industrial Strategy",The Coal Authority,03/04/2017,Minewater Contractor Add. Task Order - Ops Site,Environment - Contract Management,11744 Severn Trent Serv Ops Uk Ltd,12014,13506.36
"Department for Business, Energy and Industrial Strategy",The Coal Authority,03/04/2017,Minewater Contractor Add. Task Order - Ops Site,Environment - Contract Management,11744 Severn Trent Serv Ops Uk Ltd,12014,3495.69
"Department for Business, Energy and Industrial Strategy",The Coal Authority,03/04/2017,Minewater Contractor Add. Task Order - Ops Site,Environment - Contract Management,11744 Severn Trent Serv Ops Uk Ltd,12014,17.47
"Department for Business, Energy and Industrial Strategy",The Coal Authority,03/04/2017,Minewater Contractor Add. Task Order - Ops Site,Environment - Contract Management,11744 Severn Trent Serv Ops Uk Ltd,12014,12754.3
"Department for Business, Energy and Industrial Strategy",The Coal Authority,03/04/2017,Minewater Contractor Maint. Visits - Ops Site,Environment - Contract Management,11744 Severn Trent Serv Ops Uk Ltd,12014,20.83
"Department for Business, Energy and Industrial Strategy",The Coal Authority,03/04/2017,Minewater Contractor Maint. Visits - Ops Site,Environment - Contract Management,11744 Severn Trent Serv Ops Uk Ltd,12014,40.36
"Department for Business, Energy and Industrial Strategy",The Coal Authority,03/04/2017,Minewater Contractor Maint. Visits - Ops Site,Environment - Contract Management,11744 Severn Trent Serv Ops Uk Ltd,12014,4960.55
"Department for Business, Energy and Industrial Strategy",The Coal Authority,03/04/2017,Minewater Contractor Maint. Visits - Ops Site,Environment - Contract Management,11744 Severn Trent Serv Ops Uk Ltd,12014,2975.87
"Department for Business, Energy and Industrial Strategy",The Coal Authority,03/04/2017,Minewater Contractor Maint. Visits - Ops Site,Environment - Contract Management,11744 Severn Trent Serv Ops Uk Ltd,12014,30170.82
"Department for Business, Energy and Industrial Strategy",The Coal Authority,03/04/2017,Minewater Contractor Maint. Visits - Ops Site,Environment - Contract Management,11744 Severn Trent Serv Ops Uk Ltd,12014,2351.57
"Department for Business, Energy and Industrial Strategy",The Coal Authority,03/04/2017,Minewater Contractor Maint. Visits - Ops Site,Environment - Contract Management,11744 Severn Trent Serv Ops Uk Ltd,12014,194.3
"Department for Business, Energy and Industrial Strategy",The Coal Authority,03/04/2017,Minewater Contractor Maint. Visits - Ops Site,Environment - Contract Management,11744 Severn Trent Serv Ops Uk Ltd,12014,66.22
"Department for Business, Energy and Industrial Strategy",The Coal Authority,03/04/2017,Minewater Contractor Maint. Visits - Ops Site,Environment - Contract Management,11744 Severn Trent Serv Ops Uk Ltd,12014,2525.34
"Department for Business, Energy and Industrial Strategy",The Coal Authority,03/04/2017,Minewater Contractor Maint. Visits - Ops Site,Environment - Contract Management,11744 Severn Trent Serv Ops Uk Ltd,12014,729.86
"Department for Business, Energy and Industrial Strategy",The Coal Authority,03/04/2017,Minewater Contractor Maint. Visits - Ops Site,Environment - Contract Management,11744 Severn Trent Serv Ops Uk Ltd,12014,145.83
"Department for Business, Energy and Industrial Strategy",The Coal Authority,03/04/2017,Minewater Contractor Maint. Visits - Ops Site,Environment - Contract Management,11744 Severn Trent Serv Ops Uk Ltd,12014,1626.56
"Department for Business, Energy and Industrial Strategy",The Coal Authority,03/04/2017,Minewater Contractor Maint. Visits - Ops Site,Environment - Contract Management,11744 Severn Trent Serv Ops Uk Ltd,12014,620.44
"Department for Business, Energy and Industrial Strategy",The Coal Authority,03/04/2017,Minewater Contractor Maint. Visits - Ops Site,Environment - Contract Management,11744 Severn Trent Serv Ops Uk Ltd,12014,2044.33
"Department for Business, Energy and Industrial Strategy",The Coal Authority,03/04/2017,Minewater Contractor Maint. Visits - Ops Site,Environment - Contract Management,11744 Severn Trent Serv Ops Uk Ltd,12014,205.95
"Department for Business, Energy and Industrial Strategy",The Coal Authority,03/04/2017,Minewater Contractor Maint. Visits - Ops Site,Environment - Contract Management,11744 Severn Trent Serv Ops Uk Ltd,12014,10.53
"Department for Business, Energy and Industrial Strategy",The Coal Authority,03/04/2017,Minewater Contractor Maint. Visits - Ops Site,Environment - Contract Management,11744 Severn Trent Serv Ops Uk Ltd,12014,1234.8
"Department for Business, Energy and Industrial Strategy",The Coal Authority,03/04/2017,Minewater Contractor Maint. Visits - Ops Site,Environment - Contract Management,11744 Severn Trent Serv Ops Uk Ltd,12014,307.04
"Department for Business, Energy and Industrial Strategy",The Coal Authority,03/04/2017,Minewater Contractor Maint. Visits - Ops Site,Environment - Contract Management,11744 Severn Trent Serv Ops Uk Ltd,12014,399.36
"Department for Business, Energy and Industrial Strategy",The Coal Authority,03/04/2017,Minewater Contractor Maint. Visits - Ops Site,Environment - Contract Management,11744 Severn Trent Serv Ops Uk Ltd,12014,101.15
"Department for Business, Energy and Industrial Strategy",The Coal Authority,03/04/2017,Minewater Contractor Maint. Visits - Ops Site,Environment - Contract Management,11744 Severn Trent Serv Ops Uk Ltd,12014,188.94
"Department for Business, Energy and Industrial Strategy",The Coal Authority,03/04/2017,Minewater Contractor Maint. Visits - Ops Site,Environment - Contract Management,11744 Severn Trent Serv Ops Uk Ltd,12014,1176.57
"Department for Business, Energy and Industrial Strategy",The Coal Authority,03/04/2017,Minewater Contractor Maint. Visits - Ops Site,Environment - Contract Management,11744 Severn Trent Serv Ops Uk Ltd,12014,941.26
"Department for Business, Energy and Industrial Strategy",The Coal Authority,03/04/2017,Minewater Contractor Maint. Visits - Ops Site,Environment - Contract Management,11744 Severn Trent Serv Ops Uk Ltd,12014,784.38
"Department for Business, Energy and Industrial Strategy",The Coal Authority,03/04/2017,Minewater Contractor Maint. Visits - Ops Site,Environment - Contract Management,11744 Severn Trent Serv Ops Uk Ltd,12014,581.58
"Department for Business, Energy and Industrial Strategy",The Coal Authority,03/04/2017,Minewater Contractor Maint. Visits - Ops Site,Environment - Contract Management,11744 Severn Trent Serv Ops Uk Ltd,12014,78.44
"Department for Business, Energy and Industrial Strategy",The Coal Authority,03/04/2017,Minewater Contractor Maint. Visits - Ops Site,Environment - Contract Management,11744 Severn Trent Serv Ops Uk Ltd,12014,78.44
"Department for Business, Energy and Industrial Strategy",The Coal Authority,03/04/2017,Minewater Contractor Maint. Visits - Ops Site,Environment - Contract Management,11744 Severn Trent Serv Ops Uk Ltd,12014,101.15
"Department for Business, Energy and Industrial Strategy",The Coal Authority,03/04/2017,Minewater Contractor Maint. Visits - Ops Site,Environment - Contract Management,11744 Severn Trent Serv Ops Uk Ltd,12014,67.12
"Department for Business, Energy and Industrial Strategy",The Coal Authority,03/04/2017,Minewater Contractor Maint. Visits - Ops Site,Environment - Contract Management,11744 Severn Trent Serv Ops Uk Ltd,12014,784.52
"Department for Business, Energy and Industrial Strategy",The Coal Authority,03/04/2017,Minewater Contractor Maint. Visits - Ops Site,Environment - Contract Management,11744 Severn Trent Serv Ops Uk Ltd,12014,443.8
"Department for Business, Energy and Industrial Strategy",The Coal Authority,03/04/2017,Minewater Contractor Maint. Visits - Ops Site,Environment - Contract Management,11744 Severn Trent Serv Ops Uk Ltd,12014,955.59
"Department for Business, Energy and Industrial Strategy",The Coal Authority,03/04/2017,Minewater Contractor Maint. Visits - Ops Site,Environment - Contract Management,11744 Severn Trent Serv Ops Uk Ltd,12014,879.77
"Department for Business, Energy and Industrial Strategy",The Coal Authority,03/04/2017,Minewater Contractor Maint. Visits - Ops Site,Environment - Contract Management,11744 Severn Trent Serv Ops Uk Ltd,12014,398.89
"Department for Business, Energy and Industrial Strategy",The Coal Authority,03/04/2017,Minewater Contractor Maint. Visits - Ops Site,Environment - Contract Management,11744 Severn Trent Serv Ops Uk Ltd,12014,30.44
"Department for Business, Energy and Industrial Strategy",The Coal Authority,03/04/2017,Minewater Contractor Maint. Visits - Ops Site,Environment - Contract Management,11744 Severn Trent Serv Ops Uk Ltd,12014,1100.51
"Department for Business, Energy and Industrial Strategy",The Coal Authority,03/04/2017,Minewater Contractor Maint. Visits - Ops Site,Environment - Contract Management,11744 Severn Trent Serv Ops Uk Ltd,12014,41.11
"Department for Business, Energy and Industrial Strategy",The Coal Authority,03/04/2017,Minewater Contractor Maint. Visits - Ops Site,Environment - Contract Management,11744 Severn Trent Serv Ops Uk Ltd,12014,507.36
"Department for Business, Energy and Industrial Strategy",The Coal Authority,03/04/2017,Minewater Contractor Maint. Visits - Ops Site,Environment - Contract Management,11744 Severn Trent Serv Ops Uk Ltd,12014,208.66
"Department for Business, Energy and Industrial Strategy",The Coal Authority,03/04/2017,Minewater Contractor Maint. Visits - Ops Site,Environment - Contract Management,11744 Severn Trent Serv Ops Uk Ltd,12014,161.05
"Department for Business, Energy and Industrial Strategy",The Coal Authority,03/04/2017,Minewater Contractor Maint. Visits - Ops Site,Environment - Contract Management,11744 Severn Trent Serv Ops Uk Ltd,12014,240.01
"Department for Business, Energy and Industrial Strategy",The Coal Authority,03/04/2017,Minewater Contractor Maint. Visits - Ops Site,Environment - Contract Management,11744 Severn Trent Serv Ops Uk Ltd,12014,103.67
"Department for Business, Energy and Industrial Strategy",The Coal Authority,03/04/2017,Minewater Contractor Maint. Visits - Ops Site,Environment - Contract Management,11744 Severn Trent Serv Ops Uk Ltd,12014,78.38
"Department for Business, Energy and Industrial Strategy",The Coal Authority,03/04/2017,Minewater Contractor Maint. Visits - Ops Site,Environment - Contract Management,11744 Severn Trent Serv Ops Uk Ltd,12014,597.32
"Department for Business, Energy and Industrial Strategy",The Coal Authority,03/04/2017,Minewater Contractor Maint. Visits - Ops Site,Environment - Contract Management,11744 Severn Trent Serv Ops Uk Ltd,12014,6807.17
"Department for Business, Energy and Industrial Strategy",The Coal Authority,03/04/2017,Minewater Contractor Maint. Visits - Ops Site,Environment - Contract Management,11744 Severn Trent Serv Ops Uk Ltd,12014,247.79
"Department for Business, Energy and Industrial Strategy",The Coal Authority,03/04/2017,Minewater Contractor Maint. Visits - Ops Site,Environment - Contract Management,11744 Severn Trent Serv Ops Uk Ltd,12014,355.37
"Department for Business, Energy and Industrial Strategy",The Coal Authority,03/04/2017,Minewater Contractor Maint. Visits - Ops Site,Environment - Contract Management,11744 Severn Trent Serv Ops Uk Ltd,12014,468.63
"Department for Business, Energy and Industrial Strategy",The Coal Authority,03/04/2017,Minewater Contractor Maint. Visits - Ops Site,Environment - Contract Management,11744 Severn Trent Serv Ops Uk Ltd,12014,156.21
"Department for Business, Energy and Industrial Strategy",The Coal Authority,03/04/2017,Minewater Contractor Maint. Visits - Ops Site,Environment - Contract Management,11744 Severn Trent Serv Ops Uk Ltd,12014,227.93
"Department for Business, Energy and Industrial Strategy",The Coal Authority,03/04/2017,Minewater Contractor Maint. Visits - Ops Site,Environment - Contract Management,11744 Severn Trent Serv Ops Uk Ltd,12014,573.01
"Department for Business, Energy and Industrial Strategy",The Coal Authority,03/04/2017,Minewater Contractor Maint. Visits - Ops Site,Environment - Contract Management,11744 Severn Trent Serv Ops Uk Ltd,12014,144.19
"Department for Business, Energy and Industrial Strategy",The Coal Authority,03/04/2017,Minewater Contractor Maint. Visits - Ops Site,Environment - Contract Management,11744 Severn Trent Serv Ops Uk Ltd,12014,315.39
"Department for Business, Energy and Industrial Strategy",The Coal Authority,03/04/2017,Minewater Contractor Maint. Visits - Ops Site,Environment - Contract Management,11744 Severn Trent Serv Ops Uk Ltd,12014,867.05
"Department for Business, Energy and Industrial Strategy",The Coal Authority,03/04/2017,Minewater Contractor Maint. Visits - Ops Site,Environment - Contract Management,11744 Severn Trent Serv Ops Uk Ltd,12014,538.86
"Department for Business, Energy and Industrial Strategy",The Coal Authority,03/04/2017,Minewater Contractor Maint. Visits - Ops Site,Environment - Contract Management,11744 Severn Trent Serv Ops Uk Ltd,12014,208.28
"Department for Business, Energy and Industrial Strategy",The Coal Authority,03/04/2017,Minewater Contractor Maint. Visits - Ops Site,Environment - Contract Management,11744 Severn Trent Serv Ops Uk Ltd,12014,370.27
"Department for Business, Energy and Industrial Strategy",The Coal Authority,03/04/2017,Minewater Contractor Maint. Visits - Ops Site,Environment - Contract Management,11744 Severn Trent Serv Ops Uk Ltd,12014,289.27
"Department for Business, Energy and Industrial Strategy",The Coal Authority,03/04/2017,Minewater Contractor Maint. Visits - Ops Site,Environment - Contract Management,11744 Severn Trent Serv Ops Uk Ltd,12014,193.75
"Department for Business, Energy and Industrial Strategy",The Coal Authority,03/04/2017,Minewater Contractor Maint. Visits - Ops Site,Environment - Contract Management,11744 Severn Trent Serv Ops Uk Ltd,12014,274.45
"Department for Business, Energy and Industrial Strategy",The Coal Authority,03/04/2017,Minewater Contractor Maint. Visits - Ops Site,Environment - Contract Management,11744 Severn Trent Serv Ops Uk Ltd,12014,380.54
"Department for Business, Energy and Industrial Strategy",The Coal Authority,03/04/2017,Minewater Contractor Maint. Visits - Ops Site,Environment - Contract Management,11744 Severn Trent Serv Ops Uk Ltd,12014,1017.53
"Department for Business, Energy and Industrial Strategy",The Coal Authority,03/04/2017,Minewater Contractor Maint. Visits - Ops Site,Environment - Contract Management,11744 Severn Trent Serv Ops Uk Ltd,12014,683.36
"Department for Business, Energy and Industrial Strategy",The Coal Authority,03/04/2017,Minewater Contractor Maint. Visits - Ops Site,Environment - Contract Management,11744 Severn Trent Serv Ops Uk Ltd,12014,1038.36
"Department for Business, Energy and Industrial Strategy",The Coal Authority,03/04/2017,Minewater Contractor Maint. Visits - Ops Site,Environment - Contract Management,11744 Severn Trent Serv Ops Uk Ltd,12014,301.1
"Department for Business, Energy and Industrial Strategy",The Coal Authority,03/04/2017,Minewater Contractor Maint. Visits - Ops Site,Environment - Contract Management,11744 Severn Trent Serv Ops Uk Ltd,12014,48.48
"Department for Business, Energy and Industrial Strategy",The Coal Authority,03/04/2017,Minewater Contractor Maint. Visits - Ops Site,Environment - Contract Management,11744 Severn Trent Serv Ops Uk Ltd,12014,308.02
"Department for Business, Energy and Industrial Strategy",The Coal Authority,03/04/2017,Minewater Contractor Maint. Visits - Ops Site,Environment - Contract Management,11744 Severn Trent Serv Ops Uk Ltd,12014,761.09
"Department for Business, Energy and Industrial Strategy",The Coal Authority,03/04/2017,Minewater Contractor Maint. Visits - Ops Site,Environment - Contract Management,11744 Severn Trent Serv Ops Uk Ltd,12014,1145.37
"Department for Business, Energy and Industrial Strategy",The Coal Authority,03/04/2017,Minewater Contractor Maint. Visits - Ops Site,Environment - Contract Management,11744 Severn Trent Serv Ops Uk Ltd,12014,10.72
"Department for Business, Energy and Industrial Strategy",The Coal Authority,03/04/2017,Minewater Contractor Maint. Visits - Ops Site,Environment - Contract Management,11744 Severn Trent Serv Ops Uk Ltd,12014,105.78
"Department for Business, Energy and Industrial Strategy",The Coal Authority,03/04/2017,Minewater Contractor Maint. Visits - Ops Site,Environment - Contract Management,11744 Severn Trent Serv Ops Uk Ltd,12014,392.2
"Department for Business, Energy and Industrial Strategy",The Coal Authority,03/04/2017,Minewater Contractor Maint. Visits - Ops Site,Environment - Contract Management,11744 Severn Trent Serv Ops Uk Ltd,12014,782.34
"Department for Business, Energy and Industrial Strategy",The Coal Authority,03/04/2017,Minewater Contractor Maint. Visits - Ops Site,Environment - Contract Management,11744 Severn Trent Serv Ops Uk Ltd,12014,178.16
"Department for Business, Energy and Industrial Strategy",The Coal Authority,03/04/2017,Minewater Contractor Maint. Visits - Ops Site,Environment - Contract Management,11744 Severn Trent Serv Ops Uk Ltd,12014,572.25
"Department for Business, Energy and Industrial Strategy",The Coal Authority,03/04/2017,Minewater Contractor Maint. Visits - Ops Site,Environment - Contract Management,11744 Severn Trent Serv Ops Uk Ltd,12014,173.88
"Department for Business, Energy and Industrial Strategy",The Coal Authority,03/04/2017,Minewater Contractor Maint. Visits - Ops Site,Environment - Contract Management,11744 Severn Trent Serv Ops Uk Ltd,12014,205.68
"Department for Business, Energy and Industrial Strategy",The Coal Authority,03/04/2017,Minewater Contractor Maint. Visits - Ops Site,Environment - Contract Management,11744 Severn Trent Serv Ops Uk Ltd,12014,1264.32
"Department for Business, Energy and Industrial Strategy",The Coal Authority,03/04/2017,Minewater Contractor Maint. Visits - Ops Site,Environment - Contract Management,11744 Severn Trent Serv Ops Uk Ltd,12014,59.61
"Department for Business, Energy and Industrial Strategy",The Coal Authority,03/04/2017,Minewater Contractor Maint. Visits - Ops Site,Environment - Contract Management,11744 Severn Trent Serv Ops Uk Ltd,12014,61.7
"Department for Business, Energy and Industrial Strategy",The Coal Authority,03/04/2017,Minewater Contractor Maint. Visits - Ops Site,Environment - Contract Management,11744 Severn Trent Serv Ops Uk Ltd,12014,193.75
"Department for Business, Energy and Industrial Strategy",The Coal Authority,03/04/2017,Minewater Contractor Maint. Visits - Ops Site,Environment - Contract Management,11744 Severn Trent Serv Ops Uk Ltd,12014,90.22
"Department for Business, Energy and Industrial Strategy",The Coal Authority,03/04/2017,Minewater Contractor Maint. Visits - Ops Site,Environment - Contract Management,11744 Severn Trent Serv Ops Uk Ltd,12014,2497.34
"Department for Business, Energy and Industrial Strategy",The Coal Authority,03/04/2017,Minewater Contractor Maint. Visits - Ops Site,Environment - Contract Management,11744 Severn Trent Serv Ops Uk Ltd,12014,252.51
"Department for Business, Energy and Industrial Strategy",The Coal Authority,03/04/2017,Minewater Contractor Maint. Visits - Ops Site,Environment - Contract Management,11744 Severn Trent Serv Ops Uk Ltd,12014,131.19
"Department for Business, Energy and Industrial Strategy",The Coal Authority,03/04/2017,Minewater Contractor Maint. Visits - Ops Site,Environment - Contract Management,11744 Severn Trent Serv Ops Uk Ltd,12014,92.76
"Department for Business, Energy and Industrial Strategy",The Coal Authority,03/04/2017,Minewater Contractor Maint. Visits - Ops Site,Environment - Contract Management,11744 Severn Trent Serv Ops Uk Ltd,12014,160.06
"Department for Business, Energy and Industrial Strategy",The Coal Authority,05/04/2017,Minewater Contractor Maint. Visits - Ops Site,Environment - Contract Management,12014 11744 STS Costs - February Actual,12178,516.83
"Department for Business, Energy and Industrial Strategy",The Coal Authority,21/02/2017,Minewater Contractor Maint. Visits - Ops Site,Environment - Contract Management,National Coal Mining Museum,10836,17803.33
"Department for Business, Energy and Industrial Strategy",The Coal Authority,23/02/2017,Minewater Contractor Maint. Visits - Ops Site,Environment - Contract Management,National Coal Mining Museum,11796,4070
"Department for Business, Energy and Industrial Strategy",The Coal Authority,20/03/2017,Minewater Contractor Maint. Visits - Ops Site,Environment - Contract Management,National Coal Mining Museum,11814,4275
"Department for Business, Energy and Industrial Strategy",The Coal Authority,20/03/2017,Minewater Contractor Maint. Visits - Ops Site,Environment - Contract Management,National Coal Mining Museum,11815,12487.33
"Department for Business, Energy and Industrial Strategy",The Coal Authority,22/03/2017,Minewater Contractor Maint. Visits - Ops Site,Environment - Contract Management,National Coal Mining Museum,11816,2538.46
"Department for Business, Energy and Industrial Strategy",The Coal Authority,08/03/2017,Minewater Cost Benefit Analysis,Environment - Contract Management,Newcastle City Council,11333,500
"Department for Business, Energy and Industrial Strategy",The Coal Authority,05/04/2017,Minewater Feasibility / Scoping,Environment - Contract Management,10202 Enviro Centre,12178,-5910
"Department for Business, Energy and Industrial Strategy",The Coal Authority,05/04/2017,Minewater Feasibility / Scoping,Environment - Contract Management,9897 Enviro Centre,12178,-2397.5
"Department for Business, Energy and Industrial Strategy",The Coal Authority,28/02/2017,Minewater Land Agents (Acquisitions),Environment - Contract Management,Mark N Carey Limited,11212,130
"Department for Business, Energy and Industrial Strategy",The Coal Authority,28/02/2017,Minewater Land Agents (Acquisitions),Environment - Contract Management,Mark N Carey Limited,11218,175.5
"Department for Business, Energy and Industrial Strategy",The Coal Authority,28/02/2017,Minewater Land Agents (Acquisitions),Environment - Contract Management,Mark N Carey Limited,11221,143
"Department for Business, Energy and Industrial Strategy",The Coal Authority,15/12/2016,Minewater Land Option / Access Payments,Environment - Contract Management,Rental Payment,11449,10130.12
"Department for Business, Energy and Industrial Strategy",The Coal Authority,03/04/2017,Minewater Landscaping,Environment - Contract Management,11744 Severn Trent Serv Ops Uk Ltd,12014,25.71
"Department for Business, Energy and Industrial Strategy",The Coal Authority,03/04/2017,Minewater Landscaping,Environment - Contract Management,11744 Severn Trent Serv Ops Uk Ltd,12014,103.37
"Department for Business, Energy and Industrial Strategy",The Coal Authority,03/04/2017,Minewater Landscaping,Environment - Contract Management,11744 Severn Trent Serv Ops Uk Ltd,12014,156.88
"Department for Business, Energy and Industrial Strategy",The Coal Authority,03/04/2017,Minewater Landscaping,Environment - Contract Management,11744 Severn Trent Serv Ops Uk Ltd,12014,13437.45
"Department for Business, Energy and Industrial Strategy",The Coal Authority,03/04/2017,Minewater Landscaping Supervision,Environment - Contract Management,11744 Severn Trent Serv Ops Uk Ltd,12014,76.96
"Department for Business, Energy and Industrial Strategy",The Coal Authority,03/04/2017,Minewater Landscaping Supervision,Environment - Contract Management,11744 Severn Trent Serv Ops Uk Ltd,12014,60.88
"Department for Business, Energy and Industrial Strategy",The Coal Authority,03/04/2017,Minewater Landscaping Supervision,Environment - Contract Management,11744 Severn Trent Serv Ops Uk Ltd,12014,260.01
"Department for Business, Energy and Industrial Strategy",The Coal Authority,03/04/2017,Minewater Landscaping Supervision,Environment - Contract Management,11744 Severn Trent Serv Ops Uk Ltd,12014,41.68
"Department for Business, Energy and Industrial Strategy",The Coal Authority,03/04/2017,Minewater Landscaping Supervision,Environment - Contract Management,11744 Severn Trent Serv Ops Uk Ltd,12014,200.01
"Department for Business, Energy and Industrial Strategy",The Coal Authority,03/04/2017,Minewater Landscaping Supervision,Environment - Contract Management,11744 Severn Trent Serv Ops Uk Ltd,12014,57.08
"Department for Business, Energy and Industrial Strategy",The Coal Authority,03/04/2017,Minewater Landscaping Supervision,Environment - Contract Management,11744 Severn Trent Serv Ops Uk Ltd,12014,554.91
"Department for Business, Energy and Industrial Strategy",The Coal Authority,03/04/2017,Minewater Landscaping Supervision,Environment - Contract Management,11744 Severn Trent Serv Ops Uk Ltd,12014,9922.99
"Department for Business, Energy and Industrial Strategy",The Coal Authority,03/04/2017,Minewater Landscaping Supervision,Environment - Contract Management,11744 Severn Trent Serv Ops Uk Ltd,12014,4382.68
"Department for Business, Energy and Industrial Strategy",The Coal Authority,03/04/2017,Minewater Landscaping Supervision,Environment - Contract Management,11744 Severn Trent Serv Ops Uk Ltd,12014,1137.02
"Department for Business, Energy and Industrial Strategy",The Coal Authority,03/04/2017,Minewater Liability & Monitoring Sites - Maint.,Environment - Contract Management,11744 Severn Trent Serv Ops Uk Ltd,12014,7542.7
"Department for Business, Energy and Industrial Strategy",The Coal Authority,03/04/2017,Minewater Liability & Monitoring Sites - Maint.,Environment - Contract Management,11744 Severn Trent Serv Ops Uk Ltd,12014,587.89
"Department for Business, Energy and Industrial Strategy",The Coal Authority,03/04/2017,Minewater Liability & Monitoring Sites - Maint.,Environment - Contract Management,11744 Severn Trent Serv Ops Uk Ltd,12014,51.49
"Department for Business, Energy and Industrial Strategy",The Coal Authority,03/04/2017,Minewater Liability & Monitoring Sites - Maint.,Environment - Contract Management,11744 Severn Trent Serv Ops Uk Ltd,12014,-61.56
"Department for Business, Energy and Industrial Strategy",The Coal Authority,03/04/2017,Minewater Monitoring & Flow Measurement,Environment - Contract Management,11744 Severn Trent Serv Ops Uk Ltd,12014,70.85
"Department for Business, Energy and Industrial Strategy",The Coal Authority,03/04/2017,Minewater Monitoring & Flow Measurement,Environment - Contract Management,11744 Severn Trent Serv Ops Uk Ltd,12014,9.87
"Department for Business, Energy and Industrial Strategy",The Coal Authority,03/04/2017,Minewater Monitoring & Flow Measurement,Environment - Contract Management,11744 Severn Trent Serv Ops Uk Ltd,12014,19.83
"Department for Business, Energy and Industrial Strategy",The Coal Authority,03/04/2017,Minewater Monitoring & Flow Measurement,Environment - Contract Management,11744 Severn Trent Serv Ops Uk Ltd,12014,2742.78
"Department for Business, Energy and Industrial Strategy",The Coal Authority,03/04/2017,Minewater Monitoring & Flow Measurement,Environment - Contract Management,11744 Severn Trent Serv Ops Uk Ltd,12014,3495.95
"Department for Business, Energy and Industrial Strategy",The Coal Authority,03/04/2017,Minewater Monitoring & Flow Measurement,Environment - Contract Management,11744 Severn Trent Serv Ops Uk Ltd,12014,543.22
"Department for Business, Energy and Industrial Strategy",The Coal Authority,03/04/2017,Minewater Monitoring & Flow Measurement,Environment - Contract Management,11744 Severn Trent Serv Ops Uk Ltd,12014,283.41
"Department for Business, Energy and Industrial Strategy",The Coal Authority,03/04/2017,Minewater Monitoring & Flow Measurement,Environment - Contract Management,11744 Severn Trent Serv Ops Uk Ltd,12014,218.9
"Department for Business, Energy and Industrial Strategy",The Coal Authority,03/04/2017,Minewater Monitoring & Flow Measurement,Environment - Contract Management,11744 Severn Trent Serv Ops Uk Ltd,12014,249.51
"Department for Business, Energy and Industrial Strategy",The Coal Authority,03/04/2017,Minewater Monitoring & Flow Measurement,Environment - Contract Management,11744 Severn Trent Serv Ops Uk Ltd,12014,-53.59
"Department for Business, Energy and Industrial Strategy",The Coal Authority,03/04/2017,Minewater Monitoring & Flow Measurement,Environment - Contract Management,11744 Severn Trent Serv Ops Uk Ltd,12014,-30.81
"Department for Business, Energy and Industrial Strategy",The Coal Authority,03/04/2017,Minewater Monitoring & Flow Measurement,Environment - Contract Management,11744 Severn Trent Serv Ops Uk Ltd,12014,7798.32
"Department for Business, Energy and Industrial Strategy",The Coal Authority,03/04/2017,Minewater Monitoring & Flow Measurement,Environment - Contract Management,11744 Severn Trent Serv Ops Uk Ltd,12014,-10.12
"Department for Business, Energy and Industrial Strategy",The Coal Authority,03/04/2017,Minewater Monitoring & Flow Measurement,Environment - Contract Management,11744 Severn Trent Serv Ops Uk Ltd,12014,57.29
"Department for Business, Energy and Industrial Strategy",The Coal Authority,03/04/2017,Minewater Monitoring & Flow Measurement,Environment - Contract Management,11744 Severn Trent Serv Ops Uk Ltd,12014,200.65
"Department for Business, Energy and Industrial Strategy",The Coal Authority,03/04/2017,Minewater Monitoring & Flow Measurement,Environment - Contract Management,11744 Severn Trent Serv Ops Uk Ltd,12014,202.8
"Department for Business, Energy and Industrial Strategy",The Coal Authority,03/04/2017,Minewater Monitoring & Flow Measurement,Environment - Contract Management,11744 Severn Trent Serv Ops Uk Ltd,12014,88.53
"Department for Business, Energy and Industrial Strategy",The Coal Authority,03/04/2017,Minewater Monitoring & Flow Measurement,Environment - Contract Management,11744 Severn Trent Serv Ops Uk Ltd,12014,3.81
"Department for Business, Energy and Industrial Strategy",The Coal Authority,03/04/2017,Minewater Monitoring & Flow Measurement,Environment - Contract Management,11744 Severn Trent Serv Ops Uk Ltd,12014,291.02
"Department for Business, Energy and Industrial Strategy",The Coal Authority,03/04/2017,Minewater Monitoring & Flow Measurement,Environment - Contract Management,11744 Severn Trent Serv Ops Uk Ltd,12014,93.34
"Department for Business, Energy and Industrial Strategy",The Coal Authority,03/04/2017,Minewater Monitoring & Flow Measurement,Environment - Contract Management,11744 Severn Trent Serv Ops Uk Ltd,12014,144.28
"Department for Business, Energy and Industrial Strategy",The Coal Authority,03/04/2017,Minewater Monitoring & Flow Measurement,Environment - Contract Management,11744 Severn Trent Serv Ops Uk Ltd,12014,139.1
"Department for Business, Energy and Industrial Strategy",The Coal Authority,03/04/2017,Minewater Monitoring & Flow Measurement,Environment - Contract Management,11744 Severn Trent Serv Ops Uk Ltd,12014,182.24
"Department for Business, Energy and Industrial Strategy",The Coal Authority,03/04/2017,Minewater Monitoring & Flow Measurement,Environment - Contract Management,11744 Severn Trent Serv Ops Uk Ltd,12014,82.22
"Department for Business, Energy and Industrial Strategy",The Coal Authority,03/04/2017,Minewater Monitoring & Flow Measurement,Environment - Contract Management,11744 Severn Trent Serv Ops Uk Ltd,12014,19.75
"Department for Business, Energy and Industrial Strategy",The Coal Authority,03/04/2017,Minewater Monitoring & Flow Measurement,Environment - Contract Management,11744 Severn Trent Serv Ops Uk Ltd,12014,82.34
"Department for Business, Energy and Industrial Strategy",The Coal Authority,03/04/2017,Minewater Monitoring & Flow Measurement,Environment - Contract Management,11744 Severn Trent Serv Ops Uk Ltd,12014,673.71
"Department for Business, Energy and Industrial Strategy",The Coal Authority,03/04/2017,Minewater Monitoring & Flow Measurement,Environment - Contract Management,11744 Severn Trent Serv Ops Uk Ltd,12014,1188.42
"Department for Business, Energy and Industrial Strategy",The Coal Authority,03/04/2017,Minewater Monitoring & Flow Measurement,Environment - Contract Management,11744 Severn Trent Serv Ops Uk Ltd,12014,197.79
"Department for Business, Energy and Industrial Strategy",The Coal Authority,03/04/2017,Minewater Monitoring & Flow Measurement,Environment - Contract Management,11744 Severn Trent Serv Ops Uk Ltd,12014,192.7
"Department for Business, Energy and Industrial Strategy",The Coal Authority,03/04/2017,Minewater Monitoring & Flow Measurement,Environment - Contract Management,11744 Severn Trent Serv Ops Uk Ltd,12014,81.13
"Department for Business, Energy and Industrial Strategy",The Coal Authority,03/04/2017,Minewater Monitoring & Flow Measurement,Environment - Contract Management,11744 Severn Trent Serv Ops Uk Ltd,12014,14.2
"Department for Business, Energy and Industrial Strategy",The Coal Authority,03/04/2017,Minewater Monitoring & Flow Measurement,Environment - Contract Management,11744 Severn Trent Serv Ops Uk Ltd,12014,65.37
"Department for Business, Energy and Industrial Strategy",The Coal Authority,03/04/2017,Minewater Monitoring & Flow Measurement,Environment - Contract Management,11744 Severn Trent Serv Ops Uk Ltd,12014,118.07
"Department for Business, Energy and Industrial Strategy",The Coal Authority,03/04/2017,Minewater Monitoring & Flow Measurement,Environment - Contract Management,11744 Severn Trent Serv Ops Uk Ltd,12014,25.08
"Department for Business, Energy and Industrial Strategy",The Coal Authority,03/04/2017,Minewater Monitoring & Flow Measurement,Environment - Contract Management,11744 Severn Trent Serv Ops Uk Ltd,12014,71.93
"Department for Business, Energy and Industrial Strategy",The Coal Authority,03/04/2017,Minewater Monitoring & Flow Measurement,Environment - Contract Management,11744 Severn Trent Serv Ops Uk Ltd,12014,639.93
"Department for Business, Energy and Industrial Strategy",The Coal Authority,03/04/2017,Minewater Monitoring & Flow Measurement,Environment - Contract Management,11744 Severn Trent Serv Ops Uk Ltd,12014,483.77
"Department for Business, Energy and Industrial Strategy",The Coal Authority,03/04/2017,Minewater Monitoring & Flow Measurement,Environment - Contract Management,11744 Severn Trent Serv Ops Uk Ltd,12014,139.25
"Department for Business, Energy and Industrial Strategy",The Coal Authority,03/04/2017,Minewater Monitoring & Flow Measurement,Environment - Contract Management,11744 Severn Trent Serv Ops Uk Ltd,12014,242.77
"Department for Business, Energy and Industrial Strategy",The Coal Authority,03/04/2017,Minewater Monitoring & Flow Measurement,Environment - Contract Management,11744 Severn Trent Serv Ops Uk Ltd,12014,88.85
"Department for Business, Energy and Industrial Strategy",The Coal Authority,03/04/2017,Minewater Monitoring & Flow Measurement,Environment - Contract Management,11744 Severn Trent Serv Ops Uk Ltd,12014,79.49
"Department for Business, Energy and Industrial Strategy",The Coal Authority,03/04/2017,Minewater Monitoring & Flow Measurement,Environment - Contract Management,11744 Severn Trent Serv Ops Uk Ltd,12014,21.72
"Department for Business, Energy and Industrial Strategy",The Coal Authority,03/04/2017,Minewater Monitoring & Flow Measurement,Environment - Contract Management,11744 Severn Trent Serv Ops Uk Ltd,12014,90.27
"Department for Business, Energy and Industrial Strategy",The Coal Authority,03/04/2017,Minewater Monitoring & Flow Measurement,Environment - Contract Management,11744 Severn Trent Serv Ops Uk Ltd,12014,180
"Department for Business, Energy and Industrial Strategy",The Coal Authority,03/04/2017,Minewater Monitoring & Flow Measurement,Environment - Contract Management,11744 Severn Trent Serv Ops Uk Ltd,12014,171.54
"Department for Business, Energy and Industrial Strategy",The Coal Authority,03/04/2017,Minewater Monitoring & Flow Measurement,Environment - Contract Management,11744 Severn Trent Serv Ops Uk Ltd,12014,2.94
"Department for Business, Energy and Industrial Strategy",The Coal Authority,03/04/2017,Minewater Monitoring & Flow Measurement,Environment - Contract Management,11744 Severn Trent Serv Ops Uk Ltd,12014,158.98
"Department for Business, Energy and Industrial Strategy",The Coal Authority,03/04/2017,Minewater Monitoring & Flow Measurement,Environment - Contract Management,11744 Severn Trent Serv Ops Uk Ltd,12014,296.7
"Department for Business, Energy and Industrial Strategy",The Coal Authority,03/04/2017,Minewater Monitoring & Flow Measurement,Environment - Contract Management,11744 Severn Trent Serv Ops Uk Ltd,12014,82.99
"Department for Business, Energy and Industrial Strategy",The Coal Authority,03/04/2017,Minewater Monitoring & Flow Measurement,Environment - Contract Management,11744 Severn Trent Serv Ops Uk Ltd,12014,249.62
"Department for Business, Energy and Industrial Strategy",The Coal Authority,03/04/2017,Minewater Monitoring & Flow Measurement,Environment - Contract Management,11744 Severn Trent Serv Ops Uk Ltd,12014,445.31
"Department for Business, Energy and Industrial Strategy",The Coal Authority,03/04/2017,Minewater Monitoring & Flow Measurement,Environment - Contract Management,11744 Severn Trent Serv Ops Uk Ltd,12014,206.87
"Department for Business, Energy and Industrial Strategy",The Coal Authority,03/04/2017,Minewater Monitoring & Flow Measurement,Environment - Contract Management,11744 Severn Trent Serv Ops Uk Ltd,12014,26.6
"Department for Business, Energy and Industrial Strategy",The Coal Authority,03/04/2017,Minewater Monitoring & Flow Measurement,Environment - Contract Management,11744 Severn Trent Serv Ops Uk Ltd,12014,97.98
"Department for Business, Energy and Industrial Strategy",The Coal Authority,03/04/2017,Minewater Monitoring & Flow Measurement,Environment - Contract Management,11744 Severn Trent Serv Ops Uk Ltd,12014,59.61
"Department for Business, Energy and Industrial Strategy",The Coal Authority,03/04/2017,Minewater Monitoring & Flow Measurement,Environment - Contract Management,11744 Severn Trent Serv Ops Uk Ltd,12014,42.61
"Department for Business, Energy and Industrial Strategy",The Coal Authority,03/04/2017,Minewater Monitoring & Flow Measurement,Environment - Contract Management,11744 Severn Trent Serv Ops Uk Ltd,12014,851.64
"Department for Business, Energy and Industrial Strategy",The Coal Authority,03/04/2017,Minewater Monitoring & Flow Measurement,Environment - Contract Management,11744 Severn Trent Serv Ops Uk Ltd,12014,19.87
"Department for Business, Energy and Industrial Strategy",The Coal Authority,03/04/2017,Minewater Monitoring & Flow Measurement,Environment - Contract Management,11744 Severn Trent Serv Ops Uk Ltd,12014,13.22
"Department for Business, Energy and Industrial Strategy",The Coal Authority,03/04/2017,Minewater Monitoring & Flow Measurement,Environment - Contract Management,11744 Severn Trent Serv Ops Uk Ltd,12014,38.15
"Department for Business, Energy and Industrial Strategy",The Coal Authority,03/04/2017,Minewater Monitoring & Flow Measurement,Environment - Contract Management,11744 Severn Trent Serv Ops Uk Ltd,12014,29.07
"Department for Business, Energy and Industrial Strategy",The Coal Authority,03/04/2017,Minewater Monitoring & Flow Measurement,Environment - Contract Management,11744 Severn Trent Serv Ops Uk Ltd,12014,1102.16
"Department for Business, Energy and Industrial Strategy",The Coal Authority,03/04/2017,Minewater Monitoring & Flow Measurement,Environment - Contract Management,11744 Severn Trent Serv Ops Uk Ltd,12014,104.05
"Department for Business, Energy and Industrial Strategy",The Coal Authority,03/04/2017,Minewater Monitoring & Flow Measurement,Environment - Contract Management,11744 Severn Trent Serv Ops Uk Ltd,12014,20.15
"Department for Business, Energy and Industrial Strategy",The Coal Authority,03/04/2017,Minewater Monitoring & Flow Measurement,Environment - Contract Management,11744 Severn Trent Serv Ops Uk Ltd,12014,26.42
"Department for Business, Energy and Industrial Strategy",The Coal Authority,08/03/2017,Minewater Monitoring & Flow Measurement,Environment - Contract Management,Environmental Scientifics Grp,11279,126.15
"Department for Business, Energy and Industrial Strategy",The Coal Authority,07/03/2017,Minewater Monitoring & Flow Measurement,Environment - Contract Management,Environmental Scientifics Grp,11283,165
"Department for Business, Energy and Industrial Strategy",The Coal Authority,03/03/2017,Minewater Power Costs,Environment - Contract Management,0002655130 - EDF,11798,-7053.38
"Department for Business, Energy and Industrial Strategy",The Coal Authority,03/04/2017,Minewater Power Costs,Environment - Contract Management,11744 Severn Trent Serv Ops Uk Ltd,12014,4831.2
"Department for Business, Energy and Industrial Strategy",The Coal Authority,24/11/2016,Minewater Power Costs,Environment - Contract Management,7919 - British Gas Business,11804,-118.78
"Department for Business, Energy and Industrial Strategy",The Coal Authority,13/02/2017,Minewater Power Costs,Environment - Contract Management,British Gas Business,10834,714.75
"Department for Business, Energy and Industrial Strategy",The Coal Authority,13/03/2017,Minewater Power Costs,Environment - Contract Management,British Gas Business,11845,614.38
"Department for Business, Energy and Industrial Strategy",The Coal Authority,13/03/2017,Minewater Power Costs,Environment - Contract Management,British Gas Business,11852,600
"Department for Business, Energy and Industrial Strategy",The Coal Authority,13/03/2017,Minewater Power Costs,Environment - Contract Management,British Gas Business,11852,939.94
"Department for Business, Energy and Industrial Strategy",The Coal Authority,13/03/2017,Minewater Power Costs,Environment - Contract Management,British Gas Business,11852,1220.21
"Department for Business, Energy and Industrial Strategy",The Coal Authority,13/03/2017,Minewater Power Costs,Environment - Contract Management,British Gas Business,11852,116.67
"Department for Business, Energy and Industrial Strategy",The Coal Authority,13/03/2017,Minewater Power Costs,Environment - Contract Management,British Gas Business,11852,509.91
"Department for Business, Energy and Industrial Strategy",The Coal Authority,13/03/2017,Minewater Power Costs,Environment - Contract Management,British Gas Business,11852,800.68
"Department for Business, Energy and Industrial Strategy",The Coal Authority,13/03/2017,Minewater Power Costs,Environment - Contract Management,British Gas Business,11852,773.98
"Department for Business, Energy and Industrial Strategy",The Coal Authority,13/03/2017,Minewater Power Costs,Environment - Contract Management,British Gas Business,11852,246.72
"Department for Business, Energy and Industrial Strategy",The Coal Authority,13/03/2017,Minewater Power Costs,Environment - Contract Management,British Gas Business,11852,906.83
"Department for Business, Energy and Industrial Strategy",The Coal Authority,13/03/2017,Minewater Power Costs,Environment - Contract Management,British Gas Business,11852,237.55
"Department for Business, Energy and Industrial Strategy",The Coal Authority,13/03/2017,Minewater Power Costs,Environment - Contract Management,British Gas Business,11852,2597.91
"Department for Business, Energy and Industrial Strategy",The Coal Authority,13/03/2017,Minewater Power Costs,Environment - Contract Management,British Gas Business,11852,1412.48
"Department for Business, Energy and Industrial Strategy",The Coal Authority,13/03/2017,Minewater Power Costs,Environment - Contract Management,British Gas Business,11852,579.53
"Department for Business, Energy and Industrial Strategy",The Coal Authority,13/03/2017,Minewater Power Costs,Environment - Contract Management,British Gas Business,11852,299.15
"Department for Business, Energy and Industrial Strategy",The Coal Authority,13/03/2017,Minewater Power Costs,Environment - Contract Management,British Gas Business,11852,1366.18
"Department for Business, Energy and Industrial Strategy",The Coal Authority,13/03/2017,Minewater Power Costs,Environment - Contract Management,British Gas Business,11852,769.59
"Department for Business, Energy and Industrial Strategy",The Coal Authority,13/03/2017,Minewater Power Costs,Environment - Contract Management,British Gas Business,11852,2855.74
"Department for Business, Energy and Industrial Strategy",The Coal Authority,13/03/2017,Minewater Power Costs,Environment - Contract Management,British Gas Business,11852,2392.57
"Department for Business, Energy and Industrial Strategy",The Coal Authority,13/03/2017,Minewater Power Costs,Environment - Contract Management,British Gas Business,11852,2922.66
"Department for Business, Energy and Industrial Strategy",The Coal Authority,13/03/2017,Minewater Power Costs,Environment - Contract Management,British Gas Business,11852,324.43
"Department for Business, Energy and Industrial Strategy",The Coal Authority,13/03/2017,Minewater Power Costs,Environment - Contract Management,British Gas Business,11852,1249.03
"Department for Business, Energy and Industrial Strategy",The Coal Authority,13/03/2017,Minewater Power Costs,Environment - Contract Management,British Gas Business,11852,798.23
"Department for Business, Energy and Industrial Strategy",The Coal Authority,13/03/2017,Minewater Power Costs,Environment - Contract Management,British Gas Business,11852,332.88
"Department for Business, Energy and Industrial Strategy",The Coal Authority,13/03/2017,Minewater Power Costs,Environment - Contract Management,British Gas Business,11852,8.06
"Department for Business, Energy and Industrial Strategy",The Coal Authority,13/03/2017,Minewater Power Costs,Environment - Contract Management,British Gas Business,11852,7506.35
"Department for Business, Energy and Industrial Strategy",The Coal Authority,13/03/2017,Minewater Power Costs,Environment - Contract Management,British Gas Business,11852,82.96
"Department for Business, Energy and Industrial Strategy",The Coal Authority,07/03/2017,Minewater Power Costs,Environment - Contract Management,Edf Energy,11642,285.3
"Department for Business, Energy and Industrial Strategy",The Coal Authority,07/03/2017,Minewater Power Costs,Environment - Contract Management,Edf Energy,11642,4160.93
"Department for Business, Energy and Industrial Strategy",The Coal Authority,07/03/2017,Minewater Power Costs,Environment - Contract Management,Edf Energy,11642,8046.73
"Department for Business, Energy and Industrial Strategy",The Coal Authority,07/03/2017,Minewater Power Costs,Environment - Contract Management,Edf Energy,11642,8406.86
"Department for Business, Energy and Industrial Strategy",The Coal Authority,07/03/2017,Minewater Power Costs,Environment - Contract Management,Edf Energy,11642,2638.71
"Department for Business, Energy and Industrial Strategy",The Coal Authority,07/03/2017,Minewater Power Costs,Environment - Contract Management,Edf Energy,11642,14203.73
"Department for Business, Energy and Industrial Strategy",The Coal Authority,07/03/2017,Minewater Power Costs,Environment - Contract Management,Edf Energy,11642,995.26
"Department for Business, Energy and Industrial Strategy",The Coal Authority,07/03/2017,Minewater Power Costs,Environment - Contract Management,Edf Energy,11642,3043.64
"Department for Business, Energy and Industrial Strategy",The Coal Authority,07/03/2017,Minewater Power Costs,Environment - Contract Management,Edf Energy,11642,4116.46
"Department for Business, Energy and Industrial Strategy",The Coal Authority,07/03/2017,Minewater Power Costs,Environment - Contract Management,Edf Energy,11642,6389.58
"Department for Business, Energy and Industrial Strategy",The Coal Authority,07/03/2017,Minewater Power Costs,Environment - Contract Management,Edf Energy,11642,9274.53
"Department for Business, Energy and Industrial Strategy",The Coal Authority,07/03/2017,Minewater Power Costs,Environment - Contract Management,Edf Energy,11642,13562.39
"Department for Business, Energy and Industrial Strategy",The Coal Authority,07/03/2017,Minewater Power Costs,Environment - Contract Management,Edf Energy,11642,9237.53
"Department for Business, Energy and Industrial Strategy",The Coal Authority,07/03/2017,Minewater Power Costs,Environment - Contract Management,Edf Energy,11642,4196.98
"Department for Business, Energy and Industrial Strategy",The Coal Authority,07/03/2017,Minewater Power Costs,Environment - Contract Management,Edf Energy,11642,116.1
"Department for Business, Energy and Industrial Strategy",The Coal Authority,07/03/2017,Minewater Power Costs,Environment - Contract Management,Edf Energy,11642,14196.55
"Department for Business, Energy and Industrial Strategy",The Coal Authority,07/03/2017,Minewater Power Costs,Environment - Contract Management,Edf Energy,11642,5465.23
"Department for Business, Energy and Industrial Strategy",The Coal Authority,07/03/2017,Minewater Power Costs,Environment - Contract Management,Edf Energy,11642,17058.15
"Department for Business, Energy and Industrial Strategy",The Coal Authority,03/03/2017,Minewater Power Costs,Environment - Contract Management,Edf Energy,11745,7053.38
"Department for Business, Energy and Industrial Strategy",The Coal Authority,03/03/2017,Minewater Power Costs,Environment - Contract Management,Edf Energy,11747,7053.38
"Department for Business, Energy and Industrial Strategy",The Coal Authority,07/02/2017,Minewater Power Costs,Environment - Contract Management,National Coal Mining Museum,11073,11962.31
"Department for Business, Energy and Industrial Strategy",The Coal Authority,08/03/2017,Minewater Power Costs,Environment - Contract Management,National Coal Mining Museum,11516,10951.86
"Department for Business, Energy and Industrial Strategy",The Coal Authority,03/04/2017,Minewater Pump Overhauls,Environment - Contract Management,11744 Severn Trent Serv Ops Uk Ltd,12014,3587.91
"Department for Business, Energy and Industrial Strategy",The Coal Authority,03/04/2017,Minewater Pump Overhauls,Environment - Contract Management,11744 Severn Trent Serv Ops Uk Ltd,12014,8671.3
"Department for Business, Energy and Industrial Strategy",The Coal Authority,31/10/2016,Minewater Pump Overhauls,Environment - Contract Management,8688 - The Deritend Group,11961,-6662.5
"Department for Business, Energy and Industrial Strategy",The Coal Authority,03/04/2017,Minewater Pumping Tests,Environment - Contract Management,11744 Severn Trent Serv Ops Uk Ltd,12014,12732.11
"Department for Business, Energy and Industrial Strategy",The Coal Authority,17/03/2017,Minewater Rates,Environment - Contract Management,Allerdale Borough Council,11536,2563
"Department for Business, Energy and Industrial Strategy",The Coal Authority,17/03/2017,Minewater Rates,Environment - Contract Management,Allerdale Borough Council,11537,2796
"Department for Business, Energy and Industrial Strategy",The Coal Authority,17/03/2017,Minewater Rates,Environment - Contract Management,Allerdale Borough Council,11538,3029
"Department for Business, Energy and Industrial Strategy",The Coal Authority,13/03/2017,Minewater Rates,Environment - Contract Management,Amber Valley Borough Council,11562,27542.5
"Department for Business, Energy and Industrial Strategy",The Coal Authority,01/03/2017,Minewater Rates,Environment - Contract Management,Barnsley Metropolitan Bor. Cou,11666,6220.37
"Department for Business, Energy and Industrial Strategy",The Coal Authority,01/03/2017,Minewater Rates,Environment - Contract Management,Barnsley Metropolitan Bor. Cou,11667,2330
"Department for Business, Energy and Industrial Strategy",The Coal Authority,01/03/2017,Minewater Rates,Environment - Contract Management,Barnsley Metropolitan Bor. Cou,11668,8155
"Department for Business, Energy and Industrial Strategy",The Coal Authority,01/03/2017,Minewater Rates,Environment - Contract Management,Barnsley Metropolitan Bor. Cou,11669,31868.84
"Department for Business, Energy and Industrial Strategy",The Coal Authority,29/03/2017,Minewater Rates,Environment - Contract Management,Blaenau Gwent County B C,11812,7485
"Department for Business, Energy and Industrial Strategy",The Coal Authority,13/03/2017,Minewater Rates,Environment - Contract Management,Bolsover District Council,11546,12815
"Department for Business, Energy and Industrial Strategy",The Coal Authority,13/03/2017,Minewater Rates,Environment - Contract Management,Burnley Borough Council,11529,3628.55
"Department for Business, Energy and Industrial Strategy",The Coal Authority,03/03/2017,Minewater Rates,Environment - Contract Management,Calderdale Metropolitan B C,11285,5825
"Department for Business, Energy and Industrial Strategy",The Coal Authority,13/03/2017,Minewater Rates,Environment - Contract Management,Cannock Chase District Council,11548,4660
"Department for Business, Energy and Industrial Strategy",The Coal Authority,13/03/2017,Minewater Rates,Environment - Contract Management,Cannock Chase District Council,11549,5592
"Department for Business, Energy and Industrial Strategy",The Coal Authority,08/03/2017,Minewater Rates,Environment - Contract Management,Carmarthenshire County Cl,11530,36177.5
"Department for Business, Energy and Industrial Strategy",The Coal Authority,08/03/2017,Minewater Rates,Environment - Contract Management,Carmarthenshire County Cl,11564,6237.5
"Department for Business, Energy and Industrial Strategy",The Coal Authority,02/03/2017,Minewater Rates,Environment - Contract Management,Chesterfield Borough Council,11284,6990
"Department for Business, Energy and Industrial Strategy",The Coal Authority,16/03/2017,Minewater Rates,Environment - Contract Management,City And County Of Swansea,11690,1746.5
"Department for Business, Energy and Industrial Strategy",The Coal Authority,08/03/2017,Minewater Rates,Environment - Contract Management,Cornwall Council,11565,33905.51
"Department for Business, Energy and Industrial Strategy",The Coal Authority,07/03/2017,Minewater Rates,Environment - Contract Management,Durham County Council,11539,3029
"Department for Business, Energy and Industrial Strategy",The Coal Authority,07/03/2017,Minewater Rates,Environment - Contract Management,Durham County Council,11541,2591.82
"Department for Business, Energy and Industrial Strategy",The Coal Authority,07/03/2017,Minewater Rates,Environment - Contract Management,Durham County Council,11543,4146.91
"Department for Business, Energy and Industrial Strategy",The Coal Authority,07/03/2017,Minewater Rates,Environment - Contract Management,Durham County Council,11557,12638.21
"Department for Business, Energy and Industrial Strategy",The Coal Authority,07/03/2017,Minewater Rates,Environment - Contract Management,Durham County Council,11558,1165
"Department for Business, Energy and Industrial Strategy",The Coal Authority,07/03/2017,Minewater Rates,Environment - Contract Management,Durham County Council,11559,11996.42
"Department for Business, Energy and Industrial Strategy",The Coal Authority,07/03/2017,Minewater Rates,Environment - Contract Management,Durham County Council,11561,3554.5
"Department for Business, Energy and Industrial Strategy",The Coal Authority,11/03/2017,Minewater Rates,Environment - Contract Management,Dwr Cymru Welsh Water,11515,34.4
"Department for Business, Energy and Industrial Strategy",The Coal Authority,15/03/2017,Minewater Rates,Environment - Contract Management,East Lothian Council,11810,38671.2
"Department for Business, Energy and Industrial Strategy",The Coal Authority,03/03/2017,Minewater Rates,Environment - Contract Management,Gateshead Council,11670,4739.33
"Department for Business, Energy and Industrial Strategy",The Coal Authority,13/03/2017,Minewater Rates,Environment - Contract Management,Merthyr Tydfil Borough Council,11556,6237.5
"Department for Business, Energy and Industrial Strategy",The Coal Authority,26/02/2017,Minewater Rates,Environment - Contract Management,Neath Port Talbot County B C,11255,6237.5
"Department for Business, Energy and Industrial Strategy",The Coal Authority,26/02/2017,Minewater Rates,Environment - Contract Management,Neath Port Talbot County B C,11256,7485
"Department for Business, Energy and Industrial Strategy",The Coal Authority,26/02/2017,Minewater Rates,Environment - Contract Management,Neath Port Talbot County B C,11257,2765.75
"Department for Business, Energy and Industrial Strategy",The Coal Authority,26/02/2017,Minewater Rates,Environment - Contract Management,Neath Port Talbot County B C,11258,8732.5
"Department for Business, Energy and Industrial Strategy",The Coal Authority,14/03/2017,Minewater Rates,Environment - Contract Management,Newcastle Under Lyme Bor Counc,11555,6757
"Department for Business, Energy and Industrial Strategy",The Coal Authority,15/03/2017,Minewater Rates,Environment - Contract Management,North East Derbyshire District Council,11534,5
"Department for Business, Energy and Industrial Strategy",The Coal Authority,06/03/2017,Minewater Rates,Environment - Contract Management,North East Derbyshire District Council,11625,1760.85
"Department for Business, Energy and Industrial Strategy",The Coal Authority,06/03/2017,Minewater Rates,Environment - Contract Management,Northumberland County Council,11671,2591.82
"Department for Business, Energy and Industrial Strategy",The Coal Authority,06/03/2017,Minewater Rates,Environment - Contract Management,Northumberland County Council,11672,24908
"Department for Business, Energy and Industrial Strategy",The Coal Authority,06/03/2017,Minewater Rates,Environment - Contract Management,Northumberland County Council,11673,42301.36
"Department for Business, Energy and Industrial Strategy",The Coal Authority,06/03/2017,Minewater Rates,Environment - Contract Management,Northumberland County Council,11674,6220.37
"Department for Business, Energy and Industrial Strategy",The Coal Authority,06/03/2017,Minewater Rates,Environment - Contract Management,Northumberland County Council,11677,13980
"Department for Business, Energy and Industrial Strategy",The Coal Authority,06/03/2017,Minewater Rates,Environment - Contract Management,Northumberland County Council,11678,3110.18
"Department for Business, Energy and Industrial Strategy",The Coal Authority,06/03/2017,Minewater Rates,Environment - Contract Management,Northumberland County Council,11680,6990
"Department for Business, Energy and Industrial Strategy",The Coal Authority,24/02/2017,Minewater Rates,Environment - Contract Management,Redcar&Cleveland Borough Council,11231,8388
"Department for Business, Energy and Industrial Strategy",The Coal Authority,13/03/2017,Minewater Rates,Environment - Contract Management,Rossendale Borough Council,11544,6220.37
"Department for Business, Energy and Industrial Strategy",The Coal Authority,13/03/2017,Minewater Rates,Environment - Contract Management,Salford City Council,11533,8155
"Department for Business, Energy and Industrial Strategy",The Coal Authority,09/03/2017,Minewater Rates,Environment - Contract Management,SHEFFIELD CITY COUNCIL,11535,2330
"Department for Business, Energy and Industrial Strategy",The Coal Authority,10/03/2017,Minewater Rates,Environment - Contract Management,South Tyneside Council,11547,1281.5
"Department for Business, Energy and Industrial Strategy",The Coal Authority,09/03/2017,Minewater Rates,Environment - Contract Management,Stoke On Trent City Council,11532,3961
"Department for Business, Energy and Industrial Strategy",The Coal Authority,06/03/2017,Minewater Rates,Environment - Contract Management,Tameside MBC,11531,3961
"Department for Business, Energy and Industrial Strategy",The Coal Authority,03/03/2017,Minewater Rates,Environment - Contract Management,Torfaen County Borough Council,11299,4491
"Department for Business, Energy and Industrial Strategy",The Coal Authority,14/03/2017,Minewater Rates,Environment - Contract Management,Wigan Council,11550,6990
"Department for Business, Energy and Industrial Strategy",The Coal Authority,14/03/2017,Minewater Rates,Environment - Contract Management,Wigan Council,11551,4660
"Department for Business, Energy and Industrial Strategy",The Coal Authority,14/03/2017,Minewater Rates,Environment - Contract Management,Wigan Council,11552,6291
"Department for Business, Energy and Industrial Strategy",The Coal Authority,14/03/2017,Minewater Rates,Environment - Contract Management,Wigan Council,11553,4660
"Department for Business, Energy and Industrial Strategy",The Coal Authority,14/03/2017,Minewater Rates,Environment - Contract Management,Wigan Council,11554,3262
"Department for Business, Energy and Industrial Strategy",The Coal Authority,03/04/2017,Minewater Remediation,Environment - Contract Management,11744 Severn Trent Serv Ops Uk Ltd,12014,4224.18
"Department for Business, Energy and Industrial Strategy",The Coal Authority,30/03/2017,Minewater Rent,Environment - Contract Management,Rental Payment,11902,400
"Department for Business, Energy and Industrial Strategy",The Coal Authority,30/03/2017,Minewater Rent,Environment - Contract Management,Drummohr Woods Llp,11904,1340.72
"Department for Business, Energy and Industrial Strategy",The Coal Authority,30/03/2017,Minewater Rent,Environment - Contract Management,Rental Payment,11907,100
"Department for Business, Energy and Industrial Strategy",The Coal Authority,30/03/2017,Minewater Rent,Environment - Contract Management,Rental Payment,11903,100
"Department for Business, Energy and Industrial Strategy",The Coal Authority,30/03/2017,Minewater Rent,Environment - Contract Management,Rental Payment,11901,1500
"Department for Business, Energy and Industrial Strategy",The Coal Authority,30/03/2017,Minewater Rent,Environment - Contract Management,Rental Payment,11908,1000
"Department for Business, Energy and Industrial Strategy",The Coal Authority,15/02/2017,Minewater Rent,Environment - Contract Management,Network Rail,11058,20
"Department for Business, Energy and Industrial Strategy",The Coal Authority,15/02/2017,Minewater Rent,Environment - Contract Management,North Tyneside Council,10917,600
"Department for Business, Energy and Industrial Strategy",The Coal Authority,24/03/2017,Minewater Rent,Environment - Contract Management,The Staunton Harold Estate,11751,625
"Department for Business, Energy and Industrial Strategy",The Coal Authority,03/04/2017,Minewater Sampling - Operational Sites,Environment - Contract Management,11744 Severn Trent Serv Ops Uk Ltd,12014,131.49
"Department for Business, Energy and Industrial Strategy",The Coal Authority,03/04/2017,Minewater Sampling - Operational Sites,Environment - Contract Management,11744 Severn Trent Serv Ops Uk Ltd,12014,68.54
"Department for Business, Energy and Industrial Strategy",The Coal Authority,03/04/2017,Minewater Sampling - Operational Sites,Environment - Contract Management,11744 Severn Trent Serv Ops Uk Ltd,12014,33.2
"Department for Business, Energy and Industrial Strategy",The Coal Authority,03/04/2017,Minewater Sampling - Operational Sites,Environment - Contract Management,11744 Severn Trent Serv Ops Uk Ltd,12014,30.44
"Department for Business, Energy and Industrial Strategy",The Coal Authority,03/04/2017,Minewater Sampling - Operational Sites,Environment - Contract Management,11744 Severn Trent Serv Ops Uk Ltd,12014,230.13
"Department for Business, Energy and Industrial Strategy",The Coal Authority,03/04/2017,Minewater Sampling - Operational Sites,Environment - Contract Management,11744 Severn Trent Serv Ops Uk Ltd,12014,51.54
"Department for Business, Energy and Industrial Strategy",The Coal Authority,03/04/2017,Minewater Sampling - Operational Sites,Environment - Contract Management,11744 Severn Trent Serv Ops Uk Ltd,12014,54.45
"Department for Business, Energy and Industrial Strategy",The Coal Authority,03/04/2017,Minewater Sampling - Operational Sites,Environment - Contract Management,11744 Severn Trent Serv Ops Uk Ltd,12014,662.36
"Department for Business, Energy and Industrial Strategy",The Coal Authority,03/04/2017,Minewater Sampling - Operational Sites,Environment - Contract Management,11744 Severn Trent Serv Ops Uk Ltd,12014,218.9
"Department for Business, Energy and Industrial Strategy",The Coal Authority,03/04/2017,Minewater Sampling - Operational Sites,Environment - Contract Management,11744 Severn Trent Serv Ops Uk Ltd,12014,22.14
"Department for Business, Energy and Industrial Strategy",The Coal Authority,03/04/2017,Minewater Sampling - Operational Sites,Environment - Contract Management,11744 Severn Trent Serv Ops Uk Ltd,12014,56.8
"Department for Business, Energy and Industrial Strategy",The Coal Authority,03/04/2017,Minewater Sampling - Operational Sites,Environment - Contract Management,11744 Severn Trent Serv Ops Uk Ltd,12014,172.69
"Department for Business, Energy and Industrial Strategy",The Coal Authority,03/04/2017,Minewater Sampling - Operational Sites,Environment - Contract Management,11744 Severn Trent Serv Ops Uk Ltd,12014,24.22
"Department for Business, Energy and Industrial Strategy",The Coal Authority,03/04/2017,Minewater Sampling - Operational Sites,Environment - Contract Management,11744 Severn Trent Serv Ops Uk Ltd,12014,32.09
"Department for Business, Energy and Industrial Strategy",The Coal Authority,03/04/2017,Minewater Sampling - Operational Sites,Environment - Contract Management,11744 Severn Trent Serv Ops Uk Ltd,12014,19.87
"Department for Business, Energy and Industrial Strategy",The Coal Authority,03/04/2017,Minewater Sampling - Operational Sites,Environment - Contract Management,11744 Severn Trent Serv Ops Uk Ltd,12014,146.67
"Department for Business, Energy and Industrial Strategy",The Coal Authority,03/04/2017,Minewater Sampling - Operational Sites,Environment - Contract Management,11744 Severn Trent Serv Ops Uk Ltd,12014,22.77
"Department for Business, Energy and Industrial Strategy",The Coal Authority,03/04/2017,Minewater Sampling - Operational Sites,Environment - Contract Management,11744 Severn Trent Serv Ops Uk Ltd,12014,79.49
"Department for Business, Energy and Industrial Strategy",The Coal Authority,03/04/2017,Minewater Sampling - Operational Sites,Environment - Contract Management,11744 Severn Trent Serv Ops Uk Ltd,12014,26.63
"Department for Business, Energy and Industrial Strategy",The Coal Authority,03/04/2017,Minewater Sampling - Operational Sites,Environment - Contract Management,11744 Severn Trent Serv Ops Uk Ltd,12014,27.66
"Department for Business, Energy and Industrial Strategy",The Coal Authority,03/04/2017,Minewater Sampling - Operational Sites,Environment - Contract Management,11744 Severn Trent Serv Ops Uk Ltd,12014,22.77
"Department for Business, Energy and Industrial Strategy",The Coal Authority,03/04/2017,Minewater Sampling - Operational Sites,Environment - Contract Management,11744 Severn Trent Serv Ops Uk Ltd,12014,33.2
"Department for Business, Energy and Industrial Strategy",The Coal Authority,03/04/2017,Minewater Sampling - Operational Sites,Environment - Contract Management,11744 Severn Trent Serv Ops Uk Ltd,12014,426.76
"Department for Business, Energy and Industrial Strategy",The Coal Authority,03/04/2017,Minewater Sampling - Operational Sites,Environment - Contract Management,11744 Severn Trent Serv Ops Uk Ltd,12014,278.4
"Department for Business, Energy and Industrial Strategy",The Coal Authority,03/04/2017,Minewater Sampling - Operational Sites,Environment - Contract Management,11744 Severn Trent Serv Ops Uk Ltd,12014,43.59
"Department for Business, Energy and Industrial Strategy",The Coal Authority,03/04/2017,Minewater Sampling - Operational Sites,Environment - Contract Management,11744 Severn Trent Serv Ops Uk Ltd,12014,1255.25
"Department for Business, Energy and Industrial Strategy",The Coal Authority,03/04/2017,Minewater Sampling - Operational Sites,Environment - Contract Management,11744 Severn Trent Serv Ops Uk Ltd,12014,38.05
"Department for Business, Energy and Industrial Strategy",The Coal Authority,03/04/2017,Minewater Sampling - Operational Sites,Environment - Contract Management,11744 Severn Trent Serv Ops Uk Ltd,12014,12.18
"Department for Business, Energy and Industrial Strategy",The Coal Authority,03/04/2017,Minewater Sampling - Operational Sites,Environment - Contract Management,11744 Severn Trent Serv Ops Uk Ltd,12014,44.91
"Department for Business, Energy and Industrial Strategy",The Coal Authority,03/04/2017,Minewater Sampling - Operational Sites,Environment - Contract Management,11744 Severn Trent Serv Ops Uk Ltd,12014,41.68
"Department for Business, Energy and Industrial Strategy",The Coal Authority,03/04/2017,Minewater Sampling - Operational Sites,Environment - Contract Management,11744 Severn Trent Serv Ops Uk Ltd,12014,19.75
"Department for Business, Energy and Industrial Strategy",The Coal Authority,03/04/2017,Minewater Sampling - Operational Sites,Environment - Contract Management,11744 Severn Trent Serv Ops Uk Ltd,12014,170.37
"Department for Business, Energy and Industrial Strategy",The Coal Authority,03/04/2017,Minewater Sampling - Operational Sites,Environment - Contract Management,11744 Severn Trent Serv Ops Uk Ltd,12014,19477.68
"Department for Business, Energy and Industrial Strategy",The Coal Authority,03/04/2017,Minewater Sampling - Operational Sites,Environment - Contract Management,11744 Severn Trent Serv Ops Uk Ltd,12014,1406.91
"Department for Business, Energy and Industrial Strategy",The Coal Authority,03/04/2017,Minewater Sampling - Operational Sites,Environment - Contract Management,11744 Severn Trent Serv Ops Uk Ltd,12014,47.24
"Department for Business, Energy and Industrial Strategy",The Coal Authority,03/04/2017,Minewater Sampling - Operational Sites,Environment - Contract Management,11744 Severn Trent Serv Ops Uk Ltd,12014,-217.14
"Department for Business, Energy and Industrial Strategy",The Coal Authority,03/04/2017,Minewater Sludge Disposal,Environment - Contract Management,11744 Severn Trent Serv Ops Uk Ltd,12014,1962.1
"Department for Business, Energy and Industrial Strategy",The Coal Authority,03/04/2017,Minewater Sludge Disposal,Environment - Contract Management,11744 Severn Trent Serv Ops Uk Ltd,12014,1629.56
"Department for Business, Energy and Industrial Strategy",The Coal Authority,03/04/2017,Minewater Sludge Disposal,Environment - Contract Management,11744 Severn Trent Serv Ops Uk Ltd,12014,-31.34
"Department for Business, Energy and Industrial Strategy",The Coal Authority,03/04/2017,Minewater Sludge Disposal,Environment - Contract Management,11744 Severn Trent Serv Ops Uk Ltd,12014,15143.29
"Department for Business, Energy and Industrial Strategy",The Coal Authority,03/04/2017,Minewater Sludge Disposal,Environment - Contract Management,11744 Severn Trent Serv Ops Uk Ltd,12014,40.19
"Department for Business, Energy and Industrial Strategy",The Coal Authority,03/04/2017,Minewater Sludge Disposal,Environment - Contract Management,11744 Severn Trent Serv Ops Uk Ltd,12014,24575.3
"Department for Business, Energy and Industrial Strategy",The Coal Authority,03/04/2017,Minewater Sludge Disposal,Environment - Contract Management,11744 Severn Trent Serv Ops Uk Ltd,12014,5803.37
"Department for Business, Energy and Industrial Strategy",The Coal Authority,06/03/2017,Minewater Sludge Disposal,Environment - Contract Management,Whitcher Wildlife Ltd.,11206,710
"Department for Business, Energy and Industrial Strategy",The Coal Authority,02/02/2017,Minewater Telecoms & Telemetry,Environment - Contract Management,O2 (Uk) Limited,10907,12.5
"Department for Business, Energy and Industrial Strategy",The Coal Authority,02/03/2017,Minewater Telecoms & Telemetry,Environment - Contract Management,O2 (Uk) Limited,11202,12.5
"Department for Business, Energy and Industrial Strategy",The Coal Authority,02/03/2017,Minewater Telecoms & Telemetry,Environment - Contract Management,O2 (Uk) Limited,11203,12.5
"Department for Business, Energy and Industrial Strategy",The Coal Authority,02/03/2017,Minewater Telecoms & Telemetry,Environment - Contract Management,O2 (Uk) Limited,11204,12.5
"Department for Business, Energy and Industrial Strategy",The Coal Authority,14/03/2017,Minewater Telecoms & Telemetry,Environment - Contract Management,Vodafone Limited (Corporate),11597,559.12
"Department for Business, Energy and Industrial Strategy",The Coal Authority,22/02/2017,Minewater Water Charges,Environment - Contract Management,National Coal Mining Museum,11074,2651.26
"Department for Business, Energy and Industrial Strategy",The Coal Authority,02/03/2017,Minewater Water Charges,Environment - Contract Management,Northumbrian Water Limited,11351,-127.57
"Department for Business, Energy and Industrial Strategy",The Coal Authority,03/04/2017,Research & Development,Environment - Contract Management,11744 Severn Trent Serv Ops Uk Ltd,12014,38.32
"Department for Business, Energy and Industrial Strategy",The Coal Authority,28/02/2017,Short Term Vehicle Hire,Environment - Contract Management,Enterprise Rent A Car,10888,25.56
"Department for Business, Energy and Industrial Strategy",The Coal Authority,04/04/2017,Subsidence - Consultancy,Environment - Contract Management,11826 - Mark Carey Lunch,12101,-6.32
"Department for Business, Energy and Industrial Strategy",The Coal Authority,04/04/2017,Subsidence - Consultancy,Environment - Contract Management,7648 Danvm Drainage,12101,-186.43
"Department for Business, Energy and Industrial Strategy",The Coal Authority,04/04/2017,Subsidence - Consultancy,Environment - Contract Management,7648 Danvm Drainage,12101,-186.43
"Department for Business, Energy and Industrial Strategy",The Coal Authority,04/04/2017,Subsidence - Consultancy,Environment - Contract Management,7648 Danvm Drainage,12101,-187.59
"Department for Business, Energy and Industrial Strategy",The Coal Authority,04/04/2017,Subsidence - Consultancy,Environment - Contract Management,7648 Danvm Drainage,12101,-1579.27
"Department for Business, Energy and Industrial Strategy",The Coal Authority,04/04/2017,Subsidence - Consultancy,Environment - Contract Management,7648 Danvm Drainage,12101,-164.99
"Department for Business, Energy and Industrial Strategy",The Coal Authority,04/04/2017,Subsidence - Consultancy,Environment - Contract Management,7648 Danvm Drainage,12101,-189.92
"Department for Business, Energy and Industrial Strategy",The Coal Authority,04/04/2017,Subsidence - Consultancy,Environment - Contract Management,7648 Danvm Drainage,12101,-188.76
"Department for Business, Energy and Industrial Strategy",The Coal Authority,04/04/2017,Subsidence - Consultancy,Environment - Contract Management,7850 British Gas,12101,-38.39
"Department for Business, Energy and Industrial Strategy",The Coal Authority,22/03/2017,Subsidence - Contractor & Claim Costs,Environment - Contract Management,10600 Hmrc Shipley,11545,-7000
"Department for Business, Energy and Industrial Strategy",The Coal Authority,22/03/2017,Subsidence - Contractor & Claim Costs,Environment - Contract Management,10608 Mainstay Payments Limited,11545,-120
"Department for Business, Energy and Industrial Strategy",The Coal Authority,04/04/2017,Subsidence - Contractor & Claim Costs,Environment - Contract Management,10977 Mainstay Payments,12101,-144
"Department for Business, Energy and Industrial Strategy",The Coal Authority,04/04/2017,Subsidence - Contractor & Claim Costs,Environment - Contract Management,10978 Mainstay Payments,12101,-144
"Department for Business, Energy and Industrial Strategy",The Coal Authority,10/04/2017,Subsidence - Contractor & Claim Costs,Environment - Contract Management,11364 Fisher German,12429,-3814.19
"Department for Business, Energy and Industrial Strategy",The Coal Authority,14/03/2017,Subsidence - Contractor & Claim Costs,Environment - Contract Management,Fisher German,11364,3814.19
"Department for Business, Energy and Industrial Strategy",The Coal Authority,06/03/2017,Subsidence - Contractor & Claim Costs,Environment - Contract Management,Mainstay Payments Limited,10977,144
"Department for Business, Energy and Industrial Strategy",The Coal Authority,06/03/2017,Subsidence - Contractor & Claim Costs,Environment - Contract Management,Mainstay Payments Limited,10978,144
"Department for Business, Energy and Industrial Strategy",The Coal Authority,04/04/2017,Subsidence Pumping Maintenance - Other,Environment - Contract Management,10809 10461 STS Staff Costs - January Actual,12101,-25.26
"Department for Business, Energy and Industrial Strategy",The Coal Authority,03/04/2017,Subsidence Pumping Maintenance - Other,Environment - Contract Management,11744 Severn Trent Serv Ops Uk Ltd,12014,49.01
"Department for Business, Energy and Industrial Strategy",The Coal Authority,03/04/2017,Subsidence Pumping Maintenance - Other,Environment - Contract Management,11744 Severn Trent Serv Ops Uk Ltd,12014,44.8
"Department for Business, Energy and Industrial Strategy",The Coal Authority,03/04/2017,Subsidence Pumping Maintenance - Other,Environment - Contract Management,11744 Severn Trent Serv Ops Uk Ltd,12014,24.83
"Department for Business, Energy and Industrial Strategy",The Coal Authority,03/04/2017,Subsidence Pumping Maintenance - Other,Environment - Contract Management,11744 Severn Trent Serv Ops Uk Ltd,12014,13.33
"Department for Business, Energy and Industrial Strategy",The Coal Authority,03/04/2017,Subsidence Pumping Maintenance - Other,Environment - Contract Management,11744 Severn Trent Serv Ops Uk Ltd,12014,5.68
"Department for Business, Energy and Industrial Strategy",The Coal Authority,03/04/2017,Subsidence Pumping Maintenance - Other,Environment - Contract Management,11744 Severn Trent Serv Ops Uk Ltd,12014,24.3
"Department for Business, Energy and Industrial Strategy",The Coal Authority,03/04/2017,Subsidence Pumping Maintenance - Other,Environment - Contract Management,11744 Severn Trent Serv Ops Uk Ltd,12014,16.6
"Department for Business, Energy and Industrial Strategy",The Coal Authority,03/04/2017,Subsidence Pumping Maintenance - Other,Environment - Contract Management,11744 Severn Trent Serv Ops Uk Ltd,12014,16.62
"Department for Business, Energy and Industrial Strategy",The Coal Authority,03/04/2017,Subsidence Pumping Maintenance - Other,Environment - Contract Management,11744 Severn Trent Serv Ops Uk Ltd,12014,695.55
"Department for Business, Energy and Industrial Strategy",The Coal Authority,03/04/2017,Subsidence Pumping Maintenance - Other,Environment - Contract Management,11744 Severn Trent Serv Ops Uk Ltd,12014,11.02
"Department for Business, Energy and Industrial Strategy",The Coal Authority,03/04/2017,Subsidence Pumping Maintenance - Other,Environment - Contract Management,11744 Severn Trent Serv Ops Uk Ltd,12014,2273.84
"Department for Business, Energy and Industrial Strategy",The Coal Authority,03/04/2017,Subsidence Pumping Maintenance - Other,Environment - Contract Management,11744 Severn Trent Serv Ops Uk Ltd,12014,5.06
"Department for Business, Energy and Industrial Strategy",The Coal Authority,03/04/2017,Subsidence Pumping Maintenance - Other,Environment - Contract Management,11744 Severn Trent Serv Ops Uk Ltd,12014,34.52
"Department for Business, Energy and Industrial Strategy",The Coal Authority,03/04/2017,Subsidence Pumping Maintenance - Other,Environment - Contract Management,11744 Severn Trent Serv Ops Uk Ltd,12014,31.58
"Department for Business, Energy and Industrial Strategy",The Coal Authority,03/04/2017,Subsidence Pumping Maintenance - Other,Environment - Contract Management,11744 Severn Trent Serv Ops Uk Ltd,12014,24.97
"Department for Business, Energy and Industrial Strategy",The Coal Authority,03/04/2017,Subsidence Pumping Maintenance - Other,Environment - Contract Management,11744 Severn Trent Serv Ops Uk Ltd,12014,27.91
"Department for Business, Energy and Industrial Strategy",The Coal Authority,03/04/2017,Subsidence Pumping Maintenance - Other,Environment - Contract Management,11744 Severn Trent Serv Ops Uk Ltd,12014,30
"Department for Business, Energy and Industrial Strategy",The Coal Authority,03/04/2017,Subsidence Pumping Maintenance - Other,Environment - Contract Management,11744 Severn Trent Serv Ops Uk Ltd,12014,99.36
"Department for Business, Energy and Industrial Strategy",The Coal Authority,03/04/2017,Subsidence Pumping Maintenance - Other,Environment - Contract Management,11744 Severn Trent Serv Ops Uk Ltd,12014,30.86
"Department for Business, Energy and Industrial Strategy",The Coal Authority,03/04/2017,Subsidence Pumping Maintenance - Other,Environment - Contract Management,11744 Severn Trent Serv Ops Uk Ltd,12014,7875.72
"Department for Business, Energy and Industrial Strategy",The Coal Authority,10/04/2017,Subsidence Pumping Maintenance - Other,Environment - Contract Management,3019 Danvm Drainage Commissioners,12416,-17627.71
"Department for Business, Energy and Industrial Strategy",The Coal Authority,10/04/2017,Subsidence Pumping Maintenance - Other,Environment - Contract Management,3105 Jeremy Benn Associates Ltd,12401,-1860
"Department for Business, Energy and Industrial Strategy",The Coal Authority,10/04/2017,Subsidence Pumping Maintenance - Other,Environment - Contract Management,3846 Jeremy Benn Associates Ltd,12416,-2437.2
"Department for Business, Energy and Industrial Strategy",The Coal Authority,10/04/2017,Subsidence Pumping Maintenance - Other,Environment - Contract Management,4365 Danvm Drainage Commissioners,12416,-6748.8
"Department for Business, Energy and Industrial Strategy",The Coal Authority,10/04/2017,Subsidence Pumping Maintenance - Other,Environment - Contract Management,5890 Jeremy Benn Associates Ltd,12416,-1092.5
"Department for Business, Energy and Industrial Strategy",The Coal Authority,06/03/2017,Subsidence Pumping Maintenance - Other,Environment - Contract Management,6818-Cancellation of invoice,10909,-3497.6
"Department for Business, Energy and Industrial Strategy",The Coal Authority,10/04/2017,Subsidence Pumping Maintenance - Other,Environment - Contract Management,7399 Jeremy Benn Associates Ltd,12416,-389.3
"Department for Business, Energy and Industrial Strategy",The Coal Authority,04/04/2017,Subsidence Pumping Maintenance - Other,Environment - Contract Management,8349 Danvm Drainage Commissioners,12101,-14343.3
"Department for Business, Energy and Industrial Strategy",The Coal Authority,10/04/2017,Subsidence Pumping Maintenance - Other,Environment - Contract Management,9459 Briggs Land Drainage & Excavations Ltd,12401,-2543.61
"Department for Business, Energy and Industrial Strategy",The Coal Authority,13/03/2017,Subsidence Pumping Maintenance - Other,Environment - Contract Management,British Gas Business,11852,89.37
"Department for Business, Energy and Industrial Strategy",The Coal Authority,02/03/2017,Subsidence Pumping Maintenance - Other,Environment - Contract Management,Danvm Drainage Commissioners,11109,55.64
"Department for Business, Energy and Industrial Strategy",The Coal Authority,20/03/2017,Subsidence Pumping Maintenance - Other,Environment - Contract Management,Danvm Drainage Commissioners,11447,71.64
"Department for Business, Energy and Industrial Strategy",The Coal Authority,20/03/2017,Subsidence Pumping Maintenance - Other,Environment - Contract Management,Danvm Drainage Commissioners,11448,207.88
"Department for Business, Energy and Industrial Strategy",The Coal Authority,21/03/2017,Subsidence Pumping Maintenance - Other,Environment - Contract Management,Danvm Drainage Commissioners,11504,20485.9
"Department for Business, Energy and Industrial Strategy",The Coal Authority,27/02/2017,Subsidence Pumping Maintenance - Other,Environment - Contract Management,Jeremy Benn Associates Ltd,10862,368.7
"Department for Business, Energy and Industrial Strategy",The Coal Authority,13/10/2016,Subsidence Pumping Maintenance - Other,Environment - Contract Management,Ouse&Derwnt Intern Drainge Brd,10939,3497.6
"Department for Business, Energy and Industrial Strategy",The Coal Authority,06/03/2017,Subsidence Pumping Maintenance - Power,Environment - Contract Management,6818-Cancellation of invoice,10909,-639.43
"Department for Business, Energy and Industrial Strategy",The Coal Authority,18/11/2016,Subsidence Pumping Maintenance - Power,Environment - Contract Management,7456 - British Gas Business,11804,-64.76
"Department for Business, Energy and Industrial Strategy",The Coal Authority,18/11/2016,Subsidence Pumping Maintenance - Power,Environment - Contract Management,7459 - British Gas Business,11804,-2147.6
"Department for Business, Energy and Industrial Strategy",The Coal Authority,18/11/2016,Subsidence Pumping Maintenance - Power,Environment - Contract Management,7460 - British Gas Business,11804,-179.51
"Department for Business, Energy and Industrial Strategy",The Coal Authority,04/04/2017,Subsidence Pumping Maintenance - Power,Environment - Contract Management,7648 Danvm Drainage,12101,186.43
"Department for Business, Energy and Industrial Strategy",The Coal Authority,04/04/2017,Subsidence Pumping Maintenance - Power,Environment - Contract Management,7648 Danvm Drainage,12101,186.43
"Department for Business, Energy and Industrial Strategy",The Coal Authority,04/04/2017,Subsidence Pumping Maintenance - Power,Environment - Contract Management,7648 Danvm Drainage,12101,187.59
"Department for Business, Energy and Industrial Strategy",The Coal Authority,04/04/2017,Subsidence Pumping Maintenance - Power,Environment - Contract Management,7648 Danvm Drainage,12101,1579.27
"Department for Business, Energy and Industrial Strategy",The Coal Authority,04/04/2017,Subsidence Pumping Maintenance - Power,Environment - Contract Management,7648 Danvm Drainage,12101,164.99
"Department for Business, Energy and Industrial Strategy",The Coal Authority,04/04/2017,Subsidence Pumping Maintenance - Power,Environment - Contract Management,7648 Danvm Drainage,12101,189.92
"Department for Business, Energy and Industrial Strategy",The Coal Authority,04/04/2017,Subsidence Pumping Maintenance - Power,Environment - Contract Management,7648 Danvm Drainage,12101,188.76
"Department for Business, Energy and Industrial Strategy",The Coal Authority,04/04/2017,Subsidence Pumping Maintenance - Power,Environment - Contract Management,7850 British Gas,12101,38.39
"Department for Business, Energy and Industrial Strategy",The Coal Authority,31/12/2016,Subsidence Pumping Maintenance - Power,Environment - Contract Management,9848-Doncaster East IDB,11296,0.2
"Department for Business, Energy and Industrial Strategy",The Coal Authority,31/12/2016,Subsidence Pumping Maintenance - Power,Environment - Contract Management,9848-Doncaster East IDB,11297,-0.2
"Department for Business, Energy and Industrial Strategy",The Coal Authority,13/02/2017,Subsidence Pumping Maintenance - Power,Environment - Contract Management,British Gas Business,10834,25.3
"Department for Business, Energy and Industrial Strategy",The Coal Authority,13/02/2017,Subsidence Pumping Maintenance - Power,Environment - Contract Management,British Gas Business,10834,32.16
"Department for Business, Energy and Industrial Strategy",The Coal Authority,13/02/2017,Subsidence Pumping Maintenance - Power,Environment - Contract Management,British Gas Business,10834,93.47
"Department for Business, Energy and Industrial Strategy",The Coal Authority,13/02/2017,Subsidence Pumping Maintenance - Power,Environment - Contract Management,British Gas Business,10834,10.5
"Department for Business, Energy and Industrial Strategy",The Coal Authority,13/02/2017,Subsidence Pumping Maintenance - Power,Environment - Contract Management,British Gas Business,10834,36.62
"Department for Business, Energy and Industrial Strategy",The Coal Authority,13/02/2017,Subsidence Pumping Maintenance - Power,Environment - Contract Management,British Gas Business,10834,210.57
"Department for Business, Energy and Industrial Strategy",The Coal Authority,13/02/2017,Subsidence Pumping Maintenance - Power,Environment - Contract Management,British Gas Business,10834,55.33
"Department for Business, Energy and Industrial Strategy",The Coal Authority,13/03/2017,Subsidence Pumping Maintenance - Power,Environment - Contract Management,British Gas Business,11845,44.5
"Department for Business, Energy and Industrial Strategy",The Coal Authority,13/03/2017,Subsidence Pumping Maintenance - Power,Environment - Contract Management,British Gas Business,11845,28.44
"Department for Business, Energy and Industrial Strategy",The Coal Authority,13/03/2017,Subsidence Pumping Maintenance - Power,Environment - Contract Management,British Gas Business,11845,102.87
"Department for Business, Energy and Industrial Strategy",The Coal Authority,13/03/2017,Subsidence Pumping Maintenance - Power,Environment - Contract Management,British Gas Business,11845,26.08
"Department for Business, Energy and Industrial Strategy",The Coal Authority,13/03/2017,Subsidence Pumping Maintenance - Power,Environment - Contract Management,British Gas Business,11845,42.09
"Department for Business, Energy and Industrial Strategy",The Coal Authority,13/03/2017,Subsidence Pumping Maintenance - Power,Environment - Contract Management,British Gas Business,11845,184.41
"Department for Business, Energy and Industrial Strategy",The Coal Authority,13/03/2017,Subsidence Pumping Maintenance - Power,Environment - Contract Management,British Gas Business,11845,49.05
"Department for Business, Energy and Industrial Strategy",The Coal Authority,13/03/2017,Subsidence Pumping Maintenance - Power,Environment - Contract Management,British Gas Business,11852,61.16
"Department for Business, Energy and Industrial Strategy",The Coal Authority,13/03/2017,Subsidence Pumping Maintenance - Power,Environment - Contract Management,British Gas Business,11852,41.07
"Department for Business, Energy and Industrial Strategy",The Coal Authority,13/03/2017,Subsidence Pumping Maintenance - Power,Environment - Contract Management,British Gas Business,11852,497.48
"Department for Business, Energy and Industrial Strategy",The Coal Authority,13/03/2017,Subsidence Pumping Maintenance - Power,Environment - Contract Management,British Gas Business,11852,1394.35
"Department for Business, Energy and Industrial Strategy",The Coal Authority,13/03/2017,Subsidence Pumping Maintenance - Power,Environment - Contract Management,British Gas Business,11852,128.39
"Department for Business, Energy and Industrial Strategy",The Coal Authority,13/03/2017,Subsidence Pumping Maintenance - Power,Environment - Contract Management,British Gas Business,11852,331.57
"Department for Business, Energy and Industrial Strategy",The Coal Authority,13/03/2017,Subsidence Pumping Maintenance - Power,Environment - Contract Management,British Gas Business,11852,256.51
"Department for Business, Energy and Industrial Strategy",The Coal Authority,13/03/2017,Subsidence Pumping Maintenance - Power,Environment - Contract Management,British Gas Business,11852,155.79
"Department for Business, Energy and Industrial Strategy",The Coal Authority,13/03/2017,Subsidence Pumping Maintenance - Power,Environment - Contract Management,British Gas Business,11852,169.1
"Department for Business, Energy and Industrial Strategy",The Coal Authority,13/03/2017,Subsidence Pumping Maintenance - Power,Environment - Contract Management,British Gas Business,11852,145.23
"Department for Business, Energy and Industrial Strategy",The Coal Authority,13/03/2017,Subsidence Pumping Maintenance - Power,Environment - Contract Management,British Gas Business,11852,7.64
"Department for Business, Energy and Industrial Strategy",The Coal Authority,13/03/2017,Subsidence Pumping Maintenance - Power,Environment - Contract Management,British Gas Business,11852,49.69
"Department for Business, Energy and Industrial Strategy",The Coal Authority,13/03/2017,Subsidence Pumping Maintenance - Power,Environment - Contract Management,British Gas Business,11852,440.38
"Department for Business, Energy and Industrial Strategy",The Coal Authority,13/03/2017,Subsidence Pumping Maintenance - Power,Environment - Contract Management,British Gas Business,11852,317.59
"Department for Business, Energy and Industrial Strategy",The Coal Authority,02/02/2017,Subsidence Pumping Maintenance - Power,Environment - Contract Management,Danvm Drainage Commissioners,11631,83.62
"Department for Business, Energy and Industrial Strategy",The Coal Authority,07/03/2017,Subsidence Pumping Maintenance - Power,Environment - Contract Management,Edf Energy,11642,1442.53
"Department for Business, Energy and Industrial Strategy",The Coal Authority,07/03/2017,Subsidence Pumping Maintenance - Power,Environment - Contract Management,Edf Energy,11642,481.52
"Department for Business, Energy and Industrial Strategy",The Coal Authority,07/03/2017,Subsidence Pumping Maintenance - Power,Environment - Contract Management,Edf Energy,11642,548.09
"Department for Business, Energy and Industrial Strategy",The Coal Authority,07/03/2017,Subsidence Pumping Maintenance - Power,Environment - Contract Management,Edf Energy,11642,2333.91
"Department for Business, Energy and Industrial Strategy",The Coal Authority,07/03/2017,Subsidence Pumping Maintenance - Power,Environment - Contract Management,Edf Energy,11642,243.24
"Department for Business, Energy and Industrial Strategy",The Coal Authority,05/02/2017,Subsidence Pumping Maintenance - Power,Environment - Contract Management,Methley Estates (Holdings) Ltd,11229,628.06
"Department for Business, Energy and Industrial Strategy",The Coal Authority,13/10/2016,Subsidence Pumping Maintenance - Power,Environment - Contract Management,Ouse&Derwnt Intern Drainge Brd,10939,639.43
"Department for Business, Energy and Industrial Strategy",The Coal Authority,04/04/2017,Subsistence Allowances,Environment - Contract Management,Staff Expenses Control,12101,6.32
"Department for Business, Energy and Industrial Strategy",The Coal Authority,31/12/2016,Temporary Contractors,Environment - Contract Management,Cumbrian Resources Ltd,11445,3840
"Department for Business, Energy and Industrial Strategy",The Coal Authority,20/03/2017,Temporary Contractors,Environment - Contract Management,Cumbrian Resources Ltd,11446,6400
"Department for Business, Energy and Industrial Strategy",The Coal Authority,28/03/2017,Training & Education,Environment - Contract Management,Association of Drainage Authorities,11754,70
"Department for Business, Energy and Industrial Strategy",The Coal Authority,07/03/2017,Training & Education,Environment - Contract Management,The Chartered Institute of Arbitrators,11157,2000
"Department for Business, Energy and Industrial Strategy",The Coal Authority,07/03/2017,Training & Education,Environment - Contract Management,The Chartered Institute of Arbitrators,11158,1300
"Department for Business, Energy and Industrial Strategy",The Coal Authority,07/03/2017,Training & Education,Environment - Contract Management,The Chartered Institute of Arbitrators,11159,400
"Department for Business, Energy and Industrial Strategy",The Coal Authority,04/04/2017,CY - Land - Additions,Environment - DEFRA - EA Programme,7977 Nicholson Portnell Solicitors,12101,60000
"Department for Business, Energy and Industrial Strategy",The Coal Authority,04/04/2017,CY - Land - Additions,Environment - DEFRA - EA Programme,7977 Nicholson Portnell Solicitors,12101,-60000
"Department for Business, Energy and Industrial Strategy",The Coal Authority,05/04/2017,CY - Non-coal Minewater - Additions,Environment - DEFRA - EA Programme,7803 JIM DAVIES CIVEL ENGINEERING,12178,10615.92
"Department for Business, Energy and Industrial Strategy",The Coal Authority,05/04/2017,CY - Non-coal Minewater - Additions,Environment - DEFRA - EA Programme,7803 JIM DAVIES CIVEL ENGINEERING,12178,-10615.92
"Department for Business, Energy and Industrial Strategy",The Coal Authority,13/03/2017,CY - Non-coal Minewater - Additions,Environment - DEFRA - EA Programme,Jim Davies Civil Engineering,11506,12107.96
"Department for Business, Energy and Industrial Strategy",The Coal Authority,03/03/2017,CY - Non-coal Minewater - Additions,Environment - DEFRA - EA Programme,Mouchel Ltd,11113,4202.75
"Department for Business, Energy and Industrial Strategy",The Coal Authority,28/03/2017,CY - Non-coal Minewater - Additions,Environment - DEFRA - EA Programme,Veolia Water Ind Outsourcing L,11953,16249.28
"Department for Business, Energy and Industrial Strategy",The Coal Authority,28/02/2017,CY - Non-coal Minewater - Additions,Environment - DEFRA - EA Programme,Wheal Jane Ltd,11639,2600
"Department for Business, Energy and Industrial Strategy",The Coal Authority,24/02/2017,CY - Non-coal Minewater - Additions,Environment - DEFRA - EA Programme,Wyg Engineering Ltd,10858,3566.25
"Department for Business, Energy and Industrial Strategy",The Coal Authority,04/04/2017,Fares - Public Transport,Environment - DEFRA - EA Programme,Staff Expenses Control,12108,-9.8
"Department for Business, Energy and Industrial Strategy",The Coal Authority,04/04/2017,Fares - Public Transport,Environment - DEFRA - EA Programme,Staff Expenses Control,12108,9.8
"Department for Business, Energy and Industrial Strategy",The Coal Authority,04/04/2017,Fares - Rail,Environment - DEFRA - EA Programme,Staff Expenses Control,12108,-15.5
"Department for Business, Energy and Industrial Strategy",The Coal Authority,04/04/2017,Fares - Rail,Environment - DEFRA - EA Programme,Staff Expenses Control,12108,15.5
"Department for Business, Energy and Industrial Strategy",The Coal Authority,04/04/2017,Fuel (Vehicle),Environment - DEFRA - EA Programme,Staff Expenses Control,12108,9.54
"Department for Business, Energy and Industrial Strategy",The Coal Authority,04/04/2017,Fuel (Vehicle),Environment - DEFRA - EA Programme,Staff Expenses Control,12108,9.54
"Department for Business, Energy and Industrial Strategy",The Coal Authority,04/04/2017,Fuel (Vehicle),Environment - DEFRA - EA Programme,Staff Expenses Control,12108,9.54
"Department for Business, Energy and Industrial Strategy",The Coal Authority,04/04/2017,Fuel (Vehicle),Environment - DEFRA - EA Programme,Staff Expenses Control,12108,9.54
"Department for Business, Energy and Industrial Strategy",The Coal Authority,04/04/2017,Fuel (Vehicle),Environment - DEFRA - EA Programme,Staff Expenses Control,12108,9.54
"Department for Business, Energy and Industrial Strategy",The Coal Authority,04/04/2017,Fuel (Vehicle),Environment - DEFRA - EA Programme,Staff Expenses Control,12108,26.62
"Department for Business, Energy and Industrial Strategy",The Coal Authority,04/04/2017,Fuel (Vehicle),Environment - DEFRA - EA Programme,Staff Expenses Control,12108,-9.54
"Department for Business, Energy and Industrial Strategy",The Coal Authority,04/04/2017,Fuel (Vehicle),Environment - DEFRA - EA Programme,Staff Expenses Control,12108,-9.54
"Department for Business, Energy and Industrial Strategy",The Coal Authority,04/04/2017,Fuel (Vehicle),Environment - DEFRA - EA Programme,Staff Expenses Control,12108,-9.54
"Department for Business, Energy and Industrial Strategy",The Coal Authority,04/04/2017,Fuel (Vehicle),Environment - DEFRA - EA Programme,Staff Expenses Control,12108,-9.54
"Department for Business, Energy and Industrial Strategy",The Coal Authority,04/04/2017,Fuel (Vehicle),Environment - DEFRA - EA Programme,Staff Expenses Control,12108,-9.54
"Department for Business, Energy and Industrial Strategy",The Coal Authority,04/04/2017,Fuel (Vehicle),Environment - DEFRA - EA Programme,Staff Expenses Control,12108,-26.62
"Department for Business, Energy and Industrial Strategy",The Coal Authority,04/04/2017,Incidentals,Environment - DEFRA - EA Programme,Staff Expenses Control,12108,11
"Department for Business, Energy and Industrial Strategy",The Coal Authority,04/04/2017,Incidentals,Environment - DEFRA - EA Programme,Staff Expenses Control,12108,10
"Department for Business, Energy and Industrial Strategy",The Coal Authority,04/04/2017,Incidentals,Environment - DEFRA - EA Programme,Staff Expenses Control,12108,5.5
"Department for Business, Energy and Industrial Strategy",The Coal Authority,04/04/2017,Incidentals,Environment - DEFRA - EA Programme,Staff Expenses Control,12108,5.5
"Department for Business, Energy and Industrial Strategy",The Coal Authority,04/04/2017,Incidentals,Environment - DEFRA - EA Programme,Staff Expenses Control,12108,9.17
"Department for Business, Energy and Industrial Strategy",The Coal Authority,04/04/2017,Incidentals,Environment - DEFRA - EA Programme,Staff Expenses Control,12108,9.58
"Department for Business, Energy and Industrial Strategy",The Coal Authority,04/04/2017,Incidentals,Environment - DEFRA - EA Programme,Staff Expenses Control,12108,9.58
"Department for Business, Energy and Industrial Strategy",The Coal Authority,04/04/2017,Incidentals,Environment - DEFRA - EA Programme,Staff Expenses Control,12108,-11
"Department for Business, Energy and Industrial Strategy",The Coal Authority,04/04/2017,Incidentals,Environment - DEFRA - EA Programme,Staff Expenses Control,12108,-10
"Department for Business, Energy and Industrial Strategy",The Coal Authority,04/04/2017,Incidentals,Environment - DEFRA - EA Programme,Staff Expenses Control,12108,-5.5
"Department for Business, Energy and Industrial Strategy",The Coal Authority,04/04/2017,Incidentals,Environment - DEFRA - EA Programme,Staff Expenses Control,12108,-5.5
"Department for Business, Energy and Industrial Strategy",The Coal Authority,04/04/2017,Incidentals,Environment - DEFRA - EA Programme,Staff Expenses Control,12108,-9.17
"Department for Business, Energy and Industrial Strategy",The Coal Authority,04/04/2017,Incidentals,Environment - DEFRA - EA Programme,Staff Expenses Control,12108,-9.58
"Department for Business, Energy and Industrial Strategy",The Coal Authority,04/04/2017,Incidentals,Environment - DEFRA - EA Programme,Staff Expenses Control,12108,-9.58
"Department for Business, Energy and Industrial Strategy",The Coal Authority,04/04/2017,Mileage Payments,Environment - DEFRA - EA Programme,Staff Expenses Control,12108,54
"Department for Business, Energy and Industrial Strategy",The Coal Authority,04/04/2017,Mileage Payments,Environment - DEFRA - EA Programme,Staff Expenses Control,12108,10
"Department for Business, Energy and Industrial Strategy",The Coal Authority,04/04/2017,Mileage Payments,Environment - DEFRA - EA Programme,Staff Expenses Control,12108,-54
"Department for Business, Energy and Industrial Strategy",The Coal Authority,04/04/2017,Mileage Payments,Environment - DEFRA - EA Programme,Staff Expenses Control,12108,-10
"Department for Business, Energy and Industrial Strategy",The Coal Authority,28/03/2017,Minewater Chemicals - Operational Sites,Environment - DEFRA - EA Programme,Veolia Water Ind Outsourcing L,11953,24322.36
"Department for Business, Energy and Industrial Strategy",The Coal Authority,03/04/2017,Minewater Contractor Add. Task Order - Ops Site,Environment - DEFRA - EA Programme,11744 Severn Trent Serv Ops Uk Ltd,12014,377.51
"Department for Business, Energy and Industrial Strategy",The Coal Authority,03/04/2017,Minewater Contractor Add. Task Order - Ops Site,Environment - DEFRA - EA Programme,11744 Severn Trent Serv Ops Uk Ltd,12014,1164
"Department for Business, Energy and Industrial Strategy",The Coal Authority,03/04/2017,Minewater Contractor Add. Task Order - Ops Site,Environment - DEFRA - EA Programme,11744 Severn Trent Serv Ops Uk Ltd,12014,20.67
"Department for Business, Energy and Industrial Strategy",The Coal Authority,28/03/2017,Minewater Contractor Add. Task Order - Ops Site,Environment - DEFRA - EA Programme,Veolia Water Ind Outsourcing L,11953,33824.87
"Department for Business, Energy and Industrial Strategy",The Coal Authority,03/04/2017,Minewater Contractor Maint. Visits - Ops Site,Environment - DEFRA - EA Programme,11744 Severn Trent Serv Ops Uk Ltd,12014,132.79
"Department for Business, Energy and Industrial Strategy",The Coal Authority,03/04/2017,Minewater Contractor Maint. Visits - Ops Site,Environment - DEFRA - EA Programme,11744 Severn Trent Serv Ops Uk Ltd,12014,85.19
"Department for Business, Energy and Industrial Strategy",The Coal Authority,03/04/2017,Minewater Contractor Maint. Visits - Ops Site,Environment - DEFRA - EA Programme,11744 Severn Trent Serv Ops Uk Ltd,12014,526.1
"Department for Business, Energy and Industrial Strategy",The Coal Authority,03/04/2017,Minewater Contractor Maint. Visits - Ops Site,Environment - DEFRA - EA Programme,11744 Severn Trent Serv Ops Uk Ltd,12014,1607.63
"Department for Business, Energy and Industrial Strategy",The Coal Authority,03/04/2017,Minewater Contractor Maint. Visits - Ops Site,Environment - DEFRA - EA Programme,11744 Severn Trent Serv Ops Uk Ltd,12014,34.78
"Department for Business, Energy and Industrial Strategy",The Coal Authority,03/04/2017,Minewater Contractor Maint. Visits - Ops Site,Environment - DEFRA - EA Programme,11744 Severn Trent Serv Ops Uk Ltd,12014,69.2
"Department for Business, Energy and Industrial Strategy",The Coal Authority,03/04/2017,Minewater Contractor Maint. Visits - Ops Site,Environment - DEFRA - EA Programme,11744 Severn Trent Serv Ops Uk Ltd,12014,87.1
"Department for Business, Energy and Industrial Strategy",The Coal Authority,04/04/2017,Minewater Discharge Consents,Environment - DEFRA - EA Programme,5471 Cancellation of Nent Haggs MWTS fees,12108,1690
"Department for Business, Energy and Industrial Strategy",The Coal Authority,04/04/2017,Minewater Discharge Consents,Environment - DEFRA - EA Programme,5471 Cancellation of Nent Haggs MWTS fees,12108,-1690
"Department for Business, Energy and Industrial Strategy",The Coal Authority,04/04/2017,Minewater Discharge Consents,Environment - DEFRA - EA Programme,5472 Cancellation of Nent Haggs MWTS fees,12108,-3380
"Department for Business, Energy and Industrial Strategy",The Coal Authority,04/04/2017,Minewater Discharge Consents,Environment - DEFRA - EA Programme,5472 Cancellation of Nent Haggs MWTS fees,12108,3380
"Department for Business, Energy and Industrial Strategy",The Coal Authority,03/04/2017,Minewater Feasibility / Scoping,Environment - DEFRA - EA Programme,11744 Severn Trent Serv Ops Uk Ltd,12014,9032.95
"Department for Business, Energy and Industrial Strategy",The Coal Authority,24/03/2017,Minewater Feasibility / Scoping,Environment - DEFRA - EA Programme,Atkins Limited,11768,564.8
"Department for Business, Energy and Industrial Strategy",The Coal Authority,19/12/2016,Minewater Feasibility / Scoping,Environment - DEFRA - EA Programme,Mouchel Ltd,11033,-5329.92
"Department for Business, Energy and Industrial Strategy",The Coal Authority,03/03/2017,Minewater Feasibility / Scoping,Environment - DEFRA - EA Programme,Mouchel Ltd,11116,239.92
"Department for Business, Energy and Industrial Strategy",The Coal Authority,15/03/2017,Minewater Feasibility / Scoping,Environment - DEFRA - EA Programme,Mouchel Ltd,11436,909.6
"Department for Business, Energy and Industrial Strategy",The Coal Authority,28/02/2017,Minewater Land Agents (Acquisitions),Environment - DEFRA - EA Programme,Mark N Carey Limited,11219,97.5
"Department for Business, Energy and Industrial Strategy",The Coal Authority,03/04/2017,Minewater Monitoring & Flow Measurement,Environment - DEFRA - EA Programme,11744 Severn Trent Serv Ops Uk Ltd,12014,83.06
"Department for Business, Energy and Industrial Strategy",The Coal Authority,03/04/2017,Minewater Monitoring & Flow Measurement,Environment - DEFRA - EA Programme,11744 Severn Trent Serv Ops Uk Ltd,12014,312.39
"Department for Business, Energy and Industrial Strategy",The Coal Authority,03/04/2017,Minewater Monitoring & Flow Measurement,Environment - DEFRA - EA Programme,11744 Severn Trent Serv Ops Uk Ltd,12014,606.65
"Department for Business, Energy and Industrial Strategy",The Coal Authority,03/04/2017,Minewater Monitoring & Flow Measurement,Environment - DEFRA - EA Programme,11744 Severn Trent Serv Ops Uk Ltd,12014,199.72
"Department for Business, Energy and Industrial Strategy",The Coal Authority,03/04/2017,Minewater Monitoring & Flow Measurement,Environment - DEFRA - EA Programme,11744 Severn Trent Serv Ops Uk Ltd,12014,77.57
"Department for Business, Energy and Industrial Strategy",The Coal Authority,03/04/2017,Minewater Monitoring & Flow Measurement,Environment - DEFRA - EA Programme,11744 Severn Trent Serv Ops Uk Ltd,12014,59.42
"Department for Business, Energy and Industrial Strategy",The Coal Authority,28/02/2017,Minewater Monitoring & Flow Measurement,Environment - DEFRA - EA Programme,Hydro Logic Services Llp,11472,736.5
"Department for Business, Energy and Industrial Strategy",The Coal Authority,28/02/2017,Minewater Monitoring & Flow Measurement,Environment - DEFRA - EA Programme,Hydro Logic Services Llp,11472,736.5
"Department for Business, Energy and Industrial Strategy",The Coal Authority,07/03/2017,Minewater Power Costs,Environment - DEFRA - EA Programme,Edf Energy,11642,27842.53
"Department for Business, Energy and Industrial Strategy",The Coal Authority,28/03/2017,Minewater Power Costs,Environment - DEFRA - EA Programme,Veolia Water Ind Outsourcing L,11932,8209.74
"Department for Business, Energy and Industrial Strategy",The Coal Authority,28/03/2017,Minewater Power Costs,Environment - DEFRA - EA Programme,Veolia Water Ind Outsourcing L,11951,-8249.72
"Department for Business, Energy and Industrial Strategy",The Coal Authority,28/03/2017,Minewater Power Costs,Environment - DEFRA - EA Programme,Veolia Water Ind Outsourcing L,11953,216.29
"Department for Business, Energy and Industrial Strategy",The Coal Authority,28/03/2017,Minewater Power Costs,Environment - DEFRA - EA Programme,Veolia Water Ind Outsourcing L,11953,195.74
"Department for Business, Energy and Industrial Strategy",The Coal Authority,28/03/2017,Minewater Power Costs,Environment - DEFRA - EA Programme,Veolia Water Ind Outsourcing L,11953,405.11
"Department for Business, Energy and Industrial Strategy",The Coal Authority,13/03/2017,Minewater Pumping Tests,Environment - DEFRA - EA Programme,Cornwall Council,11289,559
"Department for Business, Energy and Industrial Strategy",The Coal Authority,03/04/2017,Minewater Remediation,Environment - DEFRA - EA Programme,11744 Severn Trent Serv Ops Uk Ltd,12014,944.22
"Department for Business, Energy and Industrial Strategy",The Coal Authority,20/02/2017,Minewater Rent,Environment - DEFRA - EA Programme,Brownfield Investments Ltd,11045,19812.5
"Department for Business, Energy and Industrial Strategy",The Coal Authority,03/04/2017,Minewater Sampling - 'Non-operational' Sites,Environment - DEFRA - EA Programme,11744 Severn Trent Serv Ops Uk Ltd,12014,42.3
"Department for Business, Energy and Industrial Strategy",The Coal Authority,03/04/2017,Minewater Sampling - 'Non-operational' Sites,Environment - DEFRA - EA Programme,11744 Severn Trent Serv Ops Uk Ltd,12014,43
"Department for Business, Energy and Industrial Strategy",The Coal Authority,03/04/2017,Minewater Sampling - 'Non-operational' Sites,Environment - DEFRA - EA Programme,11744 Severn Trent Serv Ops Uk Ltd,12014,422.7
"Department for Business, Energy and Industrial Strategy",The Coal Authority,03/04/2017,Minewater Sampling - 'Non-operational' Sites,Environment - DEFRA - EA Programme,11744 Severn Trent Serv Ops Uk Ltd,12014,54.65
"Department for Business, Energy and Industrial Strategy",The Coal Authority,03/04/2017,Minewater Sampling - 'Non-operational' Sites,Environment - DEFRA - EA Programme,11744 Severn Trent Serv Ops Uk Ltd,12014,42.36
"Department for Business, Energy and Industrial Strategy",The Coal Authority,03/04/2017,Minewater Site Investigations,Environment - DEFRA - EA Programme,11744 Severn Trent Serv Ops Uk Ltd,12014,215.83
"Department for Business, Energy and Industrial Strategy",The Coal Authority,22/11/2016,Minewater Site Investigations,Environment - DEFRA - EA Programme,Llettyshenkin Cons Co Ltd,11035,777.45
"Department for Business, Energy and Industrial Strategy",The Coal Authority,03/03/2017,Minewater Site Surveys,Environment - DEFRA - EA Programme,Mouchel Ltd,11114,1587.82
"Department for Business, Energy and Industrial Strategy",The Coal Authority,03/04/2017,Minewater Sludge Disposal,Environment - DEFRA - EA Programme,11744 Severn Trent Serv Ops Uk Ltd,12014,123.02
"Department for Business, Energy and Industrial Strategy",The Coal Authority,03/04/2017,Minewater Sludge Disposal,Environment - DEFRA - EA Programme,11744 Severn Trent Serv Ops Uk Ltd,12014,430.46
"Department for Business, Energy and Industrial Strategy",The Coal Authority,28/03/2017,Minewater Sludge Disposal,Environment - DEFRA - EA Programme,Veolia Water Ind Outsourcing L,11953,27083.34
"Department for Business, Energy and Industrial Strategy",The Coal Authority,27/03/2017,Other Contractor Costs,Environment - DEFRA - EA Programme,Compensation Payment,11659,100
"Department for Business, Energy and Industrial Strategy",The Coal Authority,04/04/2017,Subsistence Allowances,Environment - DEFRA - EA Programme,Staff Expenses Control,12108,3.21
"Department for Business, Energy and Industrial Strategy",The Coal Authority,04/04/2017,Subsistence Allowances,Environment - DEFRA - EA Programme,Staff Expenses Control,12108,1.39
"Department for Business, Energy and Industrial Strategy",The Coal Authority,04/04/2017,Subsistence Allowances,Environment - DEFRA - EA Programme,Staff Expenses Control,12108,2.48
"Department for Business, Energy and Industrial Strategy",The Coal Authority,04/04/2017,Subsistence Allowances,Environment - DEFRA - EA Programme,Staff Expenses Control,12108,2.5
"Department for Business, Energy and Industrial Strategy",The Coal Authority,04/04/2017,Subsistence Allowances,Environment - DEFRA - EA Programme,Staff Expenses Control,12108,2.56
"Department for Business, Energy and Industrial Strategy",The Coal Authority,04/04/2017,Subsistence Allowances,Environment - DEFRA - EA Programme,Staff Expenses Control,12108,2.56
"Department for Business, Energy and Industrial Strategy",The Coal Authority,04/04/2017,Subsistence Allowances,Environment - DEFRA - EA Programme,Staff Expenses Control,12108,2.83
"Department for Business, Energy and Industrial Strategy",The Coal Authority,04/04/2017,Subsistence Allowances,Environment - DEFRA - EA Programme,Staff Expenses Control,12108,3.4
"Department for Business, Energy and Industrial Strategy",The Coal Authority,04/04/2017,Subsistence Allowances,Environment - DEFRA - EA Programme,Staff Expenses Control,12108,3.83
"Department for Business, Energy and Industrial Strategy",The Coal Authority,04/04/2017,Subsistence Allowances,Environment - DEFRA - EA Programme,Staff Expenses Control,12108,3.83
"Department for Business, Energy and Industrial Strategy",The Coal Authority,04/04/2017,Subsistence Allowances,Environment - DEFRA - EA Programme,Staff Expenses Control,12108,3.87
"Department for Business, Energy and Industrial Strategy",The Coal Authority,04/04/2017,Subsistence Allowances,Environment - DEFRA - EA Programme,Staff Expenses Control,12108,3.87
"Department for Business, Energy and Industrial Strategy",The Coal Authority,04/04/2017,Subsistence Allowances,Environment - DEFRA - EA Programme,Staff Expenses Control,12108,4.96
"Department for Business, Energy and Industrial Strategy",The Coal Authority,04/04/2017,Subsistence Allowances,Environment - DEFRA - EA Programme,Staff Expenses Control,12108,5.17
"Department for Business, Energy and Industrial Strategy",The Coal Authority,04/04/2017,Subsistence Allowances,Environment - DEFRA - EA Programme,Staff Expenses Control,12108,7.14
"Department for Business, Energy and Industrial Strategy",The Coal Authority,04/04/2017,Subsistence Allowances,Environment - DEFRA - EA Programme,Staff Expenses Control,12108,8.58
"Department for Business, Energy and Industrial Strategy",The Coal Authority,04/04/2017,Subsistence Allowances,Environment - DEFRA - EA Programme,Staff Expenses Control,12108,8.79
"Department for Business, Energy and Industrial Strategy",The Coal Authority,04/04/2017,Subsistence Allowances,Environment - DEFRA - EA Programme,Staff Expenses Control,12108,6.88
"Department for Business, Energy and Industrial Strategy",The Coal Authority,04/04/2017,Subsistence Allowances,Environment - DEFRA - EA Programme,Staff Expenses Control,12108,17.5
"Department for Business, Energy and Industrial Strategy",The Coal Authority,04/04/2017,Subsistence Allowances,Environment - DEFRA - EA Programme,Staff Expenses Control,12108,1.33
"Department for Business, Energy and Industrial Strategy",The Coal Authority,04/04/2017,Subsistence Allowances,Environment - DEFRA - EA Programme,Staff Expenses Control,12108,1.83
"Department for Business, Energy and Industrial Strategy",The Coal Authority,04/04/2017,Subsistence Allowances,Environment - DEFRA - EA Programme,Staff Expenses Control,12108,1.92
"Department for Business, Energy and Industrial Strategy",The Coal Authority,04/04/2017,Subsistence Allowances,Environment - DEFRA - EA Programme,Staff Expenses Control,12108,2
"Department for Business, Energy and Industrial Strategy",The Coal Authority,04/04/2017,Subsistence Allowances,Environment - DEFRA - EA Programme,Staff Expenses Control,12108,4.17
"Department for Business, Energy and Industrial Strategy",The Coal Authority,04/04/2017,Subsistence Allowances,Environment - DEFRA - EA Programme,Staff Expenses Control,12108,4.79
"Department for Business, Energy and Industrial Strategy",The Coal Authority,04/04/2017,Subsistence Allowances,Environment - DEFRA - EA Programme,Staff Expenses Control,12108,0.18
"Department for Business, Energy and Industrial Strategy",The Coal Authority,04/04/2017,Subsistence Allowances,Environment - DEFRA - EA Programme,Staff Expenses Control,12108,0.83
"Department for Business, Energy and Industrial Strategy",The Coal Authority,04/04/2017,Subsistence Allowances,Environment - DEFRA - EA Programme,Staff Expenses Control,12108,1.42
"Department for Business, Energy and Industrial Strategy",The Coal Authority,04/04/2017,Subsistence Allowances,Environment - DEFRA - EA Programme,Staff Expenses Control,12108,1.67
"Department for Business, Energy and Industrial Strategy",The Coal Authority,04/04/2017,Subsistence Allowances,Environment - DEFRA - EA Programme,Staff Expenses Control,12108,1.74
"Department for Business, Energy and Industrial Strategy",The Coal Authority,04/04/2017,Subsistence Allowances,Environment - DEFRA - EA Programme,Staff Expenses Control,12108,2.29
"Department for Business, Energy and Industrial Strategy",The Coal Authority,04/04/2017,Subsistence Allowances,Environment - DEFRA - EA Programme,Staff Expenses Control,12108,2.29
"Department for Business, Energy and Industrial Strategy",The Coal Authority,04/04/2017,Subsistence Allowances,Environment - DEFRA - EA Programme,Staff Expenses Control,12108,2.42
"Department for Business, Energy and Industrial Strategy",The Coal Authority,04/04/2017,Subsistence Allowances,Environment - DEFRA - EA Programme,Staff Expenses Control,12108,2.7
"Department for Business, Energy and Industrial Strategy",The Coal Authority,04/04/2017,Subsistence Allowances,Environment - DEFRA - EA Programme,Staff Expenses Control,12108,3
"Department for Business, Energy and Industrial Strategy",The Coal Authority,04/04/2017,Subsistence Allowances,Environment - DEFRA - EA Programme,Staff Expenses Control,12108,3.13
"Department for Business, Energy and Industrial Strategy",The Coal Authority,04/04/2017,Subsistence Allowances,Environment - DEFRA - EA Programme,Staff Expenses Control,12108,3.3
"Department for Business, Energy and Industrial Strategy",The Coal Authority,04/04/2017,Subsistence Allowances,Environment - DEFRA - EA Programme,Staff Expenses Control,12108,3.74
"Department for Business, Energy and Industrial Strategy",The Coal Authority,04/04/2017,Subsistence Allowances,Environment - DEFRA - EA Programme,Staff Expenses Control,12108,4.24
"Department for Business, Energy and Industrial Strategy",The Coal Authority,04/04/2017,Subsistence Allowances,Environment - DEFRA - EA Programme,Staff Expenses Control,12108,4.34
"Department for Business, Energy and Industrial Strategy",The Coal Authority,04/04/2017,Subsistence Allowances,Environment - DEFRA - EA Programme,Staff Expenses Control,12108,4.37
"Department for Business, Energy and Industrial Strategy",The Coal Authority,04/04/2017,Subsistence Allowances,Environment - DEFRA - EA Programme,Staff Expenses Control,12108,4.83
"Department for Business, Energy and Industrial Strategy",The Coal Authority,04/04/2017,Subsistence Allowances,Environment - DEFRA - EA Programme,Staff Expenses Control,12108,4.92
"Department for Business, Energy and Industrial Strategy",The Coal Authority,04/04/2017,Subsistence Allowances,Environment - DEFRA - EA Programme,Staff Expenses Control,12108,4.99
"Department for Business, Energy and Industrial Strategy",The Coal Authority,04/04/2017,Subsistence Allowances,Environment - DEFRA - EA Programme,Staff Expenses Control,12108,15.57
"Department for Business, Energy and Industrial Strategy",The Coal Authority,04/04/2017,Subsistence Allowances,Environment - DEFRA - EA Programme,Staff Expenses Control,12108,17.18
"Department for Business, Energy and Industrial Strategy",The Coal Authority,04/04/2017,Subsistence Allowances,Environment - DEFRA - EA Programme,Staff Expenses Control,12108,-3.21
"Department for Business, Energy and Industrial Strategy",The Coal Authority,04/04/2017,Subsistence Allowances,Environment - DEFRA - EA Programme,Staff Expenses Control,12108,-1.39
"Department for Business, Energy and Industrial Strategy",The Coal Authority,04/04/2017,Subsistence Allowances,Environment - DEFRA - EA Programme,Staff Expenses Control,12108,-2.48
"Department for Business, Energy and Industrial Strategy",The Coal Authority,04/04/2017,Subsistence Allowances,Environment - DEFRA - EA Programme,Staff Expenses Control,12108,-2.5
"Department for Business, Energy and Industrial Strategy",The Coal Authority,04/04/2017,Subsistence Allowances,Environment - DEFRA - EA Programme,Staff Expenses Control,12108,-2.56
"Department for Business, Energy and Industrial Strategy",The Coal Authority,04/04/2017,Subsistence Allowances,Environment - DEFRA - EA Programme,Staff Expenses Control,12108,-2.56
"Department for Business, Energy and Industrial Strategy",The Coal Authority,04/04/2017,Subsistence Allowances,Environment - DEFRA - EA Programme,Staff Expenses Control,12108,-2.83
"Department for Business, Energy and Industrial Strategy",The Coal Authority,04/04/2017,Subsistence Allowances,Environment - DEFRA - EA Programme,Staff Expenses Control,12108,-3.4
"Department for Business, Energy and Industrial Strategy",The Coal Authority,04/04/2017,Subsistence Allowances,Environment - DEFRA - EA Programme,Staff Expenses Control,12108,-3.83
"Department for Business, Energy and Industrial Strategy",The Coal Authority,04/04/2017,Subsistence Allowances,Environment - DEFRA - EA Programme,Staff Expenses Control,12108,-3.83
"Department for Business, Energy and Industrial Strategy",The Coal Authority,04/04/2017,Subsistence Allowances,Environment - DEFRA - EA Programme,Staff Expenses Control,12108,-3.87
"Department for Business, Energy and Industrial Strategy",The Coal Authority,04/04/2017,Subsistence Allowances,Environment - DEFRA - EA Programme,Staff Expenses Control,12108,-3.87
"Department for Business, Energy and Industrial Strategy",The Coal Authority,04/04/2017,Subsistence Allowances,Environment - DEFRA - EA Programme,Staff Expenses Control,12108,-6.88
"Department for Business, Energy and Industrial Strategy",The Coal Authority,04/04/2017,Subsistence Allowances,Environment - DEFRA - EA Programme,Staff Expenses Control,12108,-17.5
"Department for Business, Energy and Industrial Strategy",The Coal Authority,04/04/2017,Subsistence Allowances,Environment - DEFRA - EA Programme,Staff Expenses Control,12108,5.2
"Department for Business, Energy and Industrial Strategy",The Coal Authority,04/04/2017,Subsistence Allowances,Environment - DEFRA - EA Programme,Staff Expenses Control,12108,6.19
"Department for Business, Energy and Industrial Strategy",The Coal Authority,04/04/2017,Subsistence Allowances,Environment - DEFRA - EA Programme,Staff Expenses Control,12108,6.21
"Department for Business, Energy and Industrial Strategy",The Coal Authority,04/04/2017,Subsistence Allowances,Environment - DEFRA - EA Programme,Staff Expenses Control,12108,6.24
"Department for Business, Energy and Industrial Strategy",The Coal Authority,04/04/2017,Subsistence Allowances,Environment - DEFRA - EA Programme,Staff Expenses Control,12108,-4.96
"Department for Business, Energy and Industrial Strategy",The Coal Authority,04/04/2017,Subsistence Allowances,Environment - DEFRA - EA Programme,Staff Expenses Control,12108,-5.17
"Department for Business, Energy and Industrial Strategy",The Coal Authority,04/04/2017,Subsistence Allowances,Environment - DEFRA - EA Programme,Staff Expenses Control,12108,-7.14
"Department for Business, Energy and Industrial Strategy",The Coal Authority,04/04/2017,Subsistence Allowances,Environment - DEFRA - EA Programme,Staff Expenses Control,12108,-8.58
"Department for Business, Energy and Industrial Strategy",The Coal Authority,04/04/2017,Subsistence Allowances,Environment - DEFRA - EA Programme,Staff Expenses Control,12108,-8.79
"Department for Business, Energy and Industrial Strategy",The Coal Authority,04/04/2017,Subsistence Allowances,Environment - DEFRA - EA Programme,Staff Expenses Control,12108,-1.33
"Department for Business, Energy and Industrial Strategy",The Coal Authority,04/04/2017,Subsistence Allowances,Environment - DEFRA - EA Programme,Staff Expenses Control,12108,-1.83
"Department for Business, Energy and Industrial Strategy",The Coal Authority,04/04/2017,Subsistence Allowances,Environment - DEFRA - EA Programme,Staff Expenses Control,12108,-1.92
"Department for Business, Energy and Industrial Strategy",The Coal Authority,04/04/2017,Subsistence Allowances,Environment - DEFRA - EA Programme,Staff Expenses Control,12108,-2
"Department for Business, Energy and Industrial Strategy",The Coal Authority,04/04/2017,Subsistence Allowances,Environment - DEFRA - EA Programme,Staff Expenses Control,12108,-4.17
"Department for Business, Energy and Industrial Strategy",The Coal Authority,04/04/2017,Subsistence Allowances,Environment - DEFRA - EA Programme,Staff Expenses Control,12108,-4.79
"Department for Business, Energy and Industrial Strategy",The Coal Authority,04/04/2017,Subsistence Allowances,Environment - DEFRA - EA Programme,Staff Expenses Control,12108,-0.18
"Department for Business, Energy and Industrial Strategy",The Coal Authority,04/04/2017,Subsistence Allowances,Environment - DEFRA - EA Programme,Staff Expenses Control,12108,-0.83
"Department for Business, Energy and Industrial Strategy",The Coal Authority,04/04/2017,Subsistence Allowances,Environment - DEFRA - EA Programme,Staff Expenses Control,12108,-1.42
"Department for Business, Energy and Industrial Strategy",The Coal Authority,04/04/2017,Subsistence Allowances,Environment - DEFRA - EA Programme,Staff Expenses Control,12108,-1.67
"Department for Business, Energy and Industrial Strategy",The Coal Authority,04/04/2017,Subsistence Allowances,Environment - DEFRA - EA Programme,Staff Expenses Control,12108,-1.74
"Department for Business, Energy and Industrial Strategy",The Coal Authority,04/04/2017,Subsistence Allowances,Environment - DEFRA - EA Programme,Staff Expenses Control,12108,-2.29
"Department for Business, Energy and Industrial Strategy",The Coal Authority,04/04/2017,Subsistence Allowances,Environment - DEFRA - EA Programme,Staff Expenses Control,12108,-2.29
"Department for Business, Energy and Industrial Strategy",The Coal Authority,04/04/2017,Subsistence Allowances,Environment - DEFRA - EA Programme,Staff Expenses Control,12108,-2.42
"Department for Business, Energy and Industrial Strategy",The Coal Authority,04/04/2017,Subsistence Allowances,Environment - DEFRA - EA Programme,Staff Expenses Control,12108,-2.7
"Department for Business, Energy and Industrial Strategy",The Coal Authority,04/04/2017,Subsistence Allowances,Environment - DEFRA - EA Programme,Staff Expenses Control,12108,-3
"Department for Business, Energy and Industrial Strategy",The Coal Authority,04/04/2017,Subsistence Allowances,Environment - DEFRA - EA Programme,Staff Expenses Control,12108,-3.13
"Department for Business, Energy and Industrial Strategy",The Coal Authority,04/04/2017,Subsistence Allowances,Environment - DEFRA - EA Programme,Staff Expenses Control,12108,-3.3
"Department for Business, Energy and Industrial Strategy",The Coal Authority,04/04/2017,Subsistence Allowances,Environment - DEFRA - EA Programme,Staff Expenses Control,12108,-3.74
"Department for Business, Energy and Industrial Strategy",The Coal Authority,04/04/2017,Subsistence Allowances,Environment - DEFRA - EA Programme,Staff Expenses Control,12108,-4.24
"Department for Business, Energy and Industrial Strategy",The Coal Authority,04/04/2017,Subsistence Allowances,Environment - DEFRA - EA Programme,Staff Expenses Control,12108,-4.34
"Department for Business, Energy and Industrial Strategy",The Coal Authority,04/04/2017,Subsistence Allowances,Environment - DEFRA - EA Programme,Staff Expenses Control,12108,-4.37
"Department for Business, Energy and Industrial Strategy",The Coal Authority,04/04/2017,Subsistence Allowances,Environment - DEFRA - EA Programme,Staff Expenses Control,12108,-4.83
"Department for Business, Energy and Industrial Strategy",The Coal Authority,04/04/2017,Subsistence Allowances,Environment - DEFRA - EA Programme,Staff Expenses Control,12108,-4.92
"Department for Business, Energy and Industrial Strategy",The Coal Authority,04/04/2017,Subsistence Allowances,Environment - DEFRA - EA Programme,Staff Expenses Control,12108,-4.99
"Department for Business, Energy and Industrial Strategy",The Coal Authority,04/04/2017,Subsistence Allowances,Environment - DEFRA - EA Programme,Staff Expenses Control,12108,-5.2
"Department for Business, Energy and Industrial Strategy",The Coal Authority,04/04/2017,Subsistence Allowances,Environment - DEFRA - EA Programme,Staff Expenses Control,12108,-6.19
"Department for Business, Energy and Industrial Strategy",The Coal Authority,04/04/2017,Subsistence Allowances,Environment - DEFRA - EA Programme,Staff Expenses Control,12108,-6.21
"Department for Business, Energy and Industrial Strategy",The Coal Authority,04/04/2017,Subsistence Allowances,Environment - DEFRA - EA Programme,Staff Expenses Control,12108,-6.24
"Department for Business, Energy and Industrial Strategy",The Coal Authority,04/04/2017,Subsistence Allowances,Environment - DEFRA - EA Programme,Staff Expenses Control,12108,9.86
"Department for Business, Energy and Industrial Strategy",The Coal Authority,04/04/2017,Subsistence Allowances,Environment - DEFRA - EA Programme,Staff Expenses Control,12108,-9.86
"Department for Business, Energy and Industrial Strategy",The Coal Authority,04/04/2017,Subsistence Allowances,Environment - DEFRA - EA Programme,Staff Expenses Control,12108,-15.57
"Department for Business, Energy and Industrial Strategy",The Coal Authority,04/04/2017,Subsistence Allowances,Environment - DEFRA - EA Programme,Staff Expenses Control,12108,-17.18
"Department for Business, Energy and Industrial Strategy",The Coal Authority,04/04/2017,Business Entertainment / Hospitality,Environment - DEFRA - LEP Programme,8632 8049-GPC-Irrecoverable Bus Ent VAT,12108,-2.98
"Department for Business, Energy and Industrial Strategy",The Coal Authority,04/04/2017,Business Entertainment / Hospitality,Environment - DEFRA - LEP Programme,8632 8049-GPC-Irrecoverable Bus Ent VAT,12108,2.98
"Department for Business, Energy and Industrial Strategy",The Coal Authority,04/04/2017,Business Entertainment / Hospitality,Environment - DEFRA - LEP Programme,8640 8049-GPC-Irrecoverable Bus Ent VAT,12108,5.96
"Department for Business, Energy and Industrial Strategy",The Coal Authority,04/04/2017,Business Entertainment / Hospitality,Environment - DEFRA - LEP Programme,8640 8049-GPC-Irrecoverable Bus Ent VAT,12108,-5.96
"Department for Business, Energy and Industrial Strategy",The Coal Authority,05/04/2017,CY - Non-coal Minewater - Additions,Environment - DEFRA - LEP Programme,10202 Enviro Centre,12178,5910
"Department for Business, Energy and Industrial Strategy",The Coal Authority,05/04/2017,CY - Non-coal Minewater - Additions,Environment - DEFRA - LEP Programme,9897 Enviro Centre,12178,2397.5
"Department for Business, Energy and Industrial Strategy",The Coal Authority,20/03/2017,CY - Non-coal Minewater - Additions,Environment - DEFRA - LEP Programme,Durham County Council,11813,1680
"Department for Business, Energy and Industrial Strategy",The Coal Authority,22/02/2017,CY - Non-coal Minewater - Additions,Environment - DEFRA - LEP Programme,J N Bentley Limited,10788,-6553.65
"Department for Business, Energy and Industrial Strategy",The Coal Authority,29/01/2017,CY - Non-coal Minewater - Additions,Environment - DEFRA - LEP Programme,J N Bentley Limited,10811,4212.26
"Department for Business, Energy and Industrial Strategy",The Coal Authority,29/01/2017,CY - Non-coal Minewater - Additions,Environment - DEFRA - LEP Programme,J N Bentley Limited,10815,2311.94
"Department for Business, Energy and Industrial Strategy",The Coal Authority,16/02/2017,CY - Non-coal Minewater - Additions,Environment - DEFRA - LEP Programme,J N Bentley Limited,10819,400.01
"Department for Business, Energy and Industrial Strategy",The Coal Authority,16/02/2017,CY - Non-coal Minewater - Additions,Environment - DEFRA - LEP Programme,J N Bentley Limited,10826,27369.03
"Department for Business, Energy and Industrial Strategy",The Coal Authority,20/03/2017,CY - Non-coal Minewater - Additions,Environment - DEFRA - LEP Programme,J N Bentley Limited,11467,8016.24
"Department for Business, Energy and Industrial Strategy",The Coal Authority,16/03/2017,CY - Non-coal Minewater - Additions,Environment - DEFRA - LEP Programme,J N Bentley Limited,11520,1642.67
"Department for Business, Energy and Industrial Strategy",The Coal Authority,16/03/2017,CY - Non-coal Minewater - Additions,Environment - DEFRA - LEP Programme,J N Bentley Limited,11521,2238.53
"Department for Business, Energy and Industrial Strategy",The Coal Authority,16/03/2017,CY - Non-coal Minewater - Additions,Environment - DEFRA - LEP Programme,J N Bentley Limited,11609,359.94
"Department for Business, Energy and Industrial Strategy",The Coal Authority,04/04/2017,Fares - Public Transport,Environment - DEFRA - LEP Programme,Staff Expenses Control,12108,-2.8
"Department for Business, Energy and Industrial Strategy",The Coal Authority,04/04/2017,Fares - Public Transport,Environment - DEFRA - LEP Programme,Staff Expenses Control,12108,2.8
"Department for Business, Energy and Industrial Strategy",The Coal Authority,04/04/2017,Fares - Rail,Environment - DEFRA - LEP Programme,Staff Expenses Control,12108,137.1
"Department for Business, Energy and Industrial Strategy",The Coal Authority,04/04/2017,Fares - Rail,Environment - DEFRA - LEP Programme,Staff Expenses Control,12108,-10.3
"Department for Business, Energy and Industrial Strategy",The Coal Authority,04/04/2017,Fares - Rail,Environment - DEFRA - LEP Programme,Staff Expenses Control,12108,-13.3
"Department for Business, Energy and Industrial Strategy",The Coal Authority,04/04/2017,Fares - Rail,Environment - DEFRA - LEP Programme,Staff Expenses Control,12108,10.3
"Department for Business, Energy and Industrial Strategy",The Coal Authority,04/04/2017,Fares - Rail,Environment - DEFRA - LEP Programme,Staff Expenses Control,12108,13.3
"Department for Business, Energy and Industrial Strategy",The Coal Authority,04/04/2017,Fares - Rail,Environment - DEFRA - LEP Programme,Staff Expenses Control,12108,-137.1
"Department for Business, Energy and Industrial Strategy",The Coal Authority,04/04/2017,Fuel (Vehicle),Environment - DEFRA - LEP Programme,Staff Expenses Control,12108,-31.83
"Department for Business, Energy and Industrial Strategy",The Coal Authority,04/04/2017,Fuel (Vehicle),Environment - DEFRA - LEP Programme,Staff Expenses Control,12108,31.83
"Department for Business, Energy and Industrial Strategy",The Coal Authority,04/04/2017,Incidentals,Environment - DEFRA - LEP Programme,Staff Expenses Control,12108,-11.5
"Department for Business, Energy and Industrial Strategy",The Coal Authority,04/04/2017,Incidentals,Environment - DEFRA - LEP Programme,Staff Expenses Control,12108,11.5
"Department for Business, Energy and Industrial Strategy",The Coal Authority,04/04/2017,Legal - Property Title Search,Environment - DEFRA - LEP Programme,8999 Land Registry,12108,90
"Department for Business, Energy and Industrial Strategy",The Coal Authority,04/04/2017,Legal - Property Title Search,Environment - DEFRA - LEP Programme,8999 Land Registry,12108,-90
"Department for Business, Energy and Industrial Strategy",The Coal Authority,24/02/2017,Legal - Property Title Search,Environment - DEFRA - LEP Programme,Land Registry,10816,18
"Department for Business, Energy and Industrial Strategy",The Coal Authority,03/04/2017,Minewater Contractor Maint. Visits - Ops Site,Environment - DEFRA - LEP Programme,11744 Severn Trent Serv Ops Uk Ltd,12014,120.19
"Department for Business, Energy and Industrial Strategy",The Coal Authority,03/04/2017,Minewater Contractor Maint. Visits - Ops Site,Environment - DEFRA - LEP Programme,11744 Severn Trent Serv Ops Uk Ltd,12014,62.51
"Department for Business, Energy and Industrial Strategy",The Coal Authority,03/04/2017,Minewater Contractor Maint. Visits - Ops Site,Environment - DEFRA - LEP Programme,11744 Severn Trent Serv Ops Uk Ltd,12014,132.69
"Department for Business, Energy and Industrial Strategy",The Coal Authority,20/03/2017,Minewater Feasibility / Scoping,Environment - DEFRA - LEP Programme,Aecom Infrastructure & Env,11501,5010
"Department for Business, Energy and Industrial Strategy",The Coal Authority,23/02/2017,Minewater Feasibility / Scoping,Environment - DEFRA - LEP Programme,Aecom Infrastructure & Env,11724,2851
"Department for Business, Energy and Industrial Strategy",The Coal Authority,24/02/2017,Minewater Feasibility / Scoping,Environment - DEFRA - LEP Programme,Aecom Infrastructure & Env,11794,38256.06
"Department for Business, Energy and Industrial Strategy",The Coal Authority,16/02/2017,Minewater Feasibility / Scoping,Environment - DEFRA - LEP Programme,J N Bentley Limited,10805,13981.9
"Department for Business, Energy and Industrial Strategy",The Coal Authority,16/03/2017,Minewater Feasibility / Scoping,Environment - DEFRA - LEP Programme,J N Bentley Limited,11608,7494.72
"Department for Business, Energy and Industrial Strategy",The Coal Authority,23/02/2017,Minewater Feasibility / Scoping,Environment - DEFRA - LEP Programme,Wilson Sherriff Ltd,10843,579.8
"Department for Business, Energy and Industrial Strategy",The Coal Authority,23/02/2017,Minewater Feasibility / Scoping,Environment - DEFRA - LEP Programme,Wilson Sherriff Ltd,10845,3142.3
"Department for Business, Energy and Industrial Strategy",The Coal Authority,28/02/2017,Minewater Land Agents (Acquisitions),Environment - DEFRA - LEP Programme,Mark N Carey Limited,11213,65
"Department for Business, Energy and Industrial Strategy",The Coal Authority,28/02/2017,Minewater Land Agents (Acquisitions),Environment - DEFRA - LEP Programme,Mark N Carey Limited,11214,825.5
"Department for Business, Energy and Industrial Strategy",The Coal Authority,28/02/2017,Minewater Land Agents (Acquisitions),Environment - DEFRA - LEP Programme,Mark N Carey Limited,11215,942.5
"Department for Business, Energy and Industrial Strategy",The Coal Authority,28/02/2017,Minewater Land Agents (Acquisitions),Environment - DEFRA - LEP Programme,Mark N Carey Limited,11216,1215.5
"Department for Business, Energy and Industrial Strategy",The Coal Authority,28/02/2017,Minewater Land Agents (Acquisitions),Environment - DEFRA - LEP Programme,Mark N Carey Limited,11217,344.5
"Department for Business, Energy and Industrial Strategy",The Coal Authority,28/02/2017,Minewater Land Agents (Acquisitions),Environment - DEFRA - LEP Programme,Mark N Carey Limited,11222,162.5
"Department for Business, Energy and Industrial Strategy",The Coal Authority,28/02/2017,Minewater Land Agents (Acquisitions),Environment - DEFRA - LEP Programme,Mark N Carey Limited,11223,130
"Department for Business, Energy and Industrial Strategy",The Coal Authority,03/04/2017,Minewater Monitoring & Flow Measurement,Environment - DEFRA - LEP Programme,11744 Severn Trent Serv Ops Uk Ltd,12014,29.94
"Department for Business, Energy and Industrial Strategy",The Coal Authority,03/04/2017,Minewater Monitoring & Flow Measurement,Environment - DEFRA - LEP Programme,11744 Severn Trent Serv Ops Uk Ltd,12014,63
"Department for Business, Energy and Industrial Strategy",The Coal Authority,03/04/2017,Minewater Monitoring & Flow Measurement,Environment - DEFRA - LEP Programme,11744 Severn Trent Serv Ops Uk Ltd,12014,157.34
"Department for Business, Energy and Industrial Strategy",The Coal Authority,28/02/2017,Minewater Monitoring & Flow Measurement,Environment - DEFRA - LEP Programme,Hydro Logic Services Llp,11472,736.5
"Department for Business, Energy and Industrial Strategy",The Coal Authority,28/02/2017,Minewater Monitoring & Flow Measurement,Environment - DEFRA - LEP Programme,Hydro Logic Services Llp,11472,736.5
"Department for Business, Energy and Industrial Strategy",The Coal Authority,03/04/2017,Minewater Sampling - 'Non-operational' Sites,Environment - DEFRA - LEP Programme,11744 Severn Trent Serv Ops Uk Ltd,12014,34.92
"Department for Business, Energy and Industrial Strategy",The Coal Authority,03/04/2017,Minewater Sampling - 'Non-operational' Sites,Environment - DEFRA - LEP Programme,11744 Severn Trent Serv Ops Uk Ltd,12014,92.83
"Department for Business, Energy and Industrial Strategy",The Coal Authority,03/04/2017,Minewater Sampling - 'Non-operational' Sites,Environment - DEFRA - LEP Programme,11744 Severn Trent Serv Ops Uk Ltd,12014,94.92
"Department for Business, Energy and Industrial Strategy",The Coal Authority,04/04/2017,Subsistence Allowances,Environment - DEFRA - LEP Programme,Staff Expenses Control,12108,-13.95
"Department for Business, Energy and Industrial Strategy",The Coal Authority,04/04/2017,Subsistence Allowances,Environment - DEFRA - LEP Programme,Staff Expenses Control,12108,13.95
"Department for Business, Energy and Industrial Strategy",The Coal Authority,04/04/2017,Subsistence Allowances,Environment - DEFRA - LEP Programme,Staff Expenses Control,12108,-8.5
"Department for Business, Energy and Industrial Strategy",The Coal Authority,04/04/2017,Subsistence Allowances,Environment - DEFRA - LEP Programme,Staff Expenses Control,12108,-8.5
"Department for Business, Energy and Industrial Strategy",The Coal Authority,04/04/2017,Subsistence Allowances,Environment - DEFRA - LEP Programme,Staff Expenses Control,12108,-9.12
"Department for Business, Energy and Industrial Strategy",The Coal Authority,04/04/2017,Subsistence Allowances,Environment - DEFRA - LEP Programme,Staff Expenses Control,12108,-5
"Department for Business, Energy and Industrial Strategy",The Coal Authority,04/04/2017,Subsistence Allowances,Environment - DEFRA - LEP Programme,Staff Expenses Control,12108,-3.33
"Department for Business, Energy and Industrial Strategy",The Coal Authority,04/04/2017,Subsistence Allowances,Environment - DEFRA - LEP Programme,Staff Expenses Control,12108,-3.65
"Department for Business, Energy and Industrial Strategy",The Coal Authority,04/04/2017,Subsistence Allowances,Environment - DEFRA - LEP Programme,Staff Expenses Control,12108,-2.9
"Department for Business, Energy and Industrial Strategy",The Coal Authority,04/04/2017,Subsistence Allowances,Environment - DEFRA - LEP Programme,Staff Expenses Control,12108,-1.92
"Department for Business, Energy and Industrial Strategy",The Coal Authority,04/04/2017,Subsistence Allowances,Environment - DEFRA - LEP Programme,Staff Expenses Control,12108,-24.17
"Department for Business, Energy and Industrial Strategy",The Coal Authority,04/04/2017,Subsistence Allowances,Environment - DEFRA - LEP Programme,Staff Expenses Control,12108,8.5
"Department for Business, Energy and Industrial Strategy",The Coal Authority,04/04/2017,Subsistence Allowances,Environment - DEFRA - LEP Programme,Staff Expenses Control,12108,8.5
"Department for Business, Energy and Industrial Strategy",The Coal Authority,04/04/2017,Subsistence Allowances,Environment - DEFRA - LEP Programme,Staff Expenses Control,12108,9.12
"Department for Business, Energy and Industrial Strategy",The Coal Authority,04/04/2017,Subsistence Allowances,Environment - DEFRA - LEP Programme,Staff Expenses Control,12108,-4.41
"Department for Business, Energy and Industrial Strategy",The Coal Authority,04/04/2017,Subsistence Allowances,Environment - DEFRA - LEP Programme,Staff Expenses Control,12108,-18.12
"Department for Business, Energy and Industrial Strategy",The Coal Authority,04/04/2017,Subsistence Allowances,Environment - DEFRA - LEP Programme,Staff Expenses Control,12108,-24.17
"Department for Business, Energy and Industrial Strategy",The Coal Authority,04/04/2017,Subsistence Allowances,Environment - DEFRA - LEP Programme,Staff Expenses Control,12108,-2.45
"Department for Business, Energy and Industrial Strategy",The Coal Authority,04/04/2017,Subsistence Allowances,Environment - DEFRA - LEP Programme,Staff Expenses Control,12108,-2.45
"Department for Business, Energy and Industrial Strategy",The Coal Authority,04/04/2017,Subsistence Allowances,Environment - DEFRA - LEP Programme,Staff Expenses Control,12108,-4.88
"Department for Business, Energy and Industrial Strategy",The Coal Authority,04/04/2017,Subsistence Allowances,Environment - DEFRA - LEP Programme,Staff Expenses Control,12108,-6.17
"Department for Business, Energy and Industrial Strategy",The Coal Authority,04/04/2017,Subsistence Allowances,Environment - DEFRA - LEP Programme,Staff Expenses Control,12108,5
"Department for Business, Energy and Industrial Strategy",The Coal Authority,04/04/2017,Subsistence Allowances,Environment - DEFRA - LEP Programme,Staff Expenses Control,12108,3.33
"Department for Business, Energy and Industrial Strategy",The Coal Authority,04/04/2017,Subsistence Allowances,Environment - DEFRA - LEP Programme,Staff Expenses Control,12108,3.65
"Department for Business, Energy and Industrial Strategy",The Coal Authority,04/04/2017,Subsistence Allowances,Environment - DEFRA - LEP Programme,Staff Expenses Control,12108,2.9
"Department for Business, Energy and Industrial Strategy",The Coal Authority,04/04/2017,Subsistence Allowances,Environment - DEFRA - LEP Programme,Staff Expenses Control,12108,1.92
"Department for Business, Energy and Industrial Strategy",The Coal Authority,04/04/2017,Subsistence Allowances,Environment - DEFRA - LEP Programme,Staff Expenses Control,12108,4.41
"Department for Business, Energy and Industrial Strategy",The Coal Authority,04/04/2017,Subsistence Allowances,Environment - DEFRA - LEP Programme,Staff Expenses Control,12108,18.12
"Department for Business, Energy and Industrial Strategy",The Coal Authority,04/04/2017,Subsistence Allowances,Environment - DEFRA - LEP Programme,Staff Expenses Control,12108,24.17
"Department for Business, Energy and Industrial Strategy",The Coal Authority,04/04/2017,Subsistence Allowances,Environment - DEFRA - LEP Programme,Staff Expenses Control,12108,2.45
"Department for Business, Energy and Industrial Strategy",The Coal Authority,04/04/2017,Subsistence Allowances,Environment - DEFRA - LEP Programme,Staff Expenses Control,12108,2.45
"Department for Business, Energy and Industrial Strategy",The Coal Authority,04/04/2017,Subsistence Allowances,Environment - DEFRA - LEP Programme,Staff Expenses Control,12108,4.88
"Department for Business, Energy and Industrial Strategy",The Coal Authority,04/04/2017,Subsistence Allowances,Environment - DEFRA - LEP Programme,Staff Expenses Control,12108,24.17
"Department for Business, Energy and Industrial Strategy",The Coal Authority,04/04/2017,Subsistence Allowances,Environment - DEFRA - LEP Programme,Staff Expenses Control,12108,6.17
"Department for Business, Energy and Industrial Strategy",The Coal Authority,27/03/2017,Training & Education,Environment - Innovation Concept & Feasibility,Govnet Communications,11843,385
"Department for Business, Energy and Industrial Strategy",The Coal Authority,31/03/2017,CY - Minewater Scheme - Additions,Environment - Innovation Programme Delivery,HBS Group Southern Limited,11897,69585.41
"Department for Business, Energy and Industrial Strategy",The Coal Authority,31/03/2017,CY - Minewater Scheme - Additions,Environment - Innovation Programme Delivery,HBS Group Southern Limited,11898,47548.62
"Department for Business, Energy and Industrial Strategy",The Coal Authority,31/03/2017,CY - Minewater Scheme - Additions,Environment - Innovation Programme Delivery,HBS Group Southern Limited,11900,230199.87
"Department for Business, Energy and Industrial Strategy",The Coal Authority,23/03/2017,CY - Minewater Scheme - Additions,Environment - Innovation Programme Delivery,Northern Powergrid (Yorkshire) Plc,11750,57337.78
"Department for Business, Energy and Industrial Strategy",The Coal Authority,28/02/2017,Fares - Rail,Environment - Innovation Programme Delivery,Redfern Travel Ltd,11854,330.8
"Department for Business, Energy and Industrial Strategy",The Coal Authority,28/02/2017,Hotel & Accommodation,Environment - Innovation Programme Delivery,Redfern Travel Ltd,11854,326.94
"Department for Business, Energy and Industrial Strategy",The Coal Authority,28/02/2017,Innovation Costs,Environment - Innovation Programme Delivery,4Recycling Ltd,11209,4950
"Department for Business, Energy and Industrial Strategy",The Coal Authority,31/03/2017,Innovation Costs,Environment - Innovation Programme Delivery,Aecom Infrastructure & Env,11964,21420
"Department for Business, Energy and Industrial Strategy",The Coal Authority,31/01/2017,Innovation Costs,Environment - Innovation Programme Delivery,Carter Jonas,11069,12122.7
"Department for Business, Energy and Industrial Strategy",The Coal Authority,28/02/2017,Innovation Costs,Environment - Innovation Programme Delivery,Carter Jonas,11210,2277.8
"Department for Business, Energy and Industrial Strategy",The Coal Authority,28/02/2017,Innovation Costs,Environment - Innovation Programme Delivery,Carter Jonas,11211,5619.5
"Department for Business, Energy and Industrial Strategy",The Coal Authority,31/01/2017,Innovation Costs,Environment - Innovation Programme Delivery,Carter Jonas,11454,2242
"Department for Business, Energy and Industrial Strategy",The Coal Authority,28/03/2017,Innovation Costs,Environment - Innovation Programme Delivery,Carter Jonas,11874,3839.9
"Department for Business, Energy and Industrial Strategy",The Coal Authority,03/03/2017,Innovation Costs,Environment - Innovation Programme Delivery,Clare McCallan Consulting,11174,187.5
"Department for Business, Energy and Industrial Strategy",The Coal Authority,27/02/2017,Innovation Costs,Environment - Innovation Programme Delivery,Environmental Scientifics Grp,10921,252.3
"Department for Business, Energy and Industrial Strategy",The Coal Authority,27/02/2017,Innovation Costs,Environment - Innovation Programme Delivery,Environmental Scientifics Grp,10922,462.55
"Department for Business, Energy and Industrial Strategy",The Coal Authority,28/02/2017,Innovation Costs,Environment - Innovation Programme Delivery,Environmental Scientifics Grp,10925,126.15
"Department for Business, Energy and Industrial Strategy",The Coal Authority,28/02/2017,Innovation Costs,Environment - Innovation Programme Delivery,Environmental Scientifics Grp,10926,294.35
"Department for Business, Energy and Industrial Strategy",The Coal Authority,28/02/2017,Innovation Costs,Environment - Innovation Programme Delivery,Environmental Scientifics Grp,10927,294.35
"Department for Business, Energy and Industrial Strategy",The Coal Authority,07/03/2017,Innovation Costs,Environment - Innovation Programme Delivery,Environmental Scientifics Grp,11282,294.35
"Department for Business, Energy and Industrial Strategy",The Coal Authority,07/11/2016,Innovation Costs,Environment - Innovation Programme Delivery,Plantwork Systems,10810,3409.3
"Department for Business, Energy and Industrial Strategy",The Coal Authority,03/03/2017,Innovation Costs,Environment - Innovation Programme Delivery,University of Leicester,11147,1016.26
"Department for Business, Energy and Industrial Strategy",The Coal Authority,14/03/2017,Minewater Sampling - Operational Sites,Environment - Innovation Programme Delivery,Environmental Scientifics Grp,11476,5070
"Department for Business, Energy and Industrial Strategy",The Coal Authority,21/03/2017,Research & Development,Environment - Innovation Programme Delivery,ITRI Ltd,11700,13000
"Department for Business, Energy and Industrial Strategy",The Coal Authority,22/03/2017,Research & Development,Environment - Innovation Programme Delivery,The University of Sheffield,11698,10950
"Department for Business, Energy and Industrial Strategy",The Coal Authority,28/02/2017,Short Term Vehicle Hire,Environment - Innovation Programme Delivery,Enterprise Rent A Car,10894,48.5
"Department for Business, Energy and Industrial Strategy",The Coal Authority,29/03/2017,Software Licenses - On Premise,Environment - Innovation Programme Delivery,Daxesoft Ltd (Pipe Flow Software),11933,4995
"Department for Business, Energy and Industrial Strategy",The Coal Authority,06/03/2017,Temporary Contractors,Environment - Innovation Programme Delivery,Huxley Associates,11112,2160
"Department for Business, Energy and Industrial Strategy",The Coal Authority,10/03/2017,Temporary Contractors,Environment - Innovation Programme Delivery,Huxley Associates,11271,2160
"Department for Business, Energy and Industrial Strategy",The Coal Authority,10/03/2017,Temporary Contractors,Environment - Innovation Programme Delivery,Huxley Associates,11272,12
"Department for Business, Energy and Industrial Strategy",The Coal Authority,20/03/2017,Temporary Contractors,Environment - Innovation Programme Delivery,Huxley Associates,11509,2160
"Department for Business, Energy and Industrial Strategy",The Coal Authority,29/03/2017,Temporary Contractors,Environment - Innovation Programme Delivery,Huxley Associates,11878,2160
"Department for Business, Energy and Industrial Strategy",The Coal Authority,10/02/2017,Training & Education,Environment - Innovation Programme Delivery,Faversham House Ltd,11044,375
"Department for Business, Energy and Industrial Strategy",The Coal Authority,31/03/2017,Business Meetings,Environment - Management,11826-Irrecoverable client VAT,12180,72.12
"Department for Business, Energy and Industrial Strategy",The Coal Authority,31/01/2017,Business Meetings,Environment - Management,Ransomwood Estates Ltd,11638,124.3
"Department for Business, Energy and Industrial Strategy",The Coal Authority,28/02/2017,Fares - Rail,Environment - Management,Redfern Travel Ltd,11854,172.8
"Department for Business, Energy and Industrial Strategy",The Coal Authority,28/02/2017,Short Term Vehicle Hire,Environment - Management,Enterprise Rent A Car,10908,48.5
"Department for Business, Energy and Industrial Strategy",The Coal Authority,03/03/2017,Subsistence Allowances,Environment - Management,RBS GPC Accrual Feb 2017,11841,11.64
"Department for Business, Energy and Industrial Strategy",The Coal Authority,28/02/2017,Fares - Rail,Environment - Metal Mine Build,Redfern Travel Ltd,11854,321.5
"Department for Business, Energy and Industrial Strategy",The Coal Authority,28/02/2017,Hotel & Accommodation,Environment - Metal Mine Build,Redfern Travel Ltd,11854,558.1
"Department for Business, Energy and Industrial Strategy",The Coal Authority,28/02/2017,Short Term Vehicle Hire,Environment - Metal Mine Build,Enterprise Rent A Car,10854,53.5
"Department for Business, Energy and Industrial Strategy",The Coal Authority,28/02/2017,Short Term Vehicle Hire,Environment - Metal Mine Build,Enterprise Rent A Car,10893,111.2
"Department for Business, Energy and Industrial Strategy",The Coal Authority,28/02/2017,Short Term Vehicle Hire,Environment - Metal Mine Build,Enterprise Rent A Car,10914,63.5
"Department for Business, Energy and Industrial Strategy",The Coal Authority,04/04/2017,Subsidence - Contractor & Claim Costs,Environment - Metal Mine Build,6527 RBS Sept 2016,12101,-5.35
"Department for Business, Energy and Industrial Strategy",The Coal Authority,03/03/2017,Subsistence Allowances,Environment - Metal Mine Build,RBS GPC Accrual Feb 2017,11841,147.84
"Department for Business, Energy and Industrial Strategy",The Coal Authority,03/03/2017,Subsistence Allowances,Environment - Metal Mine Build,RBS GPC Accrual Feb 2017,11841,27.44
"Department for Business, Energy and Industrial Strategy",The Coal Authority,03/11/2016,Training & Education,Environment - Metal Mine Build,Pcs Ltd,10806,345
"Department for Business, Energy and Industrial Strategy",The Coal Authority,28/02/2017,Fares - Air,Environment - Technical,Redfern Travel Ltd,11854,619.14
"Department for Business, Energy and Industrial Strategy",The Coal Authority,28/02/2017,Fares - Rail,Environment - Technical,Redfern Travel Ltd,11854,495.4
"Department for Business, Energy and Industrial Strategy",The Coal Authority,28/02/2017,Hotel & Accommodation,Environment - Technical,Redfern Travel Ltd,11854,1587.31
"Department for Business, Energy and Industrial Strategy",The Coal Authority,28/02/2017,Legal - General,Environment - Technical,Walker Morris,11367,115
"Department for Business, Energy and Industrial Strategy",The Coal Authority,28/02/2017,Minewater Borehole Contractors,Environment - Technical,Jmc Engineering Uk Ltd,11080,222
"Department for Business, Energy and Industrial Strategy",The Coal Authority,31/01/2017,Minewater Borehole Contractors,Environment - Technical,Jmc Engineering Uk Ltd,11348,680.8
"Department for Business, Energy and Industrial Strategy",The Coal Authority,30/01/2017,Minewater Investigation Studies,Environment - Technical,Amec Env & Infrastructure Uk L,10812,2847.72
"Department for Business, Energy and Industrial Strategy",The Coal Authority,21/02/2017,Minewater Investigation Studies,Environment - Technical,Mott Macdonald Ltd,10833,189.2
"Department for Business, Energy and Industrial Strategy",The Coal Authority,13/03/2017,Minewater Investigation Studies,Environment - Technical,Mouchel Ltd,11371,543.82
"Department for Business, Energy and Industrial Strategy",The Coal Authority,13/03/2017,Minewater Land Option / Access Payments,Environment - Technical,Four Legged Stool Limited,11248,800
"Department for Business, Energy and Industrial Strategy",The Coal Authority,09/03/2017,Minewater Liability & Monitoring Sites - Ad-hoc,Environment - Technical,Nal Plant Limited,11264,6659.88
"Department for Business, Energy and Industrial Strategy",The Coal Authority,15/03/2017,Research & Development,Environment - Technical,The University of Hull,11480,6147.5
"Department for Business, Energy and Industrial Strategy",The Coal Authority,28/02/2017,Short Term Vehicle Hire,Environment - Technical,Enterprise Rent A Car,10851,102.3
"Department for Business, Energy and Industrial Strategy",The Coal Authority,28/02/2017,Short Term Vehicle Hire,Environment - Technical,Enterprise Rent A Car,10856,63.63
"Department for Business, Energy and Industrial Strategy",The Coal Authority,28/02/2017,Short Term Vehicle Hire,Environment - Technical,Enterprise Rent A Car,10896,65.72
"Department for Business, Energy and Industrial Strategy",The Coal Authority,03/03/2017,Subsistence Allowances,Environment - Technical,RBS GPC Accrual Feb 2017,11841,66.14
"Department for Business, Energy and Industrial Strategy",The Coal Authority,09/03/2017,Temporary Contractors,Environment - Technical,Atkins Limited,11276,4800
"Department for Business, Energy and Industrial Strategy",The Coal Authority,30/03/2017,CY - Minewater Scheme - Additions,Environment-Mine Prog Build Team (Coal&Metal),11305-M Carey trf'd 31110,11844,-97.5
"Department for Business, Energy and Industrial Strategy",The Coal Authority,07/04/2017,CY - Minewater Scheme - Additions,Environment-Mine Prog Build Team (Coal&Metal),11313 Nal Plant Limited,12342,33079.61
"Department for Business, Energy and Industrial Strategy",The Coal Authority,07/04/2017,CY - Minewater Scheme - Additions,Environment-Mine Prog Build Team (Coal&Metal),11313 Nal Plant Limited,12358,-33079.61
"Department for Business, Energy and Industrial Strategy",The Coal Authority,16/03/2017,CY - Minewater Scheme - Additions,Environment-Mine Prog Build Team (Coal&Metal),11525 - Beamish Museum Ltd,11583,-166130.74
"Department for Business, Energy and Industrial Strategy",The Coal Authority,29/03/2017,CY - Minewater Scheme - Additions,Environment-Mine Prog Build Team (Coal&Metal),Atkins Limited,11887,636.7
